NUMERO_MANDATO;RIGA_MANDATO;QUIET;IMPORTO_RIGA;IMPORTO_MANDATO;BENEFICIARIO;CIG;TITOLO_PAGAMENTO;DATA_MANDATO;CAPITOLO;ARTICOLO;NUMERO_IMPEGNO;TITOLO;DESCR_TITOLO;LIVELLO_II;DESCR_LIVELLO_II;LIVELLO_III;DESCR_LIVELLO_III;LIVELLO_IV;DESCR_LIVELLO_IV;LIVELLO_V;DESCR_LIVELLO_V;DATA_PAG_EFF;
2;1;16;"1.966,56";"1.966,56";MINISTERO DELL'ECONOMIA E DELLE FINANZE; ;SALDO IVA DICEMBRE 2020;11-01-2021;1070;0;683;1;Spese correnti;10;Altre spese correnti;3;Versamenti IVA a debito;1;Versamenti IVA a debito per le gestioni commerciali;1;Versamenti IVA a debito per le gestioni commerciali;15-01-2021;
3;1;26;"9,90";"9,90";Giuliari Elena - Economo Comunale; ;Rimborso bollette;14-01-2021;105;0;713;1;Spese correnti;3;Acquisto di beni e servizi;2;Acquisto di servizi;16;Servizi amministrativi;2;Spese postali;18-01-2021;
6;1;29;"61,74";"61,74";Giuliari Elena - Economo Comunale; ;Rimborso bollette;14-01-2021;145;0;700;1;Spese correnti;3;Acquisto di beni e servizi;1;Acquisto di beni;2;Altri beni di consumo;9;Beni per attività di rappresentanza;18-01-2021;
7;1;30;"275,00";"275,00";Giuliari Elena - Economo Comunale; ;Rimborso bollette;14-01-2021;145;0;714;1;Spese correnti;3;Acquisto di beni e servizi;1;Acquisto di beni;2;Altri beni di consumo;9;Beni per attività di rappresentanza;18-01-2021;
8;1;31;"55,00";"55,00";Giuliari Elena - Economo Comunale; ;Rimborso bollette;14-01-2021;145;0;721;1;Spese correnti;3;Acquisto di beni e servizi;1;Acquisto di beni;2;Altri beni di consumo;9;Beni per attività di rappresentanza;18-01-2021;
9;1;32;"91,79";"91,79";Giuliari Elena - Economo Comunale; ;Rimborso bollette;14-01-2021;290;0;703;1;Spese correnti;3;Acquisto di beni e servizi;1;Acquisto di beni;2;Altri beni di consumo;6;Materiale informatico;18-01-2021;
10;1;33;"122,00";"122,00";Giuliari Elena - Economo Comunale; ;Rimborso bollette;14-01-2021;290;0;706;1;Spese correnti;3;Acquisto di beni e servizi;1;Acquisto di beni;2;Altri beni di consumo;7;Altri materiali tecnico-specialistici non sanitari;18-01-2021;
11;1;34;"100,37";"100,37";Giuliari Elena - Economo Comunale; ;Rimborso bollette;14-01-2021;290;0;707;1;Spese correnti;3;Acquisto di beni e servizi;1;Acquisto di beni;2;Altri beni di consumo;6;Materiale informatico;18-01-2021;
12;1;35;"170,00";"170,00";Giuliari Elena - Economo Comunale; ;Rimborso bollette;14-01-2021;330;0;699;1;Spese correnti;3;Acquisto di beni e servizi;1;Acquisto di beni;2;Altri beni di consumo;6;Materiale informatico;18-01-2021;
13;1;36;"46,50";"46,50";Giuliari Elena - Economo Comunale; ;Rimborso bollette;14-01-2021;330;0;711;1;Spese correnti;3;Acquisto di beni e servizi;1;Acquisto di beni;2;Altri beni di consumo;999;Altri beni e materiali di consumo n.a.c.;18-01-2021;
14;1;37;"150,00";"150,00";Giuliari Elena - Economo Comunale; ;Rimborso bollette;14-01-2021;330;0;712;1;Spese correnti;3;Acquisto di beni e servizi;1;Acquisto di beni;2;Altri beni di consumo;6;Materiale informatico;18-01-2021;
15;1;38;"239,40";"239,40";Giuliari Elena - Economo Comunale; ;Rimborso bollette;14-01-2021;377;0;710;1;Spese correnti;3;Acquisto di beni e servizi;1;Acquisto di beni;2;Altri beni di consumo;6;Materiale informatico;18-01-2021;
16;1;39;"278,00";"278,00";Giuliari Elena - Economo Comunale; ;Rimborso bollette;14-01-2021;460;0;715;1;Spese correnti;3;Acquisto di beni e servizi;2;Acquisto di servizi;13;Servizi ausiliari per il funzionamento dell'ente;6;Rimozione e smaltimento di rifiuti tossico-nocivi e di altri materiali;18-01-2021;
17;1;40;"258,70";"258,70";Giuliari Elena - Economo Comunale; ;Rimborso bollette;14-01-2021;460;0;716;1;Spese correnti;3;Acquisto di beni e servizi;2;Acquisto di servizi;13;Servizi ausiliari per il funzionamento dell'ente;6;Rimozione e smaltimento di rifiuti tossico-nocivi e di altri materiali;18-01-2021;
18;1;41;"40,00";"40,00";Giuliari Elena - Economo Comunale; ;Rimborso bollette;14-01-2021;460;0;717;1;Spese correnti;3;Acquisto di beni e servizi;2;Acquisto di servizi;13;Servizi ausiliari per il funzionamento dell'ente;6;Rimozione e smaltimento di rifiuti tossico-nocivi e di altri materiali;18-01-2021;
19;1;42;"40,00";"40,00";Giuliari Elena - Economo Comunale; ;Rimborso bollette;14-01-2021;460;0;718;1;Spese correnti;3;Acquisto di beni e servizi;2;Acquisto di servizi;13;Servizi ausiliari per il funzionamento dell'ente;6;Rimozione e smaltimento di rifiuti tossico-nocivi e di altri materiali;18-01-2021;
20;1;43;"40,00";"40,00";Giuliari Elena - Economo Comunale; ;Rimborso bollette;14-01-2021;460;0;719;1;Spese correnti;3;Acquisto di beni e servizi;2;Acquisto di servizi;13;Servizi ausiliari per il funzionamento dell'ente;6;Rimozione e smaltimento di rifiuti tossico-nocivi e di altri materiali;18-01-2021;
21;1;44;"40,00";"40,00";Giuliari Elena - Economo Comunale; ;Rimborso bollette;14-01-2021;460;0;720;1;Spese correnti;3;Acquisto di beni e servizi;2;Acquisto di servizi;13;Servizi ausiliari per il funzionamento dell'ente;6;Rimozione e smaltimento di rifiuti tossico-nocivi e di altri materiali;18-01-2021;
22;1;45;"17,97";"17,97";Giuliari Elena - Economo Comunale; ;Rimborso bollette;14-01-2021;970;0;702;1;Spese correnti;3;Acquisto di beni e servizi;2;Acquisto di servizi;9;Manutenzione ordinaria e riparazioni;4;Manutenzione ordinaria e riparazioni di impianti e macchinari;18-01-2021;
27;1;56;"1.091,35";"1.091,35";MINISTERO INTERNO - DIREZIONE CENTR SERV DEMOGRAFICI; ;Liquidazione diritti per il rilascio di n. 65 carte didentita elettroniche DICEMBRE 2020.;20-01-2021;325;0;73;1;Spese correnti;4;Trasferimenti correnti;1;Trasferimenti correnti a Amministrazioni Pubbliche;1;Trasferimenti correnti a Amministrazioni Centrali;1;Trasferimenti correnti a Ministeri;25-01-2021;
28;1;57;"63,05";"63,05";SERVIZIO ELETTRICO NAZIONALE  - Servizio Maggior Tutela; ;SALDO Fatt.n. 230602805011141  del 14/11/2018 FATTURA;20-01-2021;354;0;725;1;Spese correnti;3;Acquisto di beni e servizi;2;Acquisto di servizi;5;Utenze e canoni;4;Energia elettrica;25-01-2021;
29;1;58;"33,89";"33,89";ACQUE VERONESI SCARL; ;SALDO Fatt.n. 0350120200801111800  del 27/11/2020 FATTURA B/Bollettazione;20-01-2021;359;0;205;1;Spese correnti;3;Acquisto di beni e servizi;2;Acquisto di servizi;5;Utenze e canoni;5;Acqua;25-01-2021;
30;1;59;"34,77";"34,77";ACQUE VERONESI SCARL; ;SALDO Fatt.n. 0350120200801111700  del 27/11/2020 FATTURA B/Bollettazione;20-01-2021;359;0;205;1;Spese correnti;3;Acquisto di beni e servizi;2;Acquisto di servizi;5;Utenze e canoni;5;Acqua;25-01-2021;
31;1;60;"974,63";"974,63";ABACO SPA;7408612407;SALDO Fatt.n. 2020120004934  del 09/12/2020 FATTURA;20-01-2021;382;0;166;1;Spese correnti;3;Acquisto di beni e servizi;2;Acquisto di servizi;3;Aggi di riscossione;999;Altri aggi di riscossione n.a.c.;25-01-2021;
32;1;61;"38,30";"38,30";ABACO SPA;7408612407;SALDO Fatt.n. 2020120004800  del 07/12/2020 FATTURA;20-01-2021;382;0;166;1;Spese correnti;3;Acquisto di beni e servizi;2;Acquisto di servizi;3;Aggi di riscossione;999;Altri aggi di riscossione n.a.c.;25-01-2021;
33;1;62;"2.398,48";"2.398,48";CIDIELLE COOPERATIVA SOCIALE;7815839A5F;SALDO Fatt.n. 356/02  del 30/11/2020 SERVIZIO PULIZIE PRESSO SEDE COMUNALE;20-01-2021;117;0;115;1;Spese correnti;3;Acquisto di beni e servizi;2;Acquisto di servizi;13;Servizi ausiliari per il funzionamento dell'ente;2;Servizi di pulizia e lavanderia;25-01-2021;
34;1;63;"746,14";"746,14";RANCAN SNC DI RANCAN LAURA E ALESSANDRO & C;Z0F2B965AD;SALDO Fatt.n. 68/PA  del 30/11/2020 Contributo Ambientale Conai assolto. ACQUISTO CANCELLERIA PER UFFICI;20-01-2021;110;0;72;1;Spese correnti;3;Acquisto di beni e servizi;1;Acquisto di beni;2;Altri beni di consumo;1;"Carta, cancelleria e stampati";25-01-2021;
35;1;64;"152,00";"152,00";ANUSCA;Z812E6677F;SALDO Fatt.n. 1221E  del 17/12/2020 PARTECIPAZIONE POMERIGGI DI STUDIO PER OPERATORI SERVIZI DEMOGRAFICI;20-01-2021;90;0;512;1;Spese correnti;3;Acquisto di beni e servizi;2;Acquisto di servizi;4;Acquisto di servizi per formazione e addestramento del personale dell'ente;999;Acquisto di servizi per altre spese per formazione e addestramento n.a.c.;25-01-2021;
36;1;65;"1.414,40";"1.414,40";TIPOGRAFIA CENTRALE SAS DI GIONA F & C;Z8423A29AF;SALDO Fatt.n. FATTPA 26_20  del 23/12/2020 STAMPA GAZZETTA TERMALE USCITA DICEMBRE 2020;20-01-2021;147;0;304;1;Spese correnti;3;Acquisto di beni e servizi;2;Acquisto di servizi;2;"Organizzazione eventi, pubblicita` e servizi per trasferta";999;"Altre spese per relazioni pubbliche, convegni e mostre, pubblicita` n.a.c";25-01-2021;
37;1;66;"2.250,00";"2.250,00";SOCIETA' COOPERATIVA CULTURE;7559364882;SALDO Fatt.n. 2792/FE  del 24/11/2020 GESTIONE SERVIZI BIBLIOTECARI - MESE DI SETTEMBRE 2020;20-01-2021;680;0;547;1;Spese correnti;3;Acquisto di beni e servizi;2;Acquisto di servizi;15;Contratti di servizio pubblico;999;Altre spese per contratti di servizio pubblico;25-01-2021;
38;1;67;"4.212,00";"4.212,00";SOCIETA' COOPERATIVA CULTURE;7559364882;SALDO Fatt.n. 3080/FE  del 21/12/2020 GESTIONE SERVIZI BIBLIOTECARI - MESE DI OTTOBRE E NOVEMBRE 2020;20-01-2021;680;0;547;1;Spese correnti;3;Acquisto di beni e servizi;2;Acquisto di servizi;15;Contratti di servizio pubblico;999;Altre spese per contratti di servizio pubblico;25-01-2021;
39;1;68;"356.299,14";"356.299,14";UNIONE DI COMUNI VERONA EST; ;UNIONE DI COMUNI VERONA EST - ASSUNZIONE DI IMPEGNO DI SPESA PER EROGAZIONE SALDO CONTRIBUTO 2020.;20-01-2021;5;0;722;1;Spese correnti;4;Trasferimenti correnti;1;Trasferimenti correnti a Amministrazioni Pubbliche;2;Trasferimenti correnti a Amministrazioni Locali;5;Trasferimenti correnti a Unioni di Comuni;25-01-2021;
42;1;71;"520,00";"520,00";TREGNAGHI GABRIELE;ZAD2ED534C;SALDO Fatt.n. 9/2020  del 30/11/2020 FATTURA;21-01-2021;270;0;560;1;Spese correnti;3;Acquisto di beni e servizi;2;Acquisto di servizi;11;Prestazioni professionali e specialistiche;999;Altre prestazioni professionali e specialistiche n.a.c.;25-01-2021;
43;1;105;"4.240,00";"4.240,00";AMMINISTRATORI COMUNALI; ;INDENNITA DI CARICA EROGATA NEL MESE DI GENNAIO 2021;21-01-2021;10;0;2;1;Spese correnti;3;Acquisto di beni e servizi;2;Acquisto di servizi;1;Organi e incarichi istituzionali dell'amministrazione;1;Organi istituzionali dell'amministrazione - Indennità;28-01-2021;
119;1;72;"4.069,68";"4.069,68";GRUPPO DIMENSIONE COMUNITA' SRL;Z662E160B5;SALDO Fatt.n. 000505/PA  del 16/12/2020 FATTURA;25-01-2021;870;0;522;1;Spese correnti;3;Acquisto di beni e servizi;2;Acquisto di servizi;9;Manutenzione ordinaria e riparazioni;8;Manutenzione ordinaria e riparazioni di beni immobili;25-01-2021;
120;1;73;"2.398,48";"2.398,48";CIDIELLE COOPERATIVA SOCIALE;7815839A5F;SALDO Fatt.n. 399/02  del 31/12/2020 SERVIZIO PULIZIE SEDE COMUNALE MESE DI DICEMBRE 2020;25-01-2021;117;0;115;1;Spese correnti;3;Acquisto di beni e servizi;2;Acquisto di servizi;13;Servizi ausiliari per il funzionamento dell'ente;2;Servizi di pulizia e lavanderia;25-01-2021;
121;1;74;"172,42";"172,42";FOLETTO LUCIANO SRL;Z4B2981DE3;SALDO Fatt.n. 2020-E-0000058  del 30/12/2020 FATTURE ELETTRONICHE;25-01-2021;350;0;475;1;Spese correnti;3;Acquisto di beni e servizi;1;Acquisto di beni;2;Altri beni di consumo;999;Altri beni e materiali di consumo n.a.c.;25-01-2021;
122;1;75;"188,73";"188,73";OLIVETTI  SPA;ZA31A76D7F;SALDO Fatt.n. A20020201000047089  del 31/12/2020 NOLEGGIO FOTOCOPIATRICE;25-01-2021;109;0;174;1;Spese correnti;3;Acquisto di beni e servizi;2;Acquisto di servizi;7;Utilizzo di beni di terzi;4;Noleggi di hardware;25-01-2021;
123;1;76;"214,39";"214,39";SHARP ELECTRONICS ITALIA SPA;ZF81FAD390;"SALDO Fatt.n. 7720016259  del 28/12/2020 COMUNE DI CALDIERO, ORDINE 3811295, CIG ZF81FAD390";25-01-2021;109;0;483;1;Spese correnti;3;Acquisto di beni e servizi;2;Acquisto di servizi;7;Utilizzo di beni di terzi;4;Noleggi di hardware;25-01-2021;
124;1;77;"454,86";"454,86";COOPERATIVA SOCIALE VENETA ONLUS;Z902BC719A;ACCONTO Fatt.n. 316/002  del 31/12/2020 FATTURA;25-01-2021;782;0;239;1;Spese correnti;3;Acquisto di beni e servizi;2;Acquisto di servizi;9;Manutenzione ordinaria e riparazioni;8;Manutenzione ordinaria e riparazioni di beni immobili;25-01-2021;
125;1;78;"2.338,94";"2.338,94";COOPERATIVA SOCIALE VENETA ONLUS;Z902BC719A;SALDO Fatt.n. 316/002  del 31/12/2020 FATTURA;25-01-2021;782;0;239;1;Spese correnti;3;Acquisto di beni e servizi;2;Acquisto di servizi;9;Manutenzione ordinaria e riparazioni;8;Manutenzione ordinaria e riparazioni di beni immobili;25-01-2021;
126;1;79;"263,52";"263,52";DIGITECH DI BRUNO MATTEO;Z392C4CA20;"SALDO Fatt.n. 14  del 02/01/2021 Servizio di trascrizione audio sedute di Consiglio comunale 29/09, 10 E 27 NOV., 29/12/2020";25-01-2021;115;0;242;1;Spese correnti;3;Acquisto di beni e servizi;2;Acquisto di servizi;11;Prestazioni professionali e specialistiche;999;Altre prestazioni professionali e specialistiche n.a.c.;25-01-2021;
127;1;80;"268,40";"268,40";IL VOLANTINAGGIO SRL;Z92288123B;SALDO Fatt.n. 606/001  del 31/12/2020 FATTURA;25-01-2021;115;0;271;1;Spese correnti;3;Acquisto di beni e servizi;2;Acquisto di servizi;11;Prestazioni professionali e specialistiche;999;Altre prestazioni professionali e specialistiche n.a.c.;25-01-2021;
128;1;81;"463,60";"463,60";IL VOLANTINAGGIO SRL;Z92288123B;SALDO Fatt.n. 607/001  del 31/12/2020 FATTURA;25-01-2021;115;0;271;1;Spese correnti;3;Acquisto di beni e servizi;2;Acquisto di servizi;11;Prestazioni professionali e specialistiche;999;Altre prestazioni professionali e specialistiche n.a.c.;25-01-2021;
129;1;82;"11,20";"11,20";LEGGERE SRL;Z7E2C5EA5A;SALDO Fatt.n. 18513  del 31/12/2020 ACQUISTO LIBRI PER BIBLIOTECA;25-01-2021;681;0;209;1;Spese correnti;3;Acquisto di beni e servizi;1;Acquisto di beni;1;"Giornali, riviste e pubblicazioni";2;Pubblicazioni;25-01-2021;
130;1;83;"553,32";"553,32";LEGGERE SRL;Z7E2C5EA5A;SALDO Fatt.n. 18514  del 31/12/2020 ACQUISTO LIBRI PER BIBLIOTECA;25-01-2021;681;0;209;1;Spese correnti;3;Acquisto di beni e servizi;1;Acquisto di beni;1;"Giornali, riviste e pubblicazioni";2;Pubblicazioni;25-01-2021;
131;1;84;"15.664,00";"15.664,00";ARDEA SRL;Z9F2429A12;SALDO Fatt.n. 2  del 04/01/2021 Canone di locazione;25-01-2021;464;0;376;1;Spese correnti;3;Acquisto di beni e servizi;2;Acquisto di servizi;7;Utilizzo di beni di terzi;1;Locazione di beni immobili;25-01-2021;
132;1;85;"1.891,00";"1.891,00";TIPOGRAFIA CENTRALE SAS DI GIONA F & C;ZD62FE762E;SALDO Fatt.n. FATTPA 30_20  del 29/12/2020 STAMPA APPENDICE PER GIORNALINO COM.LE "LA GAZZETTA TERMALE" DICEMBRE 2020;25-01-2021;147;0;696;1;Spese correnti;3;Acquisto di beni e servizi;2;Acquisto di servizi;2;"Organizzazione eventi, pubblicita` e servizi per trasferta";999;"Altre spese per relazioni pubbliche, convegni e mostre, pubblicita` n.a.c";25-01-2021;
133;1;86;"2.240,08";"2.240,08";CLIMATECH SRL;Z452A5347E;SALDO Fatt.n. 3220/20  del 23/12/2020 Fattura;25-01-2021;114;0;712;1;Spese correnti;3;Acquisto di beni e servizi;2;Acquisto di servizi;9;Manutenzione ordinaria e riparazioni;4;Manutenzione ordinaria e riparazioni di impianti e macchinari;25-01-2021;
134;1;87;"335,20";"335,20";CONSORZIO AGRARIO DEL NORDEST;ZAC2D2B172;SALDO Fatt.n. 289457/V1  del 28/12/2020 FATTURA;25-01-2021;350;0;368;1;Spese correnti;3;Acquisto di beni e servizi;1;Acquisto di beni;2;Altri beni di consumo;999;Altri beni e materiali di consumo n.a.c.;25-01-2021;
135;1;88;"879,62";"879,62";MORANDO FRANCESCO;ZC1253B725;SALDO Fatt.n. 477/E  del 31/12/2020 FATTURA;25-01-2021;952;0;650;1;Spese correnti;3;Acquisto di beni e servizi;2;Acquisto di servizi;9;Manutenzione ordinaria e riparazioni;8;Manutenzione ordinaria e riparazioni di beni immobili;25-01-2021;
136;1;89;"591,11";"591,11";NARCONTI FLLI SNC DI NARCONTI M E F;ZD22FD27BE;SALDO Fatt.n. 87/E  del 28/12/2020 FATTURA;25-01-2021;460;0;692;1;Spese correnti;3;Acquisto di beni e servizi;2;Acquisto di servizi;13;Servizi ausiliari per il funzionamento dell'ente;6;Rimozione e smaltimento di rifiuti tossico-nocivi e di altri materiali;25-01-2021;
137;1;90;"1.247,79";"1.247,79";TERMOSANITARIA PASINATO SRL;ZF62B201DD;ACCONTO Fatt.n. 2020-FATPA-0000091  del 30/12/2020 FATTURA DI VENDITA;25-01-2021;352;0;716;1;Spese correnti;3;Acquisto di beni e servizi;2;Acquisto di servizi;9;Manutenzione ordinaria e riparazioni;8;Manutenzione ordinaria e riparazioni di beni immobili;25-01-2021;
138;1;91;"1.920,34";"1.920,34";TERMOSANITARIA PASINATO SRL;ZF62B201DD;SALDO Fatt.n. 2020-FATPA-0000091  del 30/12/2020 FATTURA DI VENDITA;25-01-2021;352;0;717;1;Spese correnti;3;Acquisto di beni e servizi;2;Acquisto di servizi;9;Manutenzione ordinaria e riparazioni;8;Manutenzione ordinaria e riparazioni di beni immobili;25-01-2021;
139;1;92;"15.887,79";"15.887,79";TERMOSANITARIA PASINATO SRL;ZF62B201DD;SALDO Fatt.n. 2020-FATPA-0000092  del 30/12/2020 FATTURA DI VENDITA;25-01-2021;352;0;717;1;Spese correnti;3;Acquisto di beni e servizi;2;Acquisto di servizi;9;Manutenzione ordinaria e riparazioni;8;Manutenzione ordinaria e riparazioni di beni immobili;25-01-2021;
140;1;93;"590,00";"590,00";LERCO ANTINCENDI SRL;Z112D09AE0;SALDO Fatt.n. 78/PA  del 30/12/2020 FATTURA;25-01-2021;460;0;348;1;Spese correnti;3;Acquisto di beni e servizi;2;Acquisto di servizi;13;Servizi ausiliari per il funzionamento dell'ente;6;Rimozione e smaltimento di rifiuti tossico-nocivi e di altri materiali;25-01-2021;
141;1;94;"489,60";"489,60";SGREVA MARTA;Z4F2775140;SALDO Fatt.n. FPA 1/20  del 28/12/2020 fattura;25-01-2021;934;0;130;1;Spese correnti;3;Acquisto di beni e servizi;2;Acquisto di servizi;11;Prestazioni professionali e specialistiche;999;Altre prestazioni professionali e specialistiche n.a.c.;25-01-2021;
142;1;95;"606,69";"606,69";ACQUE VERONESI SCARL; ;SALDO Fatt.n. 0360120200900009000  del 23/12/2020 F/Fattura preventivo;25-01-2021;1193;2;636;2;Spese in conto capitale;2;Investimenti fissi lordi e acquisto di terreni;1;Beni materiali;9;Beni immobili;12;Infrastrutture stradali;25-01-2021;
143;1;96;"56,11";"56,11";OTIS SERVIZI SRL;ZE62EBA0A0;SALDO Fatt.n. 3FO20118690  del 18/12/2020 FATTURA Competenze Servizi di Manutenzione;25-01-2021;1582;3;531;2;Spese in conto capitale;2;Investimenti fissi lordi e acquisto di terreni;1;Beni materiali;9;Beni immobili;3;Fabbricati ad uso scolastico;25-01-2021;
144;1;97;"0,01";"0,01";NARCONTI FLLI SNC DI NARCONTI M E F;Z582D089BC;ACCONTO Fatt.n. 80/E  del 18/12/2020 FATTURA ACCESSORI SRAMATORE;25-01-2021;460;0;692;1;Spese correnti;3;Acquisto di beni e servizi;2;Acquisto di servizi;13;Servizi ausiliari per il funzionamento dell'ente;6;Rimozione e smaltimento di rifiuti tossico-nocivi e di altri materiali;25-01-2021;
145;1;98;"100,98";"100,98";NARCONTI FLLI SNC DI NARCONTI M E F;Z582D089BC;SALDO Fatt.n. 80/E  del 18/12/2020 FATTURA ACCESSORI SRAMATORE;25-01-2021;460;0;346;1;Spese correnti;3;Acquisto di beni e servizi;2;Acquisto di servizi;13;Servizi ausiliari per il funzionamento dell'ente;6;Rimozione e smaltimento di rifiuti tossico-nocivi e di altri materiali;25-01-2021;
146;1;99;"812,03";"812,03";STUDIO GIALLO SRL;ZDB264042A;SALDO Fatt.n. 648/11  del 11/12/2020 FATTURA 648/11 del 11/12/20;25-01-2021;378;0;157;1;Spese correnti;3;Acquisto di beni e servizi;2;Acquisto di servizi;16;Servizi amministrativi;999;Altre spese per servizi amministrativi;25-01-2021;
147;1;100;"7.729,61";"7.729,61";CIRFOOD SOCIETA' COOPERATIVA ITALIANA DI RISTORAZIONE;80300395CF;"SALDO Fatt.n. 5200025114  del 31/12/2020 FATTURA Destinatario:0000528988,SC.PRIMARIA C.EDERLECOMUNE DI CALDIERO,PIAZZA VITTORIO VENETO .,CALDIERO,37042,VR";25-01-2021;662;0;492;1;Spese correnti;3;Acquisto di beni e servizi;2;Acquisto di servizi;15;Contratti di servizio pubblico;6;Contratti di servizio per le mense scolastiche;25-01-2021;
148;1;101;"1.181,98";"1.181,98";CIRFOOD SOCIETA' COOPERATIVA ITALIANA DI RISTORAZIONE;80300395CF;"SALDO Fatt.n. 5200022968  del 15/12/2020 fattura Destinatario:0000129572,COMUNE DI CALDIERO,PIAZZA MARCOLUNGO 19,CALDIERO,37042,VR";25-01-2021;662;0;492;1;Spese correnti;3;Acquisto di beni e servizi;2;Acquisto di servizi;15;Contratti di servizio pubblico;6;Contratti di servizio per le mense scolastiche;25-01-2021;
149;1;102;"47.239,30";"47.239,30";UNIONE DI COMUNI VERONA EST; ;EMERGENZA EPIDEMIOLOGICA DA COVID-19.  TRASFERIMENTO ALLUNIONE DI COMUNI VERONA EST DEI FONDI STATALI INERENTI LA FUNZIONE SOCIALE.;25-01-2021;5;1;726;1;Spese correnti;4;Trasferimenti correnti;1;Trasferimenti correnti a Amministrazioni Pubbliche;2;Trasferimenti correnti a Amministrazioni Locali;5;Trasferimenti correnti a Unioni di Comuni;25-01-2021;
150;1;103;"26.908,10";"26.908,10";UNIONE DI COMUNI VERONA EST; ;EMERGENZA EPIDEMIOLOGICA DA COVID-19.  TRASFERIMENTO ALLUNIONE DI COMUNI VERONA EST DEI FONDI STATALI INERENTI LA FUNZIONE SOCIALE.;25-01-2021;5;2;727;1;Spese correnti;4;Trasferimenti correnti;1;Trasferimenti correnti a Amministrazioni Pubbliche;2;Trasferimenti correnti a Amministrazioni Locali;5;Trasferimenti correnti a Unioni di Comuni;25-01-2021;
151;1;104;"43.873,64";"43.873,64";UNIONE DI COMUNI VERONA EST; ;EMERGENZA EPIDEMIOLOGICA DA COVID-19.  TRASFERIMENTO ALLUNIONE DI COMUNI VERONA EST DEI FONDI STATALI INERENTI LA FUNZIONE SOCIALE.;25-01-2021;5;3;728;1;Spese correnti;4;Trasferimenti correnti;1;Trasferimenti correnti a Amministrazioni Pubbliche;2;Trasferimenti correnti a Amministrazioni Locali;5;Trasferimenti correnti a Unioni di Comuni;25-01-2021;
152;1;106;"8.000,00";"8.000,00";CONSORZIO STABILE TOSCANA EDILIZIA & AMBIENTE TEAM SCARL;8083630680;ACCONTO Fatt.n. 51  del 10/12/2020 Fattura;27-01-2021;1108;0;802;2;Spese in conto capitale;2;Investimenti fissi lordi e acquisto di terreni;1;Beni materiali;9;Beni immobili;3;Fabbricati ad uso scolastico;27-01-2021;
153;1;107;"25.292,07";"25.292,07";CONSORZIO STABILE TOSCANA EDILIZIA & AMBIENTE TEAM SCARL;8083630680;SALDO Fatt.n. 51  del 10/12/2020 Fattura;27-01-2021;1108;0;802;2;Spese in conto capitale;2;Investimenti fissi lordi e acquisto di terreni;1;Beni materiali;9;Beni immobili;3;Fabbricati ad uso scolastico;27-01-2021;
154;1;108;"414,29";"414,29";CONSORZIO STABILE TOSCANA EDILIZIA & AMBIENTE TEAM SCARL;8083630680;SALDO Fatt.n. 52  del 17/12/2020 Fattura;27-01-2021;1108;0;802;2;Spese in conto capitale;2;Investimenti fissi lordi e acquisto di terreni;1;Beni materiali;9;Beni immobili;3;Fabbricati ad uso scolastico;27-01-2021;
155;1;12;"135,42";"135,42";TELECOM ITALIA;Z6E2A4DE7A;SOGGETTI DIVERSI-PAGAMENTO ADUE B2B            COD DISP 012101040Z5XZG NOME  TELECOM ITALIA SPA MANDATO    80020100004507650048143B A5URC  ACCONTO (P. 12 -R. 12 del 14/01/2021);27-01-2021;583;0;737;1;Spese correnti;3;Acquisto di beni e servizi;2;Acquisto di servizi;5;Utenze e canoni;1;Telefonia fissa;28-01-2021;
156;1;110;"29,79";"29,79";TELECOM ITALIA;Z6E2A4DE7A;SALDO Fatt.n. 8E00883093  del 12/12/2020 1BIM 2021;27-01-2021;583;0;737;1;Spese correnti;3;Acquisto di beni e servizi;2;Acquisto di servizi;5;Utenze e canoni;1;Telefonia fissa;28-01-2021;
157;1;9;"60,56";"60,56";TELECOM ITALIA;Z6E2A4DE7A;SOGGETTI DIVERSI-PAGAMENTO ADUE B2B            COD DISP 012101040Z5XZT NOME  TELECOM ITALIA SPA MANDATO    80020100004507652787153B A5URC  ACCONTO (P. 9 -R. 9 del 14/01/2021);27-01-2021;543;0;736;1;Spese correnti;3;Acquisto di beni e servizi;2;Acquisto di servizi;5;Utenze e canoni;1;Telefonia fissa;28-01-2021;
158;1;111;"13,32";"13,32";TELECOM ITALIA;Z6E2A4DE7A;SALDO Fatt.n. 8E00877830  del 12/12/2020 1BIM 2021;27-01-2021;543;0;736;1;Spese correnti;3;Acquisto di beni e servizi;2;Acquisto di servizi;5;Utenze e canoni;1;Telefonia fissa;28-01-2021;
159;1;14;"100,00";"100,00";TELECOM ITALIA;Z6E2A4DE7A;SOGGETTI DIVERSI-PAGAMENTO ADUE B2B            COD DISP 012101040Z5XK1 NOME  TELECOM ITALIA SPA MANDATO    80020100004506152502113B A5URC  ACCONTO (P. 14 -R. 14 del 14/01/2021);27-01-2021;213;0;735;1;Spese correnti;3;Acquisto di beni e servizi;2;Acquisto di servizi;5;Utenze e canoni;1;Telefonia fissa;28-01-2021;
160;1;112;"22,00";"22,00";TELECOM ITALIA;Z6E2A4DE7A;SALDO Fatt.n. 8E00882781  del 12/12/2020 1BIM 2021;27-01-2021;213;0;735;1;Spese correnti;3;Acquisto di beni e servizi;2;Acquisto di servizi;5;Utenze e canoni;1;Telefonia fissa;28-01-2021;
161;1;10;"111,04";"111,04";TELECOM ITALIA;Z6E2A4DE7A;SOGGETTI DIVERSI-PAGAMENTO ADUE B2B            COD DISP 012101040Z5XZ9 NOME  TELECOM ITALIA SPA MANDATO    80020100004507650023133B A5URC  ACCONTO (P. 10 -R. 10 del 14/01/2021);27-01-2021;113;0;734;1;Spese correnti;3;Acquisto di beni e servizi;2;Acquisto di servizi;5;Utenze e canoni;1;Telefonia fissa;28-01-2021;
162;1;113;"24,43";"24,43";TELECOM ITALIA;Z6E2A4DE7A;SALDO Fatt.n. 8E00882934  del 12/12/2020 1BIM 2021;27-01-2021;113;0;734;1;Spese correnti;3;Acquisto di beni e servizi;2;Acquisto di servizi;5;Utenze e canoni;1;Telefonia fissa;28-01-2021;
163;1;11;"111,04";"111,04";TELECOM ITALIA;Z6E2A4DE7A;SOGGETTI DIVERSI-PAGAMENTO ADUE B2B            COD DISP 012101040Z5XJJ NOME  TELECOM ITALIA SPA MANDATO    80020100004506150148153B A5URC  ACCONTO (P. 11 -R. 11 del 14/01/2021);27-01-2021;113;0;734;1;Spese correnti;3;Acquisto di beni e servizi;2;Acquisto di servizi;5;Utenze e canoni;1;Telefonia fissa;28-01-2021;
164;1;114;"24,43";"24,43";TELECOM ITALIA;Z6E2A4DE7A;SALDO Fatt.n. 8E00874563  del 12/12/2020 1BIM 2021;27-01-2021;113;0;734;1;Spese correnti;3;Acquisto di beni e servizi;2;Acquisto di servizi;5;Utenze e canoni;1;Telefonia fissa;28-01-2021;
165;1;13;"111,04";"111,04";TELECOM ITALIA;Z6E2A4DE7A;SOGGETTI DIVERSI-PAGAMENTO ADUE B2B            COD DISP 012101040Z5XJM NOME  TELECOM ITALIA SPA MANDATO    80020100004506151555193B A5URC  ACCONTO (P. 13 -R. 13 del 14/01/2021);27-01-2021;113;0;734;1;Spese correnti;3;Acquisto di beni e servizi;2;Acquisto di servizi;5;Utenze e canoni;1;Telefonia fissa;28-01-2021;
166;1;115;"24,43";"24,43";TELECOM ITALIA;Z6E2A4DE7A;SALDO Fatt.n. 8E00878001  del 12/12/2020 1BIM 2021;27-01-2021;113;0;734;1;Spese correnti;3;Acquisto di beni e servizi;2;Acquisto di servizi;5;Utenze e canoni;1;Telefonia fissa;28-01-2021;
167;1;116;"105,21";"105,21";TELECOM ITALIA;Z3E288BEB4;SALDO Fatt.n. 7X04273592  del 12/12/2020 1BIM 2021;27-01-2021;113;0;272;1;Spese correnti;3;Acquisto di beni e servizi;2;Acquisto di servizi;5;Utenze e canoni;2;Telefonia mobile;28-01-2021;
168;1;117;"31,51";"31,51";TELECOM ITALIA;Z6E2A4DE7A;SALDO Fatt.n. 8E00874572  del 12/12/2020 1BIM 2021;27-01-2021;543;0;571;1;Spese correnti;3;Acquisto di beni e servizi;2;Acquisto di servizi;5;Utenze e canoni;1;Telefonia fissa;28-01-2021;
169;1;118;"1.130,46";"1.130,46";EDILTOSI SRL;Z9B248C873;SALDO Fatt.n. 007976  del 31/12/2020 Fattura;28-01-2021;350;0;505;1;Spese correnti;3;Acquisto di beni e servizi;1;Acquisto di beni;2;Altri beni di consumo;999;Altri beni e materiali di consumo n.a.c.;28-01-2021;
170;1;119;"1.127,50";"1.127,50";MATTARANETTA SOCIETA' COOPERATIVA SOCIALE;8357030751;SALDO Fatt.n. 51/FE  del 31/12/2020 FATTURA IMMEDIATA;28-01-2021;840;0;424;1;Spese correnti;3;Acquisto di beni e servizi;2;Acquisto di servizi;15;Contratti di servizio pubblico;999;Altre spese per contratti di servizio pubblico;28-01-2021;
171;1;120;"1.211,95";"1.211,95";TELEFONITALIA SRL;Z4B29109FB;SALDO Fatt.n. 20/2021  del 07/01/2021 Fattura;28-01-2021;589;0;399;1;Spese correnti;3;Acquisto di beni e servizi;2;Acquisto di servizi;9;Manutenzione ordinaria e riparazioni;8;Manutenzione ordinaria e riparazioni di beni immobili;28-01-2021;
172;1;121;"17.043,40";"17.043,40";CIDIELLE COOPERATIVA SOCIALE;79401979D7;SALDO Fatt.n. 413/02  del 31/12/2020 Fattura;28-01-2021;870;0;342;1;Spese correnti;3;Acquisto di beni e servizi;2;Acquisto di servizi;9;Manutenzione ordinaria e riparazioni;8;Manutenzione ordinaria e riparazioni di beni immobili;28-01-2021;
173;1;122;"106,86";"106,86";TELECOM ITALIA;ZD12F4508D;SALDO Fatt.n. C12020211000004793  del 07/01/2021 FATTURA RIF.TO C.T. A2/2021/000011 - AS10682804 - FATTURAZIONE PER ASSISTENZA;28-01-2021;270;0;632;1;Spese correnti;3;Acquisto di beni e servizi;2;Acquisto di servizi;11;Prestazioni professionali e specialistiche;999;Altre prestazioni professionali e specialistiche n.a.c.;28-01-2021;
174;1;123;"8.008,00";"8.008,00";CEST ELEVATORI srl;ZBA2EA2612;SALDO Fatt.n. 2/FPA  del 30/12/2020 FATTURA;28-01-2021;1582;0;677;2;Spese in conto capitale;2;Investimenti fissi lordi e acquisto di terreni;1;Beni materiali;9;Beni immobili;3;Fabbricati ad uso scolastico;28-01-2021;
175;1;124;"446,52";"446,52";OTIS SERVIZI SRL;ZE62EBA0A0;SALDO Fatt.n. 3FO21038070  del 07/01/2021 FATTURA Competenze Servizi di Manutenzione;28-01-2021;1582;3;531;2;Spese in conto capitale;2;Investimenti fissi lordi e acquisto di terreni;1;Beni materiali;9;Beni immobili;3;Fabbricati ad uso scolastico;28-01-2021;
176;1;125;"120,78";"120,78";PIZZEGHELLA E STEVAN SRL STEVAN;Z1926792B2;SALDO Fatt.n. 2/PA  del 04/01/2021 Fattura;28-01-2021;352;0;72;1;Spese correnti;3;Acquisto di beni e servizi;2;Acquisto di servizi;9;Manutenzione ordinaria e riparazioni;4;Manutenzione ordinaria e riparazioni di impianti e macchinari;28-01-2021;
177;1;126;"120,78";"120,78";PIZZEGHELLA E STEVAN SRL STEVAN;Z1926792B2;SALDO Fatt.n. 3/PA  del 04/01/2021 Fattura;28-01-2021;352;0;72;1;Spese correnti;3;Acquisto di beni e servizi;2;Acquisto di servizi;9;Manutenzione ordinaria e riparazioni;4;Manutenzione ordinaria e riparazioni di impianti e macchinari;28-01-2021;
178;1;127;"263,52";"263,52";PIZZEGHELLA E STEVAN SRL STEVAN;Z1926792B2;SALDO Fatt.n. 4/PA  del 04/01/2021 Fattura;28-01-2021;352;0;72;1;Spese correnti;3;Acquisto di beni e servizi;2;Acquisto di servizi;9;Manutenzione ordinaria e riparazioni;4;Manutenzione ordinaria e riparazioni di impianti e macchinari;28-01-2021;
179;1;128;"274,50";"274,50";PIZZEGHELLA E STEVAN SRL STEVAN;Z1926792B2;SALDO Fatt.n. 6/PA  del 04/01/2021 Fattura;28-01-2021;352;0;72;1;Spese correnti;3;Acquisto di beni e servizi;2;Acquisto di servizi;9;Manutenzione ordinaria e riparazioni;4;Manutenzione ordinaria e riparazioni di impianti e macchinari;28-01-2021;
180;1;129;"109,80";"109,80";PIZZEGHELLA E STEVAN SRL STEVAN;Z1926792B2;SALDO Fatt.n. 9/PA  del 04/01/2021 Fattura;28-01-2021;352;0;72;1;Spese correnti;3;Acquisto di beni e servizi;2;Acquisto di servizi;9;Manutenzione ordinaria e riparazioni;4;Manutenzione ordinaria e riparazioni di impianti e macchinari;28-01-2021;
181;1;130;"109,80";"109,80";PIZZEGHELLA E STEVAN SRL STEVAN;Z1926792B2;SALDO Fatt.n. 10/PA  del 04/01/2021 FATTURA;28-01-2021;352;0;72;1;Spese correnti;3;Acquisto di beni e servizi;2;Acquisto di servizi;9;Manutenzione ordinaria e riparazioni;4;Manutenzione ordinaria e riparazioni di impianti e macchinari;28-01-2021;
182;1;131;"97,60";"97,60";CIVIS SPA;Z362D7E2EA;SALDO Fatt.n. V9/0000396  del 15/01/2021 FATTURA;28-01-2021;357;0;401;1;Spese correnti;3;Acquisto di beni e servizi;2;Acquisto di servizi;13;Servizi ausiliari per il funzionamento dell'ente;1;"Servizi di sorveglianza, custodia e accoglienza";28-01-2021;
183;1;132;"10,57";"10,57";LAVENETA SRL;ZEB2B2232D;ACCONTO Fatt.n. 1  del 19/01/2021 FATTURA;28-01-2021;352;0;713;1;Spese correnti;3;Acquisto di beni e servizi;2;Acquisto di servizi;9;Manutenzione ordinaria e riparazioni;8;Manutenzione ordinaria e riparazioni di beni immobili;28-01-2021;
184;1;133;"3.934,18";"3.934,18";LAVENETA SRL;ZEB2B2232D;SALDO Fatt.n. 1  del 19/01/2021 FATTURA;28-01-2021;352;0;713;1;Spese correnti;3;Acquisto di beni e servizi;2;Acquisto di servizi;9;Manutenzione ordinaria e riparazioni;8;Manutenzione ordinaria e riparazioni di beni immobili;28-01-2021;
185;1;134;"652,27";"652,27";ENEL ENERGIA SPA;82396527ED;SALDO Fatt.n. 004079185113  del 05/12/2020 FATTURA Descrizione Contratto CONSIPEE17_5_FIX18M;28-01-2021;960;0;238;1;Spese correnti;3;Acquisto di beni e servizi;2;Acquisto di servizi;5;Utenze e canoni;4;Energia elettrica;28-01-2021;
186;1;135;"216,67";"216,67";ENEL ENERGIA SPA;82396527ED;SALDO Fatt.n. 004079185114  del 05/12/2020 FATTURA Descrizione Contratto CONSIPEE17_5_FIX18M;28-01-2021;960;0;238;1;Spese correnti;3;Acquisto di beni e servizi;2;Acquisto di servizi;5;Utenze e canoni;4;Energia elettrica;28-01-2021;
187;1;136;"1.589,90";"1.589,90";ENEL ENERGIA SPA;82396527ED;SALDO Fatt.n. 004079185115  del 05/12/2020 FATTURA Descrizione Contratto CONSIPEE17_5_FIX18M;28-01-2021;581;0;233;1;Spese correnti;3;Acquisto di beni e servizi;2;Acquisto di servizi;5;Utenze e canoni;4;Energia elettrica;28-01-2021;
188;1;137;"570,30";"570,30";CONSORZIO DI BACINO VERONA DUE DEL QUADRILATERO;7910634DAD;SALDO Fatt.n. 001422/PA  del 18/12/2020 FATTURA;29-01-2021;840;0;496;1;Spese correnti;3;Acquisto di beni e servizi;2;Acquisto di servizi;15;Contratti di servizio pubblico;4;Contratti di servizio per la raccolta rifiuti;01-02-2021;
189;1;138;"1.024,80";"1.024,80";CONSORZIO DI BACINO VERONA DUE DEL QUADRILATERO;7910634DAD;SALDO Fatt.n. 001416/PA  del 18/12/2020 FATTURA;29-01-2021;840;0;496;1;Spese correnti;3;Acquisto di beni e servizi;2;Acquisto di servizi;15;Contratti di servizio pubblico;4;Contratti di servizio per la raccolta rifiuti;01-02-2021;
190;1;139;"625,87";"625,87";ENEL ENERGIA SPA;82396527ED;SALDO Fatt.n. 004079185116  del 05/12/2020 FATTURA Descrizione Contratto CONSIPEE17_5_FIX18M;29-01-2021;960;0;238;1;Spese correnti;3;Acquisto di beni e servizi;2;Acquisto di servizi;5;Utenze e canoni;4;Energia elettrica;01-02-2021;
191;1;140;"1.136,25";"1.136,25";ENEL ENERGIA SPA;82396527ED;SALDO Fatt.n. 004079185118  del 05/12/2020 FATTURA Descrizione Contratto CONSIPEE17_5_FIX18M;29-01-2021;960;0;238;1;Spese correnti;3;Acquisto di beni e servizi;2;Acquisto di servizi;5;Utenze e canoni;4;Energia elettrica;01-02-2021;
192;1;141;"129,17";"129,17";ENEL ENERGIA SPA;82396527ED;SALDO Fatt.n. 004079185119  del 05/12/2020 FATTURA Descrizione Contratto CONSIPEE17_5_FIX18M;29-01-2021;960;0;238;1;Spese correnti;3;Acquisto di beni e servizi;2;Acquisto di servizi;5;Utenze e canoni;4;Energia elettrica;01-02-2021;
193;1;142;"69,88";"69,88";ENEL ENERGIA SPA;82396527ED;SALDO Fatt.n. 004079185120  del 05/12/2020 FATTURA Descrizione Contratto CONSIPEE17_5_FIX18M;29-01-2021;960;0;238;1;Spese correnti;3;Acquisto di beni e servizi;2;Acquisto di servizi;5;Utenze e canoni;4;Energia elettrica;01-02-2021;
194;1;143;"582,53";"582,53";ENEL ENERGIA SPA;82396527ED;SALDO Fatt.n. 004079185121  del 05/12/2020 FATTURA Descrizione Contratto CONSIPEE17_5_FIX18M;29-01-2021;960;0;238;1;Spese correnti;3;Acquisto di beni e servizi;2;Acquisto di servizi;5;Utenze e canoni;4;Energia elettrica;01-02-2021;
195;1;144;"512,13";"512,13";ENEL ENERGIA SPA;82396527ED;SALDO Fatt.n. 004079185122  del 05/12/2020 FATTURA Descrizione Contratto CONSIPEE17_5_FIX18M;29-01-2021;960;0;238;1;Spese correnti;3;Acquisto di beni e servizi;2;Acquisto di servizi;5;Utenze e canoni;4;Energia elettrica;01-02-2021;
196;1;145;"42,25";"42,25";ENEL ENERGIA SPA;82396527ED;SALDO Fatt.n. 004079185123  del 05/12/2020 FATTURA Descrizione Contratto CONSIPEE17_5_FIX18;29-01-2021;354;0;237;1;Spese correnti;3;Acquisto di beni e servizi;2;Acquisto di servizi;5;Utenze e canoni;4;Energia elettrica;01-02-2021;
197;1;146;"140,62";"140,62";ENEL ENERGIA SPA;82396527ED;SALDO Fatt.n. 004079185124  del 05/12/2020 FATTURA Descrizione Contratto CONSIPEE17_5_FIX18M;29-01-2021;960;0;238;1;Spese correnti;3;Acquisto di beni e servizi;2;Acquisto di servizi;5;Utenze e canoni;4;Energia elettrica;01-02-2021;
198;1;147;"834,94";"834,94";ENEL ENERGIA SPA;82396527ED;SALDO Fatt.n. 004079185125  del 05/12/2020 FATTURA Descrizione Contratto CONSIPEE17_5_FIX18M;29-01-2021;960;0;238;1;Spese correnti;3;Acquisto di beni e servizi;2;Acquisto di servizi;5;Utenze e canoni;4;Energia elettrica;01-02-2021;
199;1;148;"1.328,89";"1.328,89";ENEL ENERGIA SPA;82396527ED;SALDO Fatt.n. 004079185126  del 05/12/2020 FATTURA Descrizione Contratto CONSIPEE17_5_FIX18M;29-01-2021;541;0;230;1;Spese correnti;3;Acquisto di beni e servizi;2;Acquisto di servizi;5;Utenze e canoni;4;Energia elettrica;01-02-2021;
200;1;149;"10,96";"10,96";ENEL ENERGIA SPA;82396527ED;SALDO Fatt.n. 004079185127  del 05/12/2020 FATTURA Descrizione Contratto CONSIPEE17_5_FIX18M;29-01-2021;960;0;238;1;Spese correnti;3;Acquisto di beni e servizi;2;Acquisto di servizi;5;Utenze e canoni;4;Energia elettrica;01-02-2021;
201;1;150;"107,68";"107,68";ENEL ENERGIA SPA;82396527ED;SALDO Fatt.n. 004079185128  del 05/12/2020 FATTURA Descrizione Contratto CONSIPEE17_5_FIX18M;29-01-2021;951;0;231;1;Spese correnti;3;Acquisto di beni e servizi;2;Acquisto di servizi;5;Utenze e canoni;4;Energia elettrica;01-02-2021;
202;1;151;"393,40";"393,40";ENEL ENERGIA SPA;82396527ED;SALDO Fatt.n. 004079185129  del 05/12/2020 FATTURA Descrizione Contratto CONSIPEE17_5_FIX18M;29-01-2021;960;0;238;1;Spese correnti;3;Acquisto di beni e servizi;2;Acquisto di servizi;5;Utenze e canoni;4;Energia elettrica;01-02-2021;
203;1;152;"466,86";"466,86";ENEL ENERGIA SPA;82396527ED;SALDO Fatt.n. 004079185130  del 05/12/2020 Descrizione Contratto CONSIPEE17_5_FIX18M;29-01-2021;960;0;238;1;Spese correnti;3;Acquisto di beni e servizi;2;Acquisto di servizi;5;Utenze e canoni;4;Energia elettrica;01-02-2021;
204;1;153;"172,92";"172,92";ENEL ENERGIA SPA;82396527ED;SALDO Fatt.n. 004079185131  del 05/12/2020 FATTURA Descrizione Contratto CONSIPEE17_5_FIX18M;29-01-2021;960;0;238;1;Spese correnti;3;Acquisto di beni e servizi;2;Acquisto di servizi;5;Utenze e canoni;4;Energia elettrica;01-02-2021;
205;1;154;"48,92";"48,92";ENEL ENERGIA SPA;82396527ED;SALDO Fatt.n. 004079185132  del 05/12/2020 FATTURA Descrizione Contratto CONSIPEE17_5_FIX18M;29-01-2021;960;0;238;1;Spese correnti;3;Acquisto di beni e servizi;2;Acquisto di servizi;5;Utenze e canoni;4;Energia elettrica;01-02-2021;
206;1;155;"139,69";"139,69";ENEL ENERGIA SPA;82396527ED;SALDO Fatt.n. 004079185133  del 05/12/2020 FATTURA Descrizione Contratto CONSIPEE17_5_FIX18M;29-01-2021;354;0;237;1;Spese correnti;3;Acquisto di beni e servizi;2;Acquisto di servizi;5;Utenze e canoni;4;Energia elettrica;01-02-2021;
207;1;156;"345,25";"345,25";ENEL ENERGIA SPA;82396527ED;SALDO Fatt.n. 004079185134  del 05/12/2020 FATTURA Descrizione Contratto CONSIPEE17_5_FIX18M;29-01-2021;960;0;238;1;Spese correnti;3;Acquisto di beni e servizi;2;Acquisto di servizi;5;Utenze e canoni;4;Energia elettrica;01-02-2021;
208;1;157;"175,72";"175,72";ENEL ENERGIA SPA;82396527ED;SALDO Fatt.n. 004079185135  del 05/12/2020 FATTURA Descrizione Contratto CONSIPEE17_5_FIX18M;29-01-2021;960;0;238;1;Spese correnti;3;Acquisto di beni e servizi;2;Acquisto di servizi;5;Utenze e canoni;4;Energia elettrica;01-02-2021;
209;1;158;"18,98";"18,98";ENEL ENERGIA SPA;82396527ED;SALDO Fatt.n. 004079185136  del 05/12/2020 FATTURA Descrizione Contratto CONSIPEE17_5_FIX18M;29-01-2021;960;0;238;1;Spese correnti;3;Acquisto di beni e servizi;2;Acquisto di servizi;5;Utenze e canoni;4;Energia elettrica;01-02-2021;
210;1;159;"376,46";"376,46";ENEL ENERGIA SPA;82396527ED;SALDO Fatt.n. 004079185137  del 05/12/2020 FATTURA Descrizione Contratto CONSIPEE17_5_FIX18M;29-01-2021;960;0;238;1;Spese correnti;3;Acquisto di beni e servizi;2;Acquisto di servizi;5;Utenze e canoni;4;Energia elettrica;01-02-2021;
211;1;160;"270,00";"270,00";ENEL ENERGIA SPA;82396527ED;SALDO Fatt.n. 004079185138  del 05/12/2020 FATTURA Descrizione Contratto CONSIPEE17_5_FIX18M;29-01-2021;960;0;238;1;Spese correnti;3;Acquisto di beni e servizi;2;Acquisto di servizi;5;Utenze e canoni;4;Energia elettrica;01-02-2021;
212;1;161;"55,90";"55,90";ENEL ENERGIA SPA;82396527ED;SALDO Fatt.n. 004079185139  del 05/12/2020 FATTURA Descrizione Contratto CONSIPEE17_5_FIX18M;29-01-2021;960;0;238;1;Spese correnti;3;Acquisto di beni e servizi;2;Acquisto di servizi;5;Utenze e canoni;4;Energia elettrica;01-02-2021;
213;1;162;"20,97";"20,97";ENEL ENERGIA SPA;82396527ED;SALDO Fatt.n. 004079185140  del 05/12/2020 FATTURA Descrizione Contratto CONSIPEE17_5_FIX18M;29-01-2021;960;0;238;1;Spese correnti;3;Acquisto di beni e servizi;2;Acquisto di servizi;5;Utenze e canoni;4;Energia elettrica;01-02-2021;
214;1;163;"83,41";"83,41";ENEL ENERGIA SPA;82396527ED;SALDO Fatt.n. 004079185141  del 05/12/2020 FATTURA Descrizione Contratto CONSIPEE17_5_FIX18M;29-01-2021;960;0;238;1;Spese correnti;3;Acquisto di beni e servizi;2;Acquisto di servizi;5;Utenze e canoni;4;Energia elettrica;01-02-2021;
215;1;164;"625,41";"625,41";ENEL ENERGIA SPA;82396527ED;SALDO Fatt.n. 004079185142  del 05/12/2020 FATTURA Descrizione Contratto CONSIPEE17_5_FIX18M;29-01-2021;960;0;238;1;Spese correnti;3;Acquisto di beni e servizi;2;Acquisto di servizi;5;Utenze e canoni;4;Energia elettrica;01-02-2021;
216;1;165;"899,08";"899,08";ENEL ENERGIA SPA;82396527ED;SALDO Fatt.n. 004079185144  del 05/12/2020 FATTURA Descrizione Contratto CONSIPEE17_5_FIX18M;29-01-2021;886;0;235;1;Spese correnti;3;Acquisto di beni e servizi;2;Acquisto di servizi;5;Utenze e canoni;4;Energia elettrica;01-02-2021;
217;1;166;"705,09";"705,09";ENEL ENERGIA SPA;82396527ED;SALDO Fatt.n. 004079185145  del 05/12/2020 FATTURA Descrizione Contratto CONSIPEE17_5_FIX18M;29-01-2021;960;0;238;1;Spese correnti;3;Acquisto di beni e servizi;2;Acquisto di servizi;5;Utenze e canoni;4;Energia elettrica;01-02-2021;
218;1;167;"105,77";"105,77";ENEL ENERGIA SPA;82396527ED;SALDO Fatt.n. 004079185146  del 05/12/2020 FATTURA Descrizione Contratto CONSIPEE17_5_FIX18M;29-01-2021;960;0;238;1;Spese correnti;3;Acquisto di beni e servizi;2;Acquisto di servizi;5;Utenze e canoni;4;Energia elettrica;01-02-2021;
219;1;168;"103,07";"103,07";ENEL ENERGIA SPA;82396527ED;SALDO Fatt.n. 004079185147  del 05/12/2020 FATTURA Descrizione Contratto CONSIPEE17_5_FIX18M;29-01-2021;960;0;238;1;Spese correnti;3;Acquisto di beni e servizi;2;Acquisto di servizi;5;Utenze e canoni;4;Energia elettrica;01-02-2021;
220;1;169;"203,35";"203,35";ENEL ENERGIA SPA;82396527ED;SALDO Fatt.n. 004079185148  del 05/12/2020 FATTURA Descrizione Contratto CONSIPEE17_5_FIX18M;29-01-2021;885;0;229;1;Spese correnti;3;Acquisto di beni e servizi;2;Acquisto di servizi;5;Utenze e canoni;4;Energia elettrica;01-02-2021;
221;1;170;"555,06";"555,06";ENEL ENERGIA SPA;82396527ED;SALDO Fatt.n. 004079185149  del 05/12/2020 FATTURA Descrizione Contratto CONSIPEE17_5_FIX18M;29-01-2021;960;0;238;1;Spese correnti;3;Acquisto di beni e servizi;2;Acquisto di servizi;5;Utenze e canoni;4;Energia elettrica;01-02-2021;
222;1;171;"9,26";"9,26";ENEL ENERGIA SPA;82396527ED;SALDO Fatt.n. 004079185150  del 05/12/2020 FATTURA Descrizione Contratto CONSIPEE17_5_FIX18M;29-01-2021;354;0;237;1;Spese correnti;3;Acquisto di beni e servizi;2;Acquisto di servizi;5;Utenze e canoni;4;Energia elettrica;01-02-2021;
223;1;21;"404,92";"404,92";SOENERGY SRL;827398004C;SOGGETTI DIVERSI-PAGAMENTO ADUE                COD DISP 01210105013OSQ NOME  SOENERGY S R L MANDATO        99Z1610053624A299 PFM 5609620 Fattura 201368522 del 14 12 20 Scad 15 0  ACCONTO (P. 18 -R. 21 del 15/01/2021);29-01-2021;582;0;292;1;Spese correnti;3;Acquisto di beni e servizi;2;Acquisto di servizi;5;Utenze e canoni;6;Gas;01-02-2021;
224;1;172;"89,08";"89,08";SOENERGY SRL;827398004C;SALDO Fatt.n. 201368522  del 14/12/2020 FORNITURA GAS;29-01-2021;582;0;292;1;Spese correnti;3;Acquisto di beni e servizi;2;Acquisto di servizi;5;Utenze e canoni;6;Gas;01-02-2021;
225;1;18;"79,51";"79,51";SOENERGY SRL;827398004C;SOGGETTI DIVERSI-PAGAMENTO ADUE                COD DISP 01210105013ORO NOME  SOENERGY S R L MANDATO        99Z1610053624A299 PFM 5609621 Fattura 201368523 del 14 12 20 Scad 15 0  ACCONTO (P. 15 -R. 18 del 15/01/2021);29-01-2021;112;0;289;1;Spese correnti;3;Acquisto di beni e servizi;2;Acquisto di servizi;5;Utenze e canoni;6;Gas;01-02-2021;
226;1;173;"17,49";"17,49";SOENERGY SRL;827398004C;SALDO Fatt.n. 201368523  del 14/12/2020 FORNITURA GAS;29-01-2021;112;0;289;1;Spese correnti;3;Acquisto di beni e servizi;2;Acquisto di servizi;5;Utenze e canoni;6;Gas;01-02-2021;
227;1;22;"429,09";"429,09";SOENERGY SRL;827398004C;SOGGETTI DIVERSI-PAGAMENTO ADUE                COD DISP 01210105013OT7 NOME  SOENERGY S R L MANDATO        99Z1610053624A299 PFM 5609622 Fattura 201368524 del 14 12 20 Scad 15 0  ACCONTO (P. 19 -R. 22 del 15/01/2021);29-01-2021;888;0;296;1;Spese correnti;3;Acquisto di beni e servizi;2;Acquisto di servizi;5;Utenze e canoni;6;Gas;01-02-2021;
228;1;174;"94,40";"94,40";SOENERGY SRL;827398004C;SALDO Fatt.n. 201368524  del 14/12/2020 FATTURA FORNITURA GAS;29-01-2021;888;0;296;1;Spese correnti;3;Acquisto di beni e servizi;2;Acquisto di servizi;5;Utenze e canoni;6;Gas;01-02-2021;
229;1;23;"1.547,44";"1.547,44";SOENERGY SRL;827398004C;SOGGETTI DIVERSI-PAGAMENTO ADUE                COD DISP 01210105013OWO NOME  SOENERGY S R L MANDATO        99Z1610053624A299 PFM 5609618 Fattura 201368520 del 14 12 20 Scad 15 0  ACCONTO (P. 20 -R. 23 del 15/01/2021);29-01-2021;542;0;291;1;Spese correnti;3;Acquisto di beni e servizi;2;Acquisto di servizi;5;Utenze e canoni;6;Gas;01-02-2021;
230;1;175;"340,44";"340,44";SOENERGY SRL;827398004C;SALDO Fatt.n. 201368520  del 14/12/2020 FATTURA FORNITURA GAS;29-01-2021;542;0;291;1;Spese correnti;3;Acquisto di beni e servizi;2;Acquisto di servizi;5;Utenze e canoni;6;Gas;01-02-2021;
231;1;20;"778,09";"778,09";SOENERGY SRL;827398004C;SOGGETTI DIVERSI-PAGAMENTO ADUE                COD DISP 01210105013OVG NOME  SOENERGY S R L MANDATO        99Z1610053624A299 PFM 5609617 Fattura 201368519 del 14 12 20 Scad 15 0  ACCONTO (P. 17 -R. 20 del 15/01/2021);29-01-2021;353;0;293;1;Spese correnti;3;Acquisto di beni e servizi;2;Acquisto di servizi;5;Utenze e canoni;6;Gas;01-02-2021;
232;1;176;"-0,87";"170,27";SOENERGY SRL;827398004C;SALDO Fatt.n. 201218220  del 13/07/2020 FORNITURA GAS;29-01-2021;353;0;293;1;Spese correnti;3;Acquisto di beni e servizi;2;Acquisto di servizi;5;Utenze e canoni;6;Gas;01-02-2021;
232;2;176;"171,14";"170,27";SOENERGY SRL;827398004C;SALDO Fatt.n. 201368519  del 14/12/2020 FORNITURA GAS;29-01-2021;353;0;293;1;Spese correnti;3;Acquisto di beni e servizi;2;Acquisto di servizi;5;Utenze e canoni;6;Gas;01-02-2021;
233;1;19;"393,74";"393,74";SOENERGY SRL;827398004C;SOGGETTI DIVERSI-PAGAMENTO ADUE                COD DISP 01210105013OS4 NOME  SOENERGY S R L MANDATO        99Z1610053624A299 PFM 5609623 Fattura 201368525 del 14 12 20 Scad 15 0  ACCONTO (P. 16 -R. 19 del 15/01/2021);29-01-2021;212;0;290;1;Spese correnti;3;Acquisto di beni e servizi;2;Acquisto di servizi;5;Utenze e canoni;6;Gas;01-02-2021;
234;1;177;"-1,10";"85,52";SOENERGY SRL;827398004C;SALDO Fatt.n. 201208186  del 13/07/2020 FORNITURA GAS;29-01-2021;212;0;290;1;Spese correnti;3;Acquisto di beni e servizi;2;Acquisto di servizi;5;Utenze e canoni;6;Gas;01-02-2021;
234;2;177;"86,62";"85,52";SOENERGY SRL;827398004C;SALDO Fatt.n. 201368525  del 14/12/2020 FATTURA FORNITURA GAS;29-01-2021;212;0;290;1;Spese correnti;3;Acquisto di beni e servizi;2;Acquisto di servizi;5;Utenze e canoni;6;Gas;01-02-2021;
235;1;24;"1.270,51";"1.270,51";SOENERGY SRL;827398004C;SOGGETTI DIVERSI-PAGAMENTO ADUE                COD DISP 01210105013OW1 NOME  SOENERGY S R L MANDATO        99Z1610053624A299 PFM 5609624 Fattura 201368526 del 14 12 20 Scad 15 0  ACCONTO (P. 21 -R. 24 del 15/01/2021);29-01-2021;887;0;295;1;Spese correnti;3;Acquisto di beni e servizi;2;Acquisto di servizi;5;Utenze e canoni;6;Gas;01-02-2021;
236;1;178;"-158,05";"121,46";SOENERGY SRL;827398004C;SALDO Fatt.n. 201027989  del 13/02/2020 FORNITURA GAS;29-01-2021;887;0;295;1;Spese correnti;3;Acquisto di beni e servizi;2;Acquisto di servizi;5;Utenze e canoni;6;Gas;01-02-2021;
236;2;178;"279,51";"121,46";SOENERGY SRL;827398004C;SALDO Fatt.n. 201368526  del 14/12/2020 FATTURA FORNITURA GAS;29-01-2021;887;0;295;1;Spese correnti;3;Acquisto di beni e servizi;2;Acquisto di servizi;5;Utenze e canoni;6;Gas;01-02-2021;
237;1;25;"687,58";"687,58";SOENERGY SRL;827398004C;SOGGETTI DIVERSI-PAGAMENTO ADUE                COD DISP 01210105013OUZ NOME  SOENERGY S R L MANDATO        99Z1610053624A299 PFM 5609619 Fattura 201368521 del 14 12 20 Scad 15 0  ACCONTO (P. 22 -R. 25 del 15/01/2021);29-01-2021;884;0;294;1;Spese correnti;3;Acquisto di beni e servizi;2;Acquisto di servizi;5;Utenze e canoni;6;Gas;01-02-2021;
238;1;179;"-5,36";"145,91";SOENERGY SRL;827398004C;SALDO Fatt.n. 201158106  del 15/06/2020 FORNITURA GAS;29-01-2021;884;0;294;1;Spese correnti;3;Acquisto di beni e servizi;2;Acquisto di servizi;5;Utenze e canoni;6;Gas;01-02-2021;
238;2;179;"151,27";"145,91";SOENERGY SRL;827398004C;SALDO Fatt.n. 201368521  del 14/12/2020 FATTURA FORNITURA GAS;29-01-2021;884;0;294;1;Spese correnti;3;Acquisto di beni e servizi;2;Acquisto di servizi;5;Utenze e canoni;6;Gas;01-02-2021;
239;1;8;"22,82";"22,82";GP GLOBAL POWER SPA;ZBA2CCC2EF;SOGGETTI DIVERSI-PAGAMENTO ADUE B2B            COD DISP 012012230NADO2 NOME  GLOBAL POWER SPA MANDATO      AA5TZ1C7799 PFM 190005 021220 FEC 0 CIG CIGZBA2CCC2EF IBAN 10000030001  ACCONTO (P. 8 -R. 8 del 04/01/2021);30-01-2021;881;0;331;1;Spese correnti;3;Acquisto di beni e servizi;2;Acquisto di servizi;5;Utenze e canoni;4;Energia elettrica;02-02-2021;
240;1;181;"5,02";"5,02";GP GLOBAL POWER SPA;ZBA2CCC2EF;SALDO Fatt.n. V0/190005  del 02/12/2020 Fattura Energia Elettrica;30-01-2021;881;0;331;1;Spese correnti;3;Acquisto di beni e servizi;2;Acquisto di servizi;5;Utenze e canoni;4;Energia elettrica;02-02-2021;
241;1;287;"545,00";"545,00";MINISTERO DELL'ECONOMIA E DELLE FINANZE; ;VERSAMENTO IVA A DEBITO RELATIVA AL MESE DI GENNAIO 2021;02-02-2021;1070;0;75;1;Spese correnti;10;Altre spese correnti;3;Versamenti IVA a debito;1;Versamenti IVA a debito per le gestioni commerciali;1;Versamenti IVA a debito per le gestioni commerciali;12-02-2021;
243;1;182;"899,75";"899,75";ENEL ENERGIA SPA;82396527ED;SALDO Fatt.n. 004080643534  del 07/12/2020 FATTURA Descrizione Contratto CONSIPEE17_5_FIX18M PPP.611125420438.PPP;02-02-2021;881;0;234;1;Spese correnti;3;Acquisto di beni e servizi;2;Acquisto di servizi;5;Utenze e canoni;4;Energia elettrica;02-02-2021;
244;1;183;"240,51";"240,51";ENEL ENERGIA SPA;82396527ED;SALDO Fatt.n. 004079185155  del 05/12/2020 FATTURA Descrizione Contratto CONSIPEE17_5_FIX18M PPP.611125420438.PPP;02-02-2021;960;0;238;1;Spese correnti;3;Acquisto di beni e servizi;2;Acquisto di servizi;5;Utenze e canoni;4;Energia elettrica;02-02-2021;
245;1;184;"186,87";"186,87";ENEL ENERGIA SPA;82396527ED;SALDO Fatt.n. 004079185158  del 05/12/2020 FATTURA Descrizione Contratto CONSIPEE17_5_FIX18M PPP.611125420438.PPP;02-02-2021;960;0;238;1;Spese correnti;3;Acquisto di beni e servizi;2;Acquisto di servizi;5;Utenze e canoni;4;Energia elettrica;02-02-2021;
246;1;185;"426,73";"426,73";ENEL ENERGIA SPA;82396527ED;SALDO Fatt.n. 004079185151  del 05/12/2020 FATTURA Descrizione Contratto CONSIPEE17_5_FIX18M PPP.611125420438.PPP;02-02-2021;960;0;238;1;Spese correnti;3;Acquisto di beni e servizi;2;Acquisto di servizi;5;Utenze e canoni;4;Energia elettrica;02-02-2021;
247;1;186;"1.026,61";"1.026,61";ENEL ENERGIA SPA;82396527ED;SALDO Fatt.n. 004079185157  del 05/12/2020 FATTURA Descrizione Contratto CONSIPEE17_5_FIX18M PPP.611125420438.PPP;02-02-2021;960;0;238;1;Spese correnti;3;Acquisto di beni e servizi;2;Acquisto di servizi;5;Utenze e canoni;4;Energia elettrica;02-02-2021;
248;1;187;"186,05";"186,05";ENEL ENERGIA SPA;82396527ED;SALDO Fatt.n. 004079185159  del 05/12/2020 FATTURA Descrizione Contratto CONSIPEE17_5_FIX18M PPP.611125420438.PPP;02-02-2021;211;0;232;1;Spese correnti;3;Acquisto di beni e servizi;2;Acquisto di servizi;5;Utenze e canoni;4;Energia elettrica;02-02-2021;
249;1;188;"1.166,61";"1.166,61";ENEL ENERGIA SPA;82396527ED;SALDO Fatt.n. 004079185153  del 05/12/2020 FATTURA Descrizione Contratto CONSIPEE17_5_FIX18M PPP.611125420438.PPP;02-02-2021;960;0;238;1;Spese correnti;3;Acquisto di beni e servizi;2;Acquisto di servizi;5;Utenze e canoni;4;Energia elettrica;02-02-2021;
250;1;189;"2.477,91";"2.477,91";ENEL ENERGIA SPA;82396527ED;SALDO Fatt.n. 004079185162  del 05/12/2020 FATTURA Descrizione Contratto CONSIPEE17_5_FIX18M PPP.611125420438.PPP;02-02-2021;111;0;236;1;Spese correnti;3;Acquisto di beni e servizi;2;Acquisto di servizi;5;Utenze e canoni;4;Energia elettrica;02-02-2021;
251;1;190;"198,30";"198,30";ENEL ENERGIA SPA;82396527ED;SALDO Fatt.n. 004085514876  del 12/12/2020 FATTURA Descrizione Contratto CONSIPEE17_5_FIX18M PPP.611125420438.PPP;02-02-2021;960;0;238;1;Spese correnti;3;Acquisto di beni e servizi;2;Acquisto di servizi;5;Utenze e canoni;4;Energia elettrica;02-02-2021;
252;1;197;"15,51";"15,51";ENEL ENERGIA SPA;82396527ED;SALDO Fatt.n. 004079822332  del 06/12/2020 FATTURA Descrizione Contratto CONSIPEE17_5_FIX18M;04-02-2021;354;0;237;1;Spese correnti;3;Acquisto di beni e servizi;2;Acquisto di servizi;5;Utenze e canoni;4;Energia elettrica;05-02-2021;
253;1;198;"14,23";"14,23";ENEL ENERGIA SPA;82396527ED;SALDO Fatt.n. 004079822331  del 06/12/2020 FATTURA Descrizione Contratto CONSIPEE17_5_FIX18M;04-02-2021;354;0;237;1;Spese correnti;3;Acquisto di beni e servizi;2;Acquisto di servizi;5;Utenze e canoni;4;Energia elettrica;05-02-2021;
254;1;199;"15,41";"15,41";ENEL ENERGIA SPA;82396527ED;SALDO Fatt.n. 004079185164  del 05/12/2020 FATTURA Descrizione Contratto CONSIPEE17_5_FIX18M;04-02-2021;354;0;237;1;Spese correnti;3;Acquisto di beni e servizi;2;Acquisto di servizi;5;Utenze e canoni;4;Energia elettrica;05-02-2021;
255;1;200;"14,23";"14,23";ENEL ENERGIA SPA;82396527ED;SALDO Fatt.n. 004079185163  del 05/12/2020 FATTURA Descrizione Contratto CONSIPEE17_5_FIX18M;04-02-2021;354;0;237;1;Spese correnti;3;Acquisto di beni e servizi;2;Acquisto di servizi;5;Utenze e canoni;4;Energia elettrica;05-02-2021;
256;1;201;"88,19";"88,19";ENEL ENERGIA SPA;82396527ED;SALDO Fatt.n. 004079185161  del 05/12/2020 FATTURA Descrizione Contratto CONSIPEE17_5_FIX18M;04-02-2021;354;0;237;1;Spese correnti;3;Acquisto di beni e servizi;2;Acquisto di servizi;5;Utenze e canoni;4;Energia elettrica;05-02-2021;
257;1;202;"6,72";"6,72";ENEL ENERGIA SPA;82396527ED;SALDO Fatt.n. 004079185160  del 05/12/2020 FATTURA Descrizione Contratto CONSIPEE17_5_FIX18M;04-02-2021;960;0;238;1;Spese correnti;3;Acquisto di beni e servizi;2;Acquisto di servizi;5;Utenze e canoni;4;Energia elettrica;05-02-2021;
258;1;203;"4,94";"4,94";ENEL ENERGIA SPA;82396527ED;ACCONTO Fatt.n. 004079185156  del 05/12/2020 FATTURA Descrizione Contratto CONSIPEE17_5_FIX18M;04-02-2021;354;0;237;1;Spese correnti;3;Acquisto di beni e servizi;2;Acquisto di servizi;5;Utenze e canoni;4;Energia elettrica;05-02-2021;
259;1;204;"17,42";"17,42";ENEL ENERGIA SPA;82396527ED;SALDO Fatt.n. 004079185156  del 05/12/2020 FATTURA Descrizione Contratto CONSIPEE17_5_FIX18M;04-02-2021;354;0;237;1;Spese correnti;3;Acquisto di beni e servizi;2;Acquisto di servizi;5;Utenze e canoni;4;Energia elettrica;05-02-2021;
260;1;205;"86,32";"86,32";ENEL ENERGIA SPA;82396527ED;SALDO Fatt.n. 004079185154  del 05/12/2020 FATTURA Descrizione Contratto CONSIPEE17_5_FIX18M;04-02-2021;960;0;238;1;Spese correnti;3;Acquisto di beni e servizi;2;Acquisto di servizi;5;Utenze e canoni;4;Energia elettrica;05-02-2021;
261;1;206;"34,43";"34,43";ENEL ENERGIA SPA;82396527ED;SALDO Fatt.n. 004079185152  del 05/12/2020 FATTURA Descrizione Contratto CONSIPEE17_5_FIX18M;04-02-2021;354;0;237;1;Spese correnti;3;Acquisto di beni e servizi;2;Acquisto di servizi;5;Utenze e canoni;4;Energia elettrica;05-02-2021;
262;1;207;"7,91";"7,91";ENEL ENERGIA SPA;82396527ED;SALDO Fatt.n. 004085514875  del 12/12/2020 FATTURA Descrizione Contratto CONSIPEE17_5_FIX18M;04-02-2021;960;0;238;1;Spese correnti;3;Acquisto di beni e servizi;2;Acquisto di servizi;5;Utenze e canoni;4;Energia elettrica;05-02-2021;
263;1;208;"1.938,09";"1.938,09";CONSORZIO DI BACINO VERONA DUE DEL QUADRILATERO;7910634DAD;SALDO Fatt.n. 001301/PA  del 16/12/2020 FATTURA;04-02-2021;840;0;496;1;Spese correnti;3;Acquisto di beni e servizi;2;Acquisto di servizi;15;Contratti di servizio pubblico;4;Contratti di servizio per la raccolta rifiuti;05-02-2021;
264;1;209;"853,41";"853,41";CONSORZIO DI BACINO VERONA DUE DEL QUADRILATERO;7910634DAD;SALDO Fatt.n. 001356/PA  del 17/12/2020 FATTURA;04-02-2021;840;0;496;1;Spese correnti;3;Acquisto di beni e servizi;2;Acquisto di servizi;15;Contratti di servizio pubblico;4;Contratti di servizio per la raccolta rifiuti;05-02-2021;
265;1;210;"21.370,55";"21.370,55";CONSORZIO DI BACINO VERONA DUE DEL QUADRILATERO;7910634DAD;SALDO Fatt.n. 001473/PA  del 31/12/2020 FATTURA;04-02-2021;840;0;496;1;Spese correnti;3;Acquisto di beni e servizi;2;Acquisto di servizi;15;Contratti di servizio pubblico;4;Contratti di servizio per la raccolta rifiuti;05-02-2021;
266;1;211;"26,86";"26,86";CONSORZIO DI BACINO VERONA DUE DEL QUADRILATERO;7910634DAD;SALDO Fatt.n. 001438/PA  del 31/12/2020 FATTURA;04-02-2021;840;0;496;1;Spese correnti;3;Acquisto di beni e servizi;2;Acquisto di servizi;15;Contratti di servizio pubblico;4;Contratti di servizio per la raccolta rifiuti;05-02-2021;
267;1;212;"16,68";"16,68";ENEL ENERGIA SPA;82396527ED;SALDO Fatt.n. 004100301277  del 08/01/2021 FATTURA Descrizione Contratto CONSIPEE17_5_FIX18M;04-02-2021;354;0;237;1;Spese correnti;3;Acquisto di beni e servizi;2;Acquisto di servizi;5;Utenze e canoni;4;Energia elettrica;05-02-2021;
268;1;213;"14,23";"14,23";ENEL ENERGIA SPA;82396527ED;SALDO Fatt.n. 004100301276  del 08/01/2021 FATTURA Descrizione Contratto CONSIPEE17_5_FIX18M;04-02-2021;354;0;237;1;Spese correnti;3;Acquisto di beni e servizi;2;Acquisto di servizi;5;Utenze e canoni;4;Energia elettrica;05-02-2021;
269;1;214;"2.716,87";"2.716,87";ENEL ENERGIA SPA;82396527ED;SALDO Fatt.n. 004100301275  del 08/01/2021 FATTURA Descrizione Contratto CONSIPEE17_5_FIX18M;04-02-2021;111;0;236;1;Spese correnti;3;Acquisto di beni e servizi;2;Acquisto di servizi;5;Utenze e canoni;4;Energia elettrica;05-02-2021;
270;1;215;"91,48";"91,48";ENEL ENERGIA SPA;82396527ED;SALDO Fatt.n. 004100301274  del 08/01/2021 FATTURA Descrizione Contratto CONSIPEE17_5_FIX18M;04-02-2021;354;0;237;1;Spese correnti;3;Acquisto di beni e servizi;2;Acquisto di servizi;5;Utenze e canoni;4;Energia elettrica;05-02-2021;
271;1;216;"7,56";"7,56";ENEL ENERGIA SPA;82396527ED;SALDO Fatt.n. 004100301273  del 08/01/2021 FATTURA Descrizione Contratto CONSIPEE17_5_FIX18M;04-02-2021;960;0;238;1;Spese correnti;3;Acquisto di beni e servizi;2;Acquisto di servizi;5;Utenze e canoni;4;Energia elettrica;05-02-2021;
272;1;217;"190,75";"190,75";ENEL ENERGIA SPA;82396527ED;SALDO Fatt.n. 004100301272  del 08/01/2021 FATTURA Descrizione Contratto CONSIPEE17_5_FIX18M;04-02-2021;211;0;232;1;Spese correnti;3;Acquisto di beni e servizi;2;Acquisto di servizi;5;Utenze e canoni;4;Energia elettrica;05-02-2021;
273;1;218;"202,74";"202,74";ENEL ENERGIA SPA;82396527ED;SALDO Fatt.n. 004100301271  del 08/01/2021 FATTURA Descrizione Contratto CONSIPEE17_5_FIX18M;04-02-2021;960;0;238;1;Spese correnti;3;Acquisto di beni e servizi;2;Acquisto di servizi;5;Utenze e canoni;4;Energia elettrica;05-02-2021;
274;1;219;"1.142,57";"1.142,57";ENEL ENERGIA SPA;82396527ED;SALDO Fatt.n. 004100301270  del 08/01/2021 FATTURA Descrizione Contratto CONSIPEE17_5_FIX18M;04-02-2021;960;0;238;1;Spese correnti;3;Acquisto di beni e servizi;2;Acquisto di servizi;5;Utenze e canoni;4;Energia elettrica;05-02-2021;
275;1;220;"22,36";"22,36";ENEL ENERGIA SPA;82396527ED;SALDO Fatt.n. 004100301269  del 08/01/2021 FATTURA Descrizione Contratto CONSIPEE17_5_FIX18M;04-02-2021;354;0;237;1;Spese correnti;3;Acquisto di beni e servizi;2;Acquisto di servizi;5;Utenze e canoni;4;Energia elettrica;05-02-2021;
276;1;221;"303,89";"303,89";ENEL ENERGIA SPA;82396527ED;SALDO Fatt.n. 004100301268  del 08/01/2021 FATTURA Descrizione Contratto CONSIPEE17_5_FIX18M;04-02-2021;960;0;238;1;Spese correnti;3;Acquisto di beni e servizi;2;Acquisto di servizi;5;Utenze e canoni;4;Energia elettrica;05-02-2021;
277;1;222;"96,48";"96,48";ENEL ENERGIA SPA;82396527ED;SALDO Fatt.n. 004100301267  del 08/01/2021 FATTURA Descrizione Contratto CONSIPEE17_5_FIX18M;04-02-2021;960;0;238;1;Spese correnti;3;Acquisto di beni e servizi;2;Acquisto di servizi;5;Utenze e canoni;4;Energia elettrica;05-02-2021;
278;1;223;"1.273,24";"1.273,24";ENEL ENERGIA SPA;82396527ED;SALDO Fatt.n. 004100301266  del 08/01/2021 FATTURA Descrizione Contratto CONSIPEE17_5_FIX18M;04-02-2021;960;0;238;1;Spese correnti;3;Acquisto di beni e servizi;2;Acquisto di servizi;5;Utenze e canoni;4;Energia elettrica;05-02-2021;
279;1;224;"35,82";"35,82";ENEL ENERGIA SPA;82396527ED;SALDO Fatt.n. 004100301265  del 08/01/2021 FATTURA Descrizione Contratto CONSIPEE17_5_FIX18M;04-02-2021;354;0;237;1;Spese correnti;3;Acquisto di beni e servizi;2;Acquisto di servizi;5;Utenze e canoni;4;Energia elettrica;05-02-2021;
280;1;225;"463,12";"463,12";ENEL ENERGIA SPA;82396527ED;SALDO Fatt.n. 004100301264  del 08/01/2021 FATTURA Descrizione Contratto CONSIPEE17_5_FIX18M;04-02-2021;960;0;238;1;Spese correnti;3;Acquisto di beni e servizi;2;Acquisto di servizi;5;Utenze e canoni;4;Energia elettrica;05-02-2021;
281;1;226;"6,94";"6,94";ENEL ENERGIA SPA;82396527ED;SALDO Fatt.n. 004100301263  del 08/01/2021 FATTURA Descrizione Contratto CONSIPEE17_5_FIX18M;04-02-2021;354;0;237;1;Spese correnti;3;Acquisto di beni e servizi;2;Acquisto di servizi;5;Utenze e canoni;4;Energia elettrica;05-02-2021;
282;1;227;"628,93";"628,93";ENEL ENERGIA SPA;82396527ED;SALDO Fatt.n. 004100301262  del 08/01/2021 FATTURA Descrizione Contratto CONSIPEE17_5_FIX18M;04-02-2021;960;0;238;1;Spese correnti;3;Acquisto di beni e servizi;2;Acquisto di servizi;5;Utenze e canoni;4;Energia elettrica;05-02-2021;
283;1;228;"320,46";"320,46";ENEL ENERGIA SPA;82396527ED;SALDO Fatt.n. 004100301261  del 08/01/2021 FATTURA Descrizione Contratto CONSIPEE17_5_FIX18M;04-02-2021;885;0;229;1;Spese correnti;3;Acquisto di beni e servizi;2;Acquisto di servizi;5;Utenze e canoni;4;Energia elettrica;05-02-2021;
284;1;229;"113,03";"113,03";ENEL ENERGIA SPA;82396527ED;SALDO Fatt.n. 004100301260  del 08/01/2021 FATTURA Descrizione Contratto CONSIPEE17_5_FIX18M;04-02-2021;960;0;238;1;Spese correnti;3;Acquisto di beni e servizi;2;Acquisto di servizi;5;Utenze e canoni;4;Energia elettrica;05-02-2021;
285;1;230;"118,25";"118,25";ENEL ENERGIA SPA;82396527ED;SALDO Fatt.n. 004100301259  del 08/01/2021 FATTURA Descrizione Contratto CONSIPEE17_5_FIX18M;04-02-2021;960;0;238;1;Spese correnti;3;Acquisto di beni e servizi;2;Acquisto di servizi;5;Utenze e canoni;4;Energia elettrica;05-02-2021;
286;1;231;"768,37";"768,37";ENEL ENERGIA SPA;82396527ED;SALDO Fatt.n. 004100301258  del 08/01/2021 FATTURA Descrizione Contratto CONSIPEE17_5_FIX18M;04-02-2021;960;0;238;1;Spese correnti;3;Acquisto di beni e servizi;2;Acquisto di servizi;5;Utenze e canoni;4;Energia elettrica;05-02-2021;
287;1;232;"961,54";"961,54";ENEL ENERGIA SPA;82396527ED;SALDO Fatt.n. 004100301257  del 08/01/2021 FATTURA Descrizione Contratto CONSIPEE17_5_FIX18M;04-02-2021;886;0;235;1;Spese correnti;3;Acquisto di beni e servizi;2;Acquisto di servizi;5;Utenze e canoni;4;Energia elettrica;05-02-2021;
288;1;233;"697,93";"697,93";ENEL ENERGIA SPA;82396527ED;SALDO Fatt.n. 004100301255  del 08/01/2021 FATTURA Descrizione Contratto CONSIPEE17_5_FIX18M;04-02-2021;960;0;238;1;Spese correnti;3;Acquisto di beni e servizi;2;Acquisto di servizi;5;Utenze e canoni;4;Energia elettrica;05-02-2021;
289;1;234;"94,38";"94,38";ENEL ENERGIA SPA;82396527ED;SALDO Fatt.n. 004100301254  del 08/01/2021 FATTURA Descrizione Contratto CONSIPEE17_5_FIX18M;04-02-2021;960;0;238;1;Spese correnti;3;Acquisto di beni e servizi;2;Acquisto di servizi;5;Utenze e canoni;4;Energia elettrica;05-02-2021;
290;1;235;"22,41";"22,41";ENEL ENERGIA SPA;82396527ED;SALDO Fatt.n. 004100301253  del 08/01/2021 FATTURA Descrizione Contratto CONSIPEE17_5_FIX18M;04-02-2021;960;0;238;1;Spese correnti;3;Acquisto di beni e servizi;2;Acquisto di servizi;5;Utenze e canoni;4;Energia elettrica;05-02-2021;
291;1;236;"62,12";"62,12";ENEL ENERGIA SPA;82396527ED;SALDO Fatt.n. 004100301252  del 08/01/2021 FATTURA Descrizione Contratto CONSIPEE17_5_FIX18M;04-02-2021;960;0;238;1;Spese correnti;3;Acquisto di beni e servizi;2;Acquisto di servizi;5;Utenze e canoni;4;Energia elettrica;05-02-2021;
292;1;237;"912,54";"912,54";ENEL ENERGIA SPA;82396527ED;SALDO Fatt.n. 004100301251  del 08/01/2021 FATTURA Descrizione Contratto CONSIPEE17_5_FIX18M;04-02-2021;881;0;234;1;Spese correnti;3;Acquisto di beni e servizi;2;Acquisto di servizi;5;Utenze e canoni;4;Energia elettrica;05-02-2021;
293;1;238;"297,52";"297,52";ENEL ENERGIA SPA;82396527ED;SALDO Fatt.n. 004100301250  del 08/01/2021 FATTURA Descrizione Contratto CONSIPEE17_5_FIX18M;04-02-2021;960;0;238;1;Spese correnti;3;Acquisto di beni e servizi;2;Acquisto di servizi;5;Utenze e canoni;4;Energia elettrica;05-02-2021;
294;1;239;"404,23";"404,23";ENEL ENERGIA SPA;82396527ED;SALDO Fatt.n. 004100301249  del 08/01/2021 FATTURA Descrizione Contratto CONSIPEE17_5_FIX18M;04-02-2021;960;0;238;1;Spese correnti;3;Acquisto di beni e servizi;2;Acquisto di servizi;5;Utenze e canoni;4;Energia elettrica;05-02-2021;
295;1;240;"21,15";"21,15";ENEL ENERGIA SPA;82396527ED;SALDO Fatt.n. 004100301248  del 08/01/2021 FATTURA Descrizione Contratto CONSIPEE17_5_FIX18M;04-02-2021;960;0;238;1;Spese correnti;3;Acquisto di beni e servizi;2;Acquisto di servizi;5;Utenze e canoni;4;Energia elettrica;05-02-2021;
296;1;241;"195,94";"195,94";ENEL ENERGIA SPA;82396527ED;SALDO Fatt.n. 004100301247  del 08/01/2021 FATTURA Descrizione Contratto CONSIPEE17_5_FIX18M;04-02-2021;960;0;238;1;Spese correnti;3;Acquisto di beni e servizi;2;Acquisto di servizi;5;Utenze e canoni;4;Energia elettrica;05-02-2021;
297;1;242;"414,82";"414,82";ENEL ENERGIA SPA;82396527ED;SALDO Fatt.n. 004100301246  del 08/01/2021 FATTURA Descrizione Contratto CONSIPEE17_5_FIX18M;04-02-2021;960;0;238;1;Spese correnti;3;Acquisto di beni e servizi;2;Acquisto di servizi;5;Utenze e canoni;4;Energia elettrica;05-02-2021;
298;1;243;"139,85";"139,85";ENEL ENERGIA SPA;82396527ED;SALDO Fatt.n. 004100301245  del 08/01/2021 FATTURA Descrizione Contratto CONSIPEE17_5_FIX18M;04-02-2021;354;0;237;1;Spese correnti;3;Acquisto di beni e servizi;2;Acquisto di servizi;5;Utenze e canoni;4;Energia elettrica;05-02-2021;
299;1;244;"61,24";"61,24";ENEL ENERGIA SPA;82396527ED;SALDO Fatt.n. 004100301244  del 08/01/2021 FATTURA Descrizione Contratto CONSIPEE17_5_FIX18M;04-02-2021;960;0;238;1;Spese correnti;3;Acquisto di beni e servizi;2;Acquisto di servizi;5;Utenze e canoni;4;Energia elettrica;05-02-2021;
300;1;245;"190,10";"190,10";ENEL ENERGIA SPA;82396527ED;SALDO Fatt.n. 004100301243  del 08/01/2021 FATTURA Descrizione Contratto CONSIPEE17_5_FIX18M;04-02-2021;960;0;238;1;Spese correnti;3;Acquisto di beni e servizi;2;Acquisto di servizi;5;Utenze e canoni;4;Energia elettrica;05-02-2021;
301;1;246;"510,01";"510,01";ENEL ENERGIA SPA;82396527ED;SALDO Fatt.n. 004100301242  del 08/01/2021 FATTURA Descrizione Contratto CONSIPEE17_5_FIX18M;04-02-2021;960;0;238;1;Spese correnti;3;Acquisto di beni e servizi;2;Acquisto di servizi;5;Utenze e canoni;4;Energia elettrica;05-02-2021;
302;1;247;"417,33";"417,33";ENEL ENERGIA SPA;82396527ED;SALDO Fatt.n. 004100301241  del 08/01/2021 FATTURA Descrizione Contratto CONSIPEE17_5_FIX18M;04-02-2021;960;0;238;1;Spese correnti;3;Acquisto di beni e servizi;2;Acquisto di servizi;5;Utenze e canoni;4;Energia elettrica;05-02-2021;
303;1;248;"98,47";"98,47";ENEL ENERGIA SPA;82396527ED;SALDO Fatt.n. 004100301240  del 08/01/2021 FATTURA Descrizione Contratto CONSIPEE17_5_FIX18M;04-02-2021;951;0;231;1;Spese correnti;3;Acquisto di beni e servizi;2;Acquisto di servizi;5;Utenze e canoni;4;Energia elettrica;05-02-2021;
304;1;249;"12,51";"12,51";ENEL ENERGIA SPA;82396527ED;SALDO Fatt.n. 004100301239  del 08/01/2021 FATTURA Descrizione Contratto CONSIPEE17_5_FIX18M;04-02-2021;960;0;238;1;Spese correnti;3;Acquisto di beni e servizi;2;Acquisto di servizi;5;Utenze e canoni;4;Energia elettrica;05-02-2021;
305;1;250;"1.348,84";"1.348,84";ENEL ENERGIA SPA;82396527ED;SALDO Fatt.n. 004100301238  del 08/01/2021 FATTURA Descrizione Contratto CONSIPEE17_5_FIX18M;04-02-2021;541;0;230;1;Spese correnti;3;Acquisto di beni e servizi;2;Acquisto di servizi;5;Utenze e canoni;4;Energia elettrica;05-02-2021;
306;1;251;"917,39";"917,39";ENEL ENERGIA SPA;82396527ED;SALDO Fatt.n. 004100301237  del 08/01/2021 Descrizione Contratto CONSIPEE17_5_FIX18M;04-02-2021;960;0;238;1;Spese correnti;3;Acquisto di beni e servizi;2;Acquisto di servizi;5;Utenze e canoni;4;Energia elettrica;05-02-2021;
307;1;252;"555,37";"555,37";ENEL ENERGIA SPA;82396527ED;SALDO Fatt.n. 004100301234  del 08/01/2021 FATTURA Descrizione Contratto CONSIPEE17_5_FIX18M;04-02-2021;960;0;238;1;Spese correnti;3;Acquisto di beni e servizi;2;Acquisto di servizi;5;Utenze e canoni;4;Energia elettrica;05-02-2021;
308;1;253;"155,18";"155,18";ENEL ENERGIA SPA;82396527ED;SALDO Fatt.n. 004100301236  del 08/01/2021 FATTURA Descrizione Contratto CONSIPEE17_5_FIX18M;04-02-2021;960;0;238;1;Spese correnti;3;Acquisto di beni e servizi;2;Acquisto di servizi;5;Utenze e canoni;4;Energia elettrica;05-02-2021;
309;1;254;"49,04";"49,04";ENEL ENERGIA SPA;82396527ED;SALDO Fatt.n. 004100301235  del 08/01/2021 FATTURA Descrizione Contratto CONSIPEE17_5_FIX18M;04-02-2021;354;0;237;1;Spese correnti;3;Acquisto di beni e servizi;2;Acquisto di servizi;5;Utenze e canoni;4;Energia elettrica;05-02-2021;
310;1;255;"627,84";"627,84";ENEL ENERGIA SPA;82396527ED;SALDO Fatt.n. 004100301233  del 08/01/2021 FATTURA Descrizione Contratto CONSIPEE17_5_FIX18M;04-02-2021;960;0;238;1;Spese correnti;3;Acquisto di beni e servizi;2;Acquisto di servizi;5;Utenze e canoni;4;Energia elettrica;05-02-2021;
311;1;256;"73,96";"73,96";ENEL ENERGIA SPA;82396527ED;SALDO Fatt.n. 004100301232  del 08/01/2021 FATTURA Descrizione Contratto CONSIPEE17_5_FIX18M;04-02-2021;960;0;238;1;Spese correnti;3;Acquisto di beni e servizi;2;Acquisto di servizi;5;Utenze e canoni;4;Energia elettrica;05-02-2021;
312;1;257;"139,62";"139,62";ENEL ENERGIA SPA;82396527ED;SALDO Fatt.n. 004100301231  del 08/01/2021 FATTURA Descrizione Contratto CONSIPEE17_5_FIX18M;04-02-2021;960;0;238;1;Spese correnti;3;Acquisto di beni e servizi;2;Acquisto di servizi;5;Utenze e canoni;4;Energia elettrica;05-02-2021;
313;1;258;"1.268,58";"1.268,58";ENEL ENERGIA SPA;82396527ED;SALDO Fatt.n. 004100301230  del 08/01/2021 FATTURA Descrizione Contratto CONSIPEE17_5_FIX18M;04-02-2021;960;0;238;1;Spese correnti;3;Acquisto di beni e servizi;2;Acquisto di servizi;5;Utenze e canoni;4;Energia elettrica;05-02-2021;
314;1;259;"671,39";"671,39";ENEL ENERGIA SPA;82396527ED;SALDO Fatt.n. 004100301228  del 08/01/2021 FATTURA Descrizione Contratto CONSIPEE17_5_FIX18M;04-02-2021;960;0;238;1;Spese correnti;3;Acquisto di beni e servizi;2;Acquisto di servizi;5;Utenze e canoni;4;Energia elettrica;05-02-2021;
315;1;260;"2.096,82";"2.096,82";ENEL ENERGIA SPA;82396527ED;SALDO Fatt.n. 004100301227  del 08/01/2021 FATTURA Descrizione Contratto CONSIPEE17_5_FIX18M;04-02-2021;581;0;233;1;Spese correnti;3;Acquisto di beni e servizi;2;Acquisto di servizi;5;Utenze e canoni;4;Energia elettrica;05-02-2021;
316;1;261;"235,20";"235,20";ENEL ENERGIA SPA;82396527ED;SALDO Fatt.n. 004100301226  del 08/01/2021 FATTURA Descrizione Contratto CONSIPEE17_5_FIX18M;04-02-2021;960;0;238;1;Spese correnti;3;Acquisto di beni e servizi;2;Acquisto di servizi;5;Utenze e canoni;4;Energia elettrica;05-02-2021;
317;1;262;"730,30";"730,30";ENEL ENERGIA SPA;82396527ED;SALDO Fatt.n. 004100301225  del 08/01/2021 FATTURA Descrizione Contratto CONSIPEE17_5_FIX18M;04-02-2021;960;0;238;1;Spese correnti;3;Acquisto di beni e servizi;2;Acquisto di servizi;5;Utenze e canoni;4;Energia elettrica;05-02-2021;
318;1;263;"3,20";"3,20";ENEL ENERGIA SPA;82396527ED;SALDO Fatt.n. 004105346094  del 13/01/2021 FATTURA Descrizione Contratto CONSIPEE17_5_FIX18M;04-02-2021;354;0;237;1;Spese correnti;3;Acquisto di beni e servizi;2;Acquisto di servizi;5;Utenze e canoni;4;Energia elettrica;05-02-2021;
319;1;264;"7,76";"7,76";ENEL ENERGIA SPA;82396527ED;SALDO Fatt.n. 004107008718  del 15/01/2021 FATTURA Descrizione Contratto CONSIPEE17_5_FIX18M;04-02-2021;960;0;238;1;Spese correnti;3;Acquisto di beni e servizi;2;Acquisto di servizi;5;Utenze e canoni;4;Energia elettrica;05-02-2021;
320;1;265;"212,38";"212,38";ENEL ENERGIA SPA;82396527ED;SALDO Fatt.n. 004107008719  del 15/01/2021 FATTURA Descrizione Contratto CONSIPEE17_5_FIX18M;04-02-2021;960;0;238;1;Spese correnti;3;Acquisto di beni e servizi;2;Acquisto di servizi;5;Utenze e canoni;4;Energia elettrica;05-02-2021;
321;1;266;"0,21";"0,21";ENEL ENERGIA SPA;82396527ED;SALDO Fatt.n. 004107008717  del 15/01/2021 FATTURA Descrizione Contratto CONSIPEE17_5_FIX18M;04-02-2021;960;0;238;1;Spese correnti;3;Acquisto di beni e servizi;2;Acquisto di servizi;5;Utenze e canoni;4;Energia elettrica;05-02-2021;
322;1;267;"401,45";"401,45";CIDIELLE COOPERATIVA SOCIALE;83634823AE;ACCONTO Fatt.n. 425/02  del 31/12/2020 FATTURA;05-02-2021;952;0;457;1;Spese correnti;3;Acquisto di beni e servizi;2;Acquisto di servizi;9;Manutenzione ordinaria e riparazioni;8;Manutenzione ordinaria e riparazioni di beni immobili;08-02-2021;
323;1;268;"5.019,02";"5.019,02";CIDIELLE COOPERATIVA SOCIALE;83634823AE;SALDO Fatt.n. 425/02  del 31/12/2020 FATTURA;05-02-2021;352;0;456;1;Spese correnti;3;Acquisto di beni e servizi;2;Acquisto di servizi;9;Manutenzione ordinaria e riparazioni;8;Manutenzione ordinaria e riparazioni di beni immobili;08-02-2021;
327;1;272;"292,80";"292,80";HALLEY VENETO SRL;Z422DE7F7F;SALDO Fatt.n. 1/201379  del 31/12/2020;05-02-2021;377;0;455;1;Spese correnti;3;Acquisto di beni e servizi;1;Acquisto di beni;2;Altri beni di consumo;6;Materiale informatico;08-02-2021;
328;1;285;"3.500,00";"3.500,00";POSTE ITALIANE SPA - ALT NORS EST - INCASSI MAAF;ZAC304B4CA;AFFRANCATRICE POSTALE. IMPEGNO DI SPESA E VERSAMENTO SU C/C POSTALE.;05-02-2021;105;0;71;1;Spese correnti;3;Acquisto di beni e servizi;2;Acquisto di servizi;16;Servizi amministrativi;2;Spese postali;11-02-2021;
329;1;273;"500,00";"500,00";ASSOCIAZIONE NOI CALDIERINO -  EX CIRC. ANSPI (ONLUS); ;LIQUIDAZIONE A CONSUNTIVO DEL CONTRIBUTO ECONOMICO ASSEGNATO CON DELIBERA DI GIUNTA COMUNALE N. 149/2020 A FAVORE DELLASSOCIAZIONE NOI CALDIERINO.;05-02-2021;891;2;729;1;Spese correnti;4;Trasferimenti correnti;4;Trasferimenti correnti a Istituzioni Sociali Private;1;Trasferimenti correnti a Istituzioni Sociali Private;1;Trasferimenti correnti a Istituzioni Sociali Private;08-02-2021;
330;1;274;"8.627,84";"8.627,84";NORO E GIRARDELLO STUDIO ASSOCIATO;ZFA2D6A61B;SALDO Fatt.n. 26  del 11/12/2020 FATTURA;05-02-2021;1188;0;378;2;Spese in conto capitale;2;Investimenti fissi lordi e acquisto di terreni;1;Beni materiali;9;Beni immobili;12;Infrastrutture stradali;08-02-2021;
331;1;275;"14.518,00";"14.518,00";TADIELLO GIUSEPPE SNC OPERE STRADALI;Z802DDF355;SALDO Fatt.n. 1  del 04/01/2021 FATTURA SISTEMAZIONE IDRAULICA Z.I.A.C.;05-02-2021;1163;0;377;2;Spese in conto capitale;2;Investimenti fissi lordi e acquisto di terreni;1;Beni materiali;9;Beni immobili;10;Infrastrutture idrauliche;08-02-2021;
341;1;276;"62,49";"62,49";ABACO SPA;7408612407;SALDO Fatt.n. 2020120004933  del 09/12/2020 FATTURA;06-02-2021;382;0;166;1;Spese correnti;3;Acquisto di beni e servizi;2;Acquisto di servizi;3;Aggi di riscossione;999;Altri aggi di riscossione n.a.c.;10-02-2021;
342;1;277;"13,69";"13,69";ABACO SPA;7408612407;SALDO Fatt.n. 2020140004375  del 04/12/2020 FATTURA;06-02-2021;843;0;663;1;Spese correnti;3;Acquisto di beni e servizi;2;Acquisto di servizi;3;Aggi di riscossione;999;Altri aggi di riscossione n.a.c.;10-02-2021;
343;1;278;"1.120,88";"1.120,88";CALOI VALENTINO;Z2B2A2173A;SALDO Fatt.n. 2  del 07/01/2021 FATTURA;09-02-2021;1582;1;490;2;Spese in conto capitale;2;Investimenti fissi lordi e acquisto di terreni;1;Beni materiali;9;Beni immobili;3;Fabbricati ad uso scolastico;10-02-2021;
344;1;279;"962,05";"962,05";SERIT SRL SERV. IGIENE TERRITORIO;7910634DAD;SALDO Fatt.n. 13/FEL  del 22/01/2021 FATTURA VENDITA PA;09-02-2021;840;0;495;1;Spese correnti;3;Acquisto di beni e servizi;2;Acquisto di servizi;15;Contratti di servizio pubblico;4;Contratti di servizio per la raccolta rifiuti;10-02-2021;
345;1;280;"36.851,43";"36.851,43";SERIT SRL SERV. IGIENE TERRITORIO;7910634DAD;SALDO Fatt.n. 46/FEL  del 26/01/2021 FATTURA VENDITA PA;09-02-2021;840;0;495;1;Spese correnti;3;Acquisto di beni e servizi;2;Acquisto di servizi;15;Contratti di servizio pubblico;4;Contratti di servizio per la raccolta rifiuti;10-02-2021;
346;1;281;"8.000,00";"8.000,00";ZAMPINI CARLO SRLS;Z4B2AB018F;SALDO Fatt.n. 2  del 26/01/2021 FATTURA;09-02-2021;142;0;642;1;Spese correnti;3;Acquisto di beni e servizi;2;Acquisto di servizi;99;Altri servizi;999;Altri servizi diversi n.a.c.;10-02-2021;
347;1;282;"2.314,80";"2.314,80";COOPERATIVA SOCIALE VENETA ONLUS;Z5E2729583;ACCONTO Fatt.n. 5/02  del 28/01/2021 FATTURA;09-02-2021;782;0;170;1;Spese correnti;3;Acquisto di beni e servizi;2;Acquisto di servizi;9;Manutenzione ordinaria e riparazioni;8;Manutenzione ordinaria e riparazioni di beni immobili;10-02-2021;
348;1;283;"125,20";"125,20";COOPERATIVA SOCIALE VENETA ONLUS;Z5E2729583;SALDO Fatt.n. 5/02  del 28/01/2021 FATTURA;09-02-2021;782;0;170;1;Spese correnti;3;Acquisto di beni e servizi;2;Acquisto di servizi;9;Manutenzione ordinaria e riparazioni;8;Manutenzione ordinaria e riparazioni di beni immobili;10-02-2021;
349;1;284;"2.440,00";"2.440,00";GIARDINI GIUNONE SNC; ;SALDO Fatt.n. 3  del 15/01/2021 FATTURA Sponsorizzazione per manutenzione area verde di corso a. de gasperi determina di impegno n.426/2017 di spesa per la ditta giardini giunone snc di colognola ai colli. det.80 del 26/07/17;09-02-2021;870;0;426;1;Spese correnti;3;Acquisto di beni e servizi;2;Acquisto di servizi;9;Manutenzione ordinaria e riparazioni;8;Manutenzione ordinaria e riparazioni di beni immobili;10-02-2021;
350;1;348;"-5.396,60";"11.460,59";CONSORZIO DI BACINO VERONA DUE DEL QUADRILATERO;7910634DAD;SALDO Fatt.n. 000700/PA  del 12/08/2020 NOTA DI CREDITO;16-02-2021;840;0;496;1;Spese correnti;3;Acquisto di beni e servizi;2;Acquisto di servizi;15;Contratti di servizio pubblico;4;Contratti di servizio per la raccolta rifiuti;17-02-2021;
350;2;348;"16.857,19";"11.460,59";CONSORZIO DI BACINO VERONA DUE DEL QUADRILATERO;7910634DAD;SALDO Fatt.n. 000059/PA  del 28/01/2021 FATTURA;16-02-2021;840;0;496;1;Spese correnti;3;Acquisto di beni e servizi;2;Acquisto di servizi;15;Contratti di servizio pubblico;4;Contratti di servizio per la raccolta rifiuti;17-02-2021;
351;1;349;"-122,00";"122,00";DALLA VECCHIA FABRIZIO & C.  SRL;Z43224D39F;SALDO Fatt.n. 210003/PA  del 12/02/2021 FATTURA CIG Z43224D39F;16-02-2021;292;0;118;1;Spese correnti;3;Acquisto di beni e servizi;2;Acquisto di servizi;9;Manutenzione ordinaria e riparazioni;1;"Manutenzione ordinaria e riparazioni di mezzi di trasporto ad uso civile, di sicurezza e ordine pubblico";17-02-2021;
351;2;349;"122,00";"122,00";DALLA VECCHIA FABRIZIO & C.  SRL;Z43224D39F;SALDO Fatt.n. 200008/PA  del 29/12/2020 FATTURA;16-02-2021;292;0;118;1;Spese correnti;3;Acquisto di beni e servizi;2;Acquisto di servizi;9;Manutenzione ordinaria e riparazioni;1;"Manutenzione ordinaria e riparazioni di mezzi di trasporto ad uso civile, di sicurezza e ordine pubblico";17-02-2021;
351;3;349;"122,00";"122,00";DALLA VECCHIA FABRIZIO & C.  SRL;Z43224D39F;SALDO Fatt.n. 210004/PA  del 12/02/2021 FATTURA;16-02-2021;292;0;118;1;Spese correnti;3;Acquisto di beni e servizi;2;Acquisto di servizi;9;Manutenzione ordinaria e riparazioni;1;"Manutenzione ordinaria e riparazioni di mezzi di trasporto ad uso civile, di sicurezza e ordine pubblico";17-02-2021;
352;1;350;"2.269,20";"2.269,20";COOPERATIVA SOCIALE VENETA ONLUS;Z902BC719A;SALDO Fatt.n. 14/02  del 30/01/2021 FATTURA;16-02-2021;782;0;239;1;Spese correnti;3;Acquisto di beni e servizi;2;Acquisto di servizi;9;Manutenzione ordinaria e riparazioni;8;Manutenzione ordinaria e riparazioni di beni immobili;17-02-2021;
353;1;351;"77,50";"77,50";CONSORZIO DI BACINO VERONA DUE DEL QUADRILATERO;7910634DAD;SALDO Fatt.n. 000008/PA  del 28/01/2021 FATTURA;16-02-2021;840;0;496;1;Spese correnti;3;Acquisto di beni e servizi;2;Acquisto di servizi;15;Contratti di servizio pubblico;4;Contratti di servizio per la raccolta rifiuti;17-02-2021;
354;1;352;"628,12";"628,12";RANCAN SNC DI RANCAN LAURA E ALESSANDRO & C;Z0F2B965AD;SALDO Fatt.n. 4/PA  del 29/01/2021 Contributo Ambientale Conai assolto.;16-02-2021;110;0;72;1;Spese correnti;3;Acquisto di beni e servizi;1;Acquisto di beni;2;Altri beni di consumo;1;"Carta, cancelleria e stampati";17-02-2021;
355;1;353;"247,05";"247,05";CONSORZIO AGRARIO DEL NORDEST;ZAC2D2B172;SALDO Fatt.n. 002183/V1  del 31/01/2021 FATTURA;16-02-2021;350;0;368;1;Spese correnti;3;Acquisto di beni e servizi;1;Acquisto di beni;2;Altri beni di consumo;999;Altri beni e materiali di consumo n.a.c.;17-02-2021;
356;1;354;"105,77";"105,77";LEGGERE SRL;Z7E2C5EA5A;SALDO Fatt.n. 1867  del 29/01/2021 ACQUISTO LIBRI BIBLIOTECA;16-02-2021;681;0;209;1;Spese correnti;3;Acquisto di beni e servizi;1;Acquisto di beni;1;"Giornali, riviste e pubblicazioni";2;Pubblicazioni;17-02-2021;
357;1;355;"97,60";"97,60";CIVIS SPA;Z362D7E2EA;SALDO Fatt.n. V9/0000468  del 08/02/2021 FATTURA;16-02-2021;357;0;401;1;Spese correnti;3;Acquisto di beni e servizi;2;Acquisto di servizi;13;Servizi ausiliari per il funzionamento dell'ente;1;"Servizi di sorveglianza, custodia e accoglienza";17-02-2021;
358;1;356;"182,96";"182,96";CONSORZIO DI BACINO VERONA DUE DEL QUADRILATERO;7910634DAD;SALDO Fatt.n. 000114/PA  del 05/02/2021 FATTURA;16-02-2021;840;0;496;1;Spese correnti;3;Acquisto di beni e servizi;2;Acquisto di servizi;15;Contratti di servizio pubblico;4;Contratti di servizio per la raccolta rifiuti;17-02-2021;
359;1;357;"188,74";"188,74";CONSORZIO DI BACINO VERONA DUE DEL QUADRILATERO;7910634DAD;SALDO Fatt.n. 000156/PA  del 05/02/2021 FATTURA;16-02-2021;840;0;496;1;Spese correnti;3;Acquisto di beni e servizi;2;Acquisto di servizi;15;Contratti di servizio pubblico;4;Contratti di servizio per la raccolta rifiuti;17-02-2021;
361;1;359;"80,20";"80,20";FOLETTO LUCIANO SRL;Z4B2981DE3;SALDO Fatt.n. 2021-E-0000002  del 30/01/2021 FATTURE ELETTRONICHE;16-02-2021;350;0;475;1;Spese correnti;3;Acquisto di beni e servizi;1;Acquisto di beni;2;Altri beni di consumo;999;Altri beni e materiali di consumo n.a.c.;17-02-2021;
362;1;360;"1.031,53";"1.031,53";MATTARANETTA SOCIETA' COOPERATIVA SOCIALE;8357030751;ACCONTO Fatt.n. 3/FE  del 30/01/2021 FATTURA IMMEDIATA;16-02-2021;840;0;424;1;Spese correnti;3;Acquisto di beni e servizi;2;Acquisto di servizi;15;Contratti di servizio pubblico;999;Altre spese per contratti di servizio pubblico;17-02-2021;
363;1;361;"370,97";"370,97";MATTARANETTA SOCIETA' COOPERATIVA SOCIALE;8357030751;SALDO Fatt.n. 3/FE  del 30/01/2021 FATTURA IMMEDIATA;16-02-2021;840;0;424;1;Spese correnti;3;Acquisto di beni e servizi;2;Acquisto di servizi;15;Contratti di servizio pubblico;999;Altre spese per contratti di servizio pubblico;17-02-2021;
364;1;362;"2.320,82";"2.320,82";ENEL ENERGIA SPA;82396527ED;SALDO Fatt.n. 004107576477  del 04/02/2021 FATTURA Descrizione Contratto CONSIPEE17_5_FIX18M;16-02-2021;581;0;233;1;Spese correnti;3;Acquisto di beni e servizi;2;Acquisto di servizi;5;Utenze e canoni;4;Energia elettrica;17-02-2021;
365;1;363;"226,65";"226,65";ENEL ENERGIA SPA;82396527ED;SALDO Fatt.n. 004107576476  del 04/02/2021 FATTURA Descrizione Contratto CONSIPEE17_5_FIX18M;16-02-2021;960;0;238;1;Spese correnti;3;Acquisto di beni e servizi;2;Acquisto di servizi;5;Utenze e canoni;4;Energia elettrica;17-02-2021;
366;1;364;"710,74";"710,74";ENEL ENERGIA SPA;82396527ED;SALDO Fatt.n. 004107576475  del 04/02/2021 FATTURA Descrizione Contratto CONSIPEE17_5_FIX18M;16-02-2021;960;0;238;1;Spese correnti;3;Acquisto di beni e servizi;2;Acquisto di servizi;5;Utenze e canoni;4;Energia elettrica;17-02-2021;
367;1;365;"646,20";"646,20";ENEL ENERGIA SPA;82396527ED;SALDO Fatt.n. 004107576478  del 04/02/2021 FATTURA Descrizione Contratto CONSIPEE17_5_FIX18M;16-02-2021;960;0;238;1;Spese correnti;3;Acquisto di beni e servizi;2;Acquisto di servizi;5;Utenze e canoni;4;Energia elettrica;17-02-2021;
368;1;366;"515,91";"515,91";ENEL ENERGIA SPA;82396527ED;SALDO Fatt.n. 004107576484  del 04/02/2021 FATTURA Descrizione Contratto CONSIPEE17_5_FIX18M;16-02-2021;960;0;238;1;Spese correnti;3;Acquisto di beni e servizi;2;Acquisto di servizi;5;Utenze e canoni;4;Energia elettrica;17-02-2021;
369;1;367;"47,64";"47,64";ENEL ENERGIA SPA;82396527ED;SALDO Fatt.n. 004107576485  del 04/02/2021 FATTURA Descrizione Contratto CONSIPEE17_5_FIX18M;16-02-2021;354;0;237;1;Spese correnti;3;Acquisto di beni e servizi;2;Acquisto di servizi;5;Utenze e canoni;4;Energia elettrica;17-02-2021;
370;1;368;"150,21";"150,21";ENEL ENERGIA SPA;82396527ED;SALDO Fatt.n. 004107576486  del 04/02/2021 FATTURA Descrizione Contratto CONSIPEE17_5_FIX18M;16-02-2021;960;0;238;1;Spese correnti;3;Acquisto di beni e servizi;2;Acquisto di servizi;5;Utenze e canoni;4;Energia elettrica;17-02-2021;
371;1;369;"873,42";"873,42";ENEL ENERGIA SPA;82396527ED;SALDO Fatt.n. 004107576487  del 04/02/2021 FATTURA Descrizione Contratto CONSIPEE17_5_FIX18M;16-02-2021;960;0;238;1;Spese correnti;3;Acquisto di beni e servizi;2;Acquisto di servizi;5;Utenze e canoni;4;Energia elettrica;17-02-2021;
372;1;370;"1.331,47";"1.331,47";ENEL ENERGIA SPA;82396527ED;SALDO Fatt.n. 004107576488  del 04/02/2021 FATTURA Descrizione Contratto CONSIPEE17_5_FIX18M;16-02-2021;541;0;230;1;Spese correnti;3;Acquisto di beni e servizi;2;Acquisto di servizi;5;Utenze e canoni;4;Energia elettrica;17-02-2021;
373;1;371;"5,06";"5,06";ENEL ENERGIA SPA;82396527ED;SALDO Fatt.n. 004107576489  del 04/02/2021 FATTURA Descrizione Contratto CONSIPEE17_5_FIX18M;16-02-2021;960;0;238;1;Spese correnti;3;Acquisto di beni e servizi;2;Acquisto di servizi;5;Utenze e canoni;4;Energia elettrica;17-02-2021;
374;1;372;"102,60";"102,60";ENEL ENERGIA SPA;82396527ED;SALDO Fatt.n. 004107576490  del 04/02/2021 FATTURA Descrizione Contratto CONSIPEE17_5_FIX18M;16-02-2021;951;0;231;1;Spese correnti;3;Acquisto di beni e servizi;2;Acquisto di servizi;5;Utenze e canoni;4;Energia elettrica;17-02-2021;
375;1;373;"367,16";"367,16";ENEL ENERGIA SPA;82396527ED;SALDO Fatt.n. 004107576491  del 04/02/2021 FATTURA Descrizione Contratto CONSIPEE17_5_FIX18M;16-02-2021;960;0;238;1;Spese correnti;3;Acquisto di beni e servizi;2;Acquisto di servizi;5;Utenze e canoni;4;Energia elettrica;17-02-2021;
376;1;374;"1.180,07";"1.180,07";ENEL ENERGIA SPA;82396527ED;SALDO Fatt.n. 004107576480  del 04/02/2021 FATTURA Descrizione Contratto CONSIPEE17_5_FIX18M;16-02-2021;960;0;238;1;Spese correnti;3;Acquisto di beni e servizi;2;Acquisto di servizi;5;Utenze e canoni;4;Energia elettrica;17-02-2021;
377;1;375;"127,39";"127,39";ENEL ENERGIA SPA;82396527ED;SALDO Fatt.n. 004107576481  del 04/02/2021 FATTURA Descrizione Contratto CONSIPEE17_5_FIX18M;16-02-2021;960;0;238;1;Spese correnti;3;Acquisto di beni e servizi;2;Acquisto di servizi;5;Utenze e canoni;4;Energia elettrica;17-02-2021;
378;1;376;"72,54";"72,54";ENEL ENERGIA SPA;82396527ED;SALDO Fatt.n. 004107576482  del 04/02/2021 FATTURA Descrizione Contratto CONSIPEE17_5_FIX18M;16-02-2021;960;0;238;1;Spese correnti;3;Acquisto di beni e servizi;2;Acquisto di servizi;5;Utenze e canoni;4;Energia elettrica;17-02-2021;
379;1;377;"605,35";"605,35";ENEL ENERGIA SPA;82396527ED;SALDO Fatt.n. 004107576483  del 04/02/2021 FATTURA Descrizione Contratto CONSIPEE17_5_FIX18M;16-02-2021;960;0;238;1;Spese correnti;3;Acquisto di beni e servizi;2;Acquisto di servizi;5;Utenze e canoni;4;Energia elettrica;17-02-2021;
380;1;378;"494,92";"494,92";ENEL ENERGIA SPA;82396527ED;SALDO Fatt.n. 004107576492  del 04/02/2021 FATTURA Descrizione Contratto CONSIPEE17_5_FIX18M;16-02-2021;960;0;238;1;Spese correnti;3;Acquisto di beni e servizi;2;Acquisto di servizi;5;Utenze e canoni;4;Energia elettrica;17-02-2021;
381;1;379;"186,04";"186,04";ENEL ENERGIA SPA;82396527ED;SALDO Fatt.n. 004107576493  del 04/02/2021 FATTURA Descrizione Contratto CONSIPEE17_5_FIX18M;16-02-2021;960;0;238;1;Spese correnti;3;Acquisto di beni e servizi;2;Acquisto di servizi;5;Utenze e canoni;4;Energia elettrica;17-02-2021;
382;1;380;"53,72";"53,72";ENEL ENERGIA SPA;82396527ED;SALDO Fatt.n. 004107576494  del 04/02/2021 Descrizione Contratto CONSIPEE17_5_FIX18M;16-02-2021;960;0;238;1;Spese correnti;3;Acquisto di beni e servizi;2;Acquisto di servizi;5;Utenze e canoni;4;Energia elettrica;17-02-2021;
383;1;381;"140,95";"140,95";ENEL ENERGIA SPA;82396527ED;SALDO Fatt.n. 004107576495  del 04/02/2021 FATTURA Descrizione Contratto CONSIPEE17_5_FIX18M;16-02-2021;354;0;237;1;Spese correnti;3;Acquisto di beni e servizi;2;Acquisto di servizi;5;Utenze e canoni;4;Energia elettrica;17-02-2021;
384;1;382;"6.350,00";"6.350,00";RIGON IMPIANTI SRL;8321284CC7;ACCONTO Fatt.n. 11/SP  del 10/02/2021 FATTURA;17-02-2021;1581;0;373;2;Spese in conto capitale;2;Investimenti fissi lordi e acquisto di terreni;1;Beni materiali;9;Beni immobili;3;Fabbricati ad uso scolastico;18-02-2021;
385;1;383;"2.787,46";"2.787,46";NUOVA TERMOTECNICA DI TURAZZA SIMONE;Z0D2C88DD5;SALDO Fatt.n. FPA 2/21  del 10/02/2021 FATTURA;17-02-2021;270;1;254;1;Spese correnti;3;Acquisto di beni e servizi;2;Acquisto di servizi;11;Prestazioni professionali e specialistiche;999;Altre prestazioni professionali e specialistiche n.a.c.;18-02-2021;
386;1;384;"5.040,23";"5.040,23";ASTOLFI ANTONIO; ;SALDO Fatt.n. 00001/PA  del 01/02/2021 fattura;17-02-2021;148;0;762;1;Spese correnti;3;Acquisto di beni e servizi;2;Acquisto di servizi;1;Organi e incarichi istituzionali dell'amministrazione;8;"Compensi agli organi istituzionali di revisione, di controllo ed altri incarichi istituzionali dell'amministrazione";18-02-2021;
387;1;385;"1.144,00";"1.144,00";VALLISARI ADRIANA;Z1923784C1;SALDO Fatt.n. FATTPA 1_21  del 29/01/2021 DIREZIONE "LA GAZZETTA TERMALE" (anno XXI n.2 - Dicembre 2020). CIG: Z1923784C1. Operazione non assoggettata a iva e a ritenuta dacconto (regime forfettario);17-02-2021;147;0;303;1;Spese correnti;3;Acquisto di beni e servizi;2;Acquisto di servizi;2;"Organizzazione eventi, pubblicita` e servizi per trasferta";999;"Altre spese per relazioni pubbliche, convegni e mostre, pubblicita` n.a.c";18-02-2021;
388;1;386;"5.135,35";"5.135,35";RIGON IMPIANTI SRL;8321284CC7;ACCONTO Fatt.n. 11/SP  del 10/02/2021 FATTURA;17-02-2021;1581;1;374;2;Spese in conto capitale;2;Investimenti fissi lordi e acquisto di terreni;1;Beni materiali;9;Beni immobili;3;Fabbricati ad uso scolastico;18-02-2021;
389;1;387;"28.150,00";"28.150,00";RIGON IMPIANTI SRL;8321284CC7;SALDO Fatt.n. 11/SP  del 10/02/2021 FATTURA;17-02-2021;1581;0;373;2;Spese in conto capitale;2;Investimenti fissi lordi e acquisto di terreni;1;Beni materiali;9;Beni immobili;3;Fabbricati ad uso scolastico;18-02-2021;
390;1;388;"25.877,44";"25.877,44";IMILANI SRL;ZF92DC6D5D;SALDO Fatt.n. S1  del 10/02/2021 FATTURA DET. 129 DEL 04/08/2020;17-02-2021;1200;0;450;2;Spese in conto capitale;2;Investimenti fissi lordi e acquisto di terreni;1;Beni materiali;3;Mobili e arredi;999;Mobili e arredi n.a.c.;18-02-2021;
391;1;389;"1.309,62";"1.309,62";MINISTERO INTERNO - DIREZIONE CENTR SERV DEMOGRAFICI; ;Liquidazione diritti per il rilascio di n. 78 carte didentita elettroniche GENNAIO 2021.;17-02-2021;325;0;82;1;Spese correnti;4;Trasferimenti correnti;1;Trasferimenti correnti a Amministrazioni Pubbliche;1;Trasferimenti correnti a Amministrazioni Centrali;1;Trasferimenti correnti a Ministeri;18-02-2021;
393;1;390;"18,00";"18,00";RIGON IMPIANTI SRL;8321284CC7;SALDO Fatt.n. 11/SP  del 10/02/2021 FATTURA;19-02-2021;1581;1;374;2;Spese in conto capitale;2;Investimenti fissi lordi e acquisto di terreni;1;Beni materiali;9;Beni immobili;3;Fabbricati ad uso scolastico;19-02-2021;
394;1;445;"4.240,00";"4.240,00";AMMINISTRATORI COMUNALI; ;INDENNITA DI CARICA EROGATA NEL MESE DI FEBBRAIO 2021;22-02-2021;10;0;2;1;Spese correnti;3;Acquisto di beni e servizi;2;Acquisto di servizi;1;Organi e incarichi istituzionali dell'amministrazione;1;Organi istituzionali dell'amministrazione - Indennità;01-03-2021;
410;1;482;"631,96";"631,96";CONSIGLIERI COMUNALI; ;LIQUIDAZIONE DEI GETTONI DI PRESENZA AI CONSIGLIERI COMUNALI PER LE SEDUTE CONSILIARI TENUTESI DALL01.01.2020 AL 31.12.2020.;22-02-2021;10;0;741;1;Spese correnti;3;Acquisto di beni e servizi;2;Acquisto di servizi;1;Organi e incarichi istituzionali dell'amministrazione;1;Organi istituzionali dell'amministrazione - Indennità;01-03-2021;
462;1;455;"278,57";"278,57";COMUNE DI CALDIERO - SOLO PER GIROCONTI;83634823AE;INCENTIVO FUNZIONI TECNICHE RINNOVO CONTRATTUALE  FINO AL 30/06/2021 A C.D.L. COOPERATIVA SOCIALE DEL SERVIZIO DI MANUTENZIONE DEL TERRITORIO CIG ORIGINARIO 7512636758 CIG RINNOVO 83634823AE.;23-02-2021;952;0;458;1;Spese correnti;3;Acquisto di beni e servizi;2;Acquisto di servizi;9;Manutenzione ordinaria e riparazioni;8;Manutenzione ordinaria e riparazioni di beni immobili;26-02-2021;
463;1;456;"278,57";"278,57";COMUNE DI CALDIERO - SOLO PER GIROCONTI;83634823AE;INCENTIVO FUNZIONI TECNICHE RINNOVO CONTRATTUALE  FINO AL 30/06/2021 A C.D.L. COOPERATIVA SOCIALE DEL SERVIZIO DI MANUTENZIONE DEL TERRITORIO CIG ORIGINARIO 7512636758 CIG RINNOVO 83634823AE.;23-02-2021;952;0;458;1;Spese correnti;3;Acquisto di beni e servizi;2;Acquisto di servizi;9;Manutenzione ordinaria e riparazioni;8;Manutenzione ordinaria e riparazioni di beni immobili;26-02-2021;
464;1;457;"792,00";"792,00";COMUNE DI CALDIERO - SOLO PER GIROCONTI;8364993299;INCENTIVO FUNZIONI TECNICHE - LAVORI DI ADEGUAMENTO DELLEDIFICIO SCOLASTICO ADIBITO A SCUOLA DELLINFANZIA SITO IN LOCALIT STR DI CALDIERO" - C.U.P.: G16B20005170005;23-02-2021;1101;0;375;2;Spese in conto capitale;2;Investimenti fissi lordi e acquisto di terreni;1;Beni materiali;9;Beni immobili;3;Fabbricati ad uso scolastico;26-02-2021;
465;1;458;"497,24";"497,24";COMUNE DI CALDIERO - SOLO PER GIROCONTI; ;INTERVENTO PER LELIMINAZIONE BARRIERE ARCHITETTONICHE DEL MUNICIPIO DI CALDIERO  ESAME ED APPROVAZIONE DEL PROGETTO DEFINITIVO/ESECUTIVO  CUP: G17B16000110006 - incentivo funzioni tecniche;23-02-2021;1093;1;473;2;Spese in conto capitale;2;Investimenti fissi lordi e acquisto di terreni;1;Beni materiali;9;Beni immobili;19;Fabbricati ad uso strumentale;26-02-2021;
466;1;459;"893,30";"893,30";COMUNE DI CALDIERO - SOLO PER GIROCONTI;7223582072;incentivo art. 13 D. Lgs. 50/2016;23-02-2021;1174;0;853;2;Spese in conto capitale;2;Investimenti fissi lordi e acquisto di terreni;1;Beni materiali;9;Beni immobili;16;Impianti sportivi;26-02-2021;
467;1;460;"1.408,46";"1.408,46";COMUNE DI CALDIERO - SOLO PER GIROCONTI;8363897A24;INCENTIVO FUNZIONI TECNICHE - "INTERVENTO PER LA REALIZZAZIONE DI UN PERCORSO CICLABILE DI CONNESSIONE TRA CALDIERO E CALDIERINO" - CUP G11B17000240004 - CIG 8363897A24.;23-02-2021;1193;0;339;2;Spese in conto capitale;2;Investimenti fissi lordi e acquisto di terreni;1;Beni materiali;9;Beni immobili;12;Infrastrutture stradali;26-02-2021;
468;1;461;"364,00";"364,00";COMUNE DI CALDIERO - SOLO PER GIROCONTI;785067886D;Incentivo funzioni tecniche - Realizzazione dei campi da tennis nella Cittadella dello Sport  Opere complementari CUP G13B19000090004 - CIG 785067886D.;23-02-2021;1174;4;222;2;Spese in conto capitale;2;Investimenti fissi lordi e acquisto di terreni;1;Beni materiali;9;Beni immobili;16;Impianti sportivi;26-02-2021;
469;1;462;"604,27";"604,27";COMUNE DI CALDIERO - SOLO PER GIROCONTI; ;"Accantonamento ai sensi dellart. 13, comma 2, del D. Lgs. n. 50/2016";23-02-2021;1174;3;754;2;Spese in conto capitale;2;Investimenti fissi lordi e acquisto di terreni;1;Beni materiali;9;Beni immobili;16;Impianti sportivi;26-02-2021;
470;1;463;"540,00";"540,00";COMUNE DI CALDIERO - SOLO PER GIROCONTI;786422321F;Incentivo Funzioni tecniche - Lavori di manutenzione straordinaria per la messa in sicurezza di via Mirandola nel Comune di Caldiero  CUP G17H19000050005 -- CIG 786422321F;23-02-2021;1185;1;226;2;Spese in conto capitale;2;Investimenti fissi lordi e acquisto di terreni;1;Beni materiali;9;Beni immobili;12;Infrastrutture stradali;26-02-2021;
471;1;464;"329,13";"329,13";UNIONE DI COMUNI VERONA EST;8083630680;INCENTIVO FUNZIONI TECNICHE QUOTA CUC GARA SECONDO PIANO SCUOLE ELEMENTARI;23-02-2021;1108;0;802;2;Spese in conto capitale;2;Investimenti fissi lordi e acquisto di terreni;1;Beni materiali;9;Beni immobili;3;Fabbricati ad uso scolastico;26-02-2021;
472;1;465;"618,81";"618,81";UNIONE DI COMUNI VERONA EST;80300395CF;SERVIZIO DI RISTORAZIONE SCOLASTICA A RIDOTTO IMPATTO AMBIENTALE A.S.2019/20 E 2020/21 RINNOVABILE PER LA.S.2021/22  AGGIUDICATO DALLUNIONE COMUNI VERONA EST  Centrale Unica di Committenza A CIRFOOD DI REGGIO EMILIA (RE) LOTTO 1  COMUNE DI CALDIERO-;23-02-2021;662;0;698;1;Spese correnti;3;Acquisto di beni e servizi;2;Acquisto di servizi;15;Contratti di servizio pubblico;6;Contratti di servizio per le mense scolastiche;26-02-2021;
473;1;466;"332,22";"332,22";UNIONE DI COMUNI VERONA EST;7223582072;incentivo art. 13 D. Lgs. 50/2016 - REALIZZAZIONE DI DUE CAMPI DA TENNIS PRESSO LA CITTADELLA DELLO SPORT;23-02-2021;1174;0;853;2;Spese in conto capitale;2;Investimenti fissi lordi e acquisto di terreni;1;Beni materiali;9;Beni immobili;16;Impianti sportivi;26-02-2021;
475;1;398;"976,00";"976,00";MAGGIOLI SPA;Z4E2BF87B8;"SALDO Fatt.n. 0002103326  del 31/01/2021 FATT. IVA SPLIT P. - abbonamento 7 materie (ragioneria, personale, tributi, affari generali, appalti, area tecnica, demografici)";24-02-2021;150;0;151;1;Spese correnti;3;Acquisto di beni e servizi;2;Acquisto di servizi;5;Utenze e canoni;3;Accesso a banche dati e a pubblicazioni on line;25-02-2021;
476;1;399;"217,39";"217,39";CONVERGE SPA;Z5A1F50C97;SALDO Fatt.n. 21300494  del 28/01/2021 NOLEGGIO APPARECCHIATURE MULTIFUNZIONE PER UFFICIO TECNICO;24-02-2021;109;0;397;1;Spese correnti;3;Acquisto di beni e servizi;2;Acquisto di servizi;7;Utilizzo di beni di terzi;4;Noleggi di hardware;25-02-2021;
477;1;400;"1.980,00";"1.980,00";SOCIETA' COOPERATIVA CULTURE;7559364882;SALDO Fatt.n. 189/FE  del 26/01/2021 GESTIONE SERVIZI BIBLIOTECARI - DICEMBRE 2020;24-02-2021;680;0;547;1;Spese correnti;3;Acquisto di beni e servizi;2;Acquisto di servizi;15;Contratti di servizio pubblico;999;Altre spese per contratti di servizio pubblico;25-02-2021;
478;1;401;"374,08";"374,08";ENEL ENERGIA SPA;82396527ED;SALDO Fatt.n. 004107576496  del 04/02/2021 FATTURA Descrizione Contratto CONSIPEE17_5_FIX18M;24-02-2021;960;0;238;1;Spese correnti;3;Acquisto di beni e servizi;2;Acquisto di servizi;5;Utenze e canoni;4;Energia elettrica;25-02-2021;
479;1;402;"187,05";"187,05";ENEL ENERGIA SPA;82396527ED;SALDO Fatt.n. 004107576497  del 04/02/2021 FATTURA Descrizione Contratto CONSIPEE17_5_FIX18M;24-02-2021;960;0;238;1;Spese correnti;3;Acquisto di beni e servizi;2;Acquisto di servizi;5;Utenze e canoni;4;Energia elettrica;25-02-2021;
480;1;403;"20,24";"20,24";ENEL ENERGIA SPA;82396527ED;SALDO Fatt.n. 004107576498  del 04/02/2021 FATTURA Descrizione Contratto CONSIPEE17_5_FIX18M;24-02-2021;960;0;238;1;Spese correnti;3;Acquisto di beni e servizi;2;Acquisto di servizi;5;Utenze e canoni;4;Energia elettrica;25-02-2021;
481;1;404;"384,13";"384,13";ENEL ENERGIA SPA;82396527ED;SALDO Fatt.n. 004107576499  del 04/02/2021 FATTURA Descrizione Contratto CONSIPEE17_5_FIX18M;24-02-2021;960;0;238;1;Spese correnti;3;Acquisto di beni e servizi;2;Acquisto di servizi;5;Utenze e canoni;4;Energia elettrica;25-02-2021;
482;1;405;"299,74";"299,74";ENEL ENERGIA SPA;82396527ED;SALDO Fatt.n. 004107576500  del 04/02/2021 FATTURA Descrizione Contratto CONSIPEE17_5_FIX18M;24-02-2021;960;0;238;1;Spese correnti;3;Acquisto di beni e servizi;2;Acquisto di servizi;5;Utenze e canoni;4;Energia elettrica;25-02-2021;
483;1;406;"59,62";"59,62";ENEL ENERGIA SPA;82396527ED;SALDO Fatt.n. 004107576501  del 04/02/2021 FATTURA Descrizione Contratto CONSIPEE17_5_FIX18M;24-02-2021;960;0;238;1;Spese correnti;3;Acquisto di beni e servizi;2;Acquisto di servizi;5;Utenze e canoni;4;Energia elettrica;25-02-2021;
484;1;407;"21,53";"21,53";ENEL ENERGIA SPA;82396527ED;SALDO Fatt.n. 004107576502  del 04/02/2021 FATTURA Descrizione Contratto CONSIPEE17_5_FIX18M;24-02-2021;960;0;238;1;Spese correnti;3;Acquisto di beni e servizi;2;Acquisto di servizi;5;Utenze e canoni;4;Energia elettrica;25-02-2021;
485;1;408;"91,00";"91,00";ENEL ENERGIA SPA;82396527ED;SALDO Fatt.n. 004107576503  del 04/02/2021 FATTURA Descrizione Contratto CONSIPEE17_5_FIX18M;24-02-2021;960;0;238;1;Spese correnti;3;Acquisto di beni e servizi;2;Acquisto di servizi;5;Utenze e canoni;4;Energia elettrica;25-02-2021;
486;1;409;"696,94";"696,94";ENEL ENERGIA SPA;82396527ED;SALDO Fatt.n. 004107576504  del 04/02/2021 FATTURA Descrizione Contratto CONSIPEE17_5_FIX18M;24-02-2021;960;0;238;1;Spese correnti;3;Acquisto di beni e servizi;2;Acquisto di servizi;5;Utenze e canoni;4;Energia elettrica;25-02-2021;
487;1;410;"991,58";"991,58";ENEL ENERGIA SPA;82396527ED;SALDO Fatt.n. 004107576506  del 04/02/2021 FATTURA Descrizione Contratto CONSIPEE17_5_FIX18M;24-02-2021;886;0;235;1;Spese correnti;3;Acquisto di beni e servizi;2;Acquisto di servizi;5;Utenze e canoni;4;Energia elettrica;25-02-2021;
488;1;411;"731,12";"731,12";ENEL ENERGIA SPA;82396527ED;SALDO Fatt.n. 004107576507  del 04/02/2021 FATTURA Descrizione Contratto CONSIPEE17_5_FIX18M;24-02-2021;960;0;238;1;Spese correnti;3;Acquisto di beni e servizi;2;Acquisto di servizi;5;Utenze e canoni;4;Energia elettrica;25-02-2021;
489;1;412;"112,73";"112,73";ENEL ENERGIA SPA;82396527ED;SALDO Fatt.n. 004107576508  del 04/02/2021 FATTURA Descrizione Contratto CONSIPEE17_5_FIX18M;24-02-2021;960;0;238;1;Spese correnti;3;Acquisto di beni e servizi;2;Acquisto di servizi;5;Utenze e canoni;4;Energia elettrica;25-02-2021;
490;1;413;"110,62";"110,62";ENEL ENERGIA SPA;82396527ED;SALDO Fatt.n. 004107576509  del 04/02/2021 FATTURA Descrizione Contratto CONSIPEE17_5_FIX18M;24-02-2021;960;0;238;1;Spese correnti;3;Acquisto di beni e servizi;2;Acquisto di servizi;5;Utenze e canoni;4;Energia elettrica;25-02-2021;
491;1;414;"337,42";"337,42";ENEL ENERGIA SPA;82396527ED;SALDO Fatt.n. 004107576510  del 04/02/2021 FATTURA Descrizione Contratto CONSIPEE17_5_FIX18M;24-02-2021;885;0;229;1;Spese correnti;3;Acquisto di beni e servizi;2;Acquisto di servizi;5;Utenze e canoni;4;Energia elettrica;25-02-2021;
492;1;415;"595,84";"595,84";ENEL ENERGIA SPA;82396527ED;SALDO Fatt.n. 004107576511  del 04/02/2021 FATTURA Descrizione Contratto CONSIPEE17_5_FIX18M;24-02-2021;960;0;238;1;Spese correnti;3;Acquisto di beni e servizi;2;Acquisto di servizi;5;Utenze e canoni;4;Energia elettrica;25-02-2021;
493;1;416;"5,90";"5,90";ENEL ENERGIA SPA;82396527ED;SALDO Fatt.n. 004107576512  del 04/02/2021 FATTURA Descrizione Contratto CONSIPEE17_5_FIX18M;24-02-2021;354;0;237;1;Spese correnti;3;Acquisto di beni e servizi;2;Acquisto di servizi;5;Utenze e canoni;4;Energia elettrica;25-02-2021;
494;1;417;"452,62";"452,62";ENEL ENERGIA SPA;82396527ED;SALDO Fatt.n. 004107576513  del 04/02/2021 FATTURA Descrizione Contratto CONSIPEE17_5_FIX18M;24-02-2021;960;0;238;1;Spese correnti;3;Acquisto di beni e servizi;2;Acquisto di servizi;5;Utenze e canoni;4;Energia elettrica;25-02-2021;
495;1;418;"33,45";"33,45";ENEL ENERGIA SPA;82396527ED;SALDO Fatt.n. 004107576514  del 04/02/2021 FATTURA Descrizione Contratto CONSIPEE17_5_FIX18M;24-02-2021;354;0;237;1;Spese correnti;3;Acquisto di beni e servizi;2;Acquisto di servizi;5;Utenze e canoni;4;Energia elettrica;25-02-2021;
496;1;419;"1.217,56";"1.217,56";ENEL ENERGIA SPA;82396527ED;SALDO Fatt.n. 004107576515  del 04/02/2021 FATTURA Descrizione Contratto CONSIPEE17_5_FIX18M;24-02-2021;960;0;238;1;Spese correnti;3;Acquisto di beni e servizi;2;Acquisto di servizi;5;Utenze e canoni;4;Energia elettrica;25-02-2021;
497;1;420;"92,20";"92,20";ENEL ENERGIA SPA;82396527ED;SALDO Fatt.n. 004107576516  del 04/02/2021 FATTURA Descrizione Contratto CONSIPEE17_5_FIX18M;24-02-2021;960;0;238;1;Spese correnti;3;Acquisto di beni e servizi;2;Acquisto di servizi;5;Utenze e canoni;4;Energia elettrica;25-02-2021;
498;1;421;"294,42";"294,42";ENEL ENERGIA SPA;82396527ED;SALDO Fatt.n. 004107576517  del 04/02/2021 FATTURA Descrizione Contratto CONSIPEE17_5_FIX18M;24-02-2021;960;0;238;1;Spese correnti;3;Acquisto di beni e servizi;2;Acquisto di servizi;5;Utenze e canoni;4;Energia elettrica;25-02-2021;
499;1;422;"22,06";"22,06";ENEL ENERGIA SPA;82396527ED;SALDO Fatt.n. 004107576518  del 04/02/2021 FATTURA Descrizione Contratto CONSIPEE17_5_FIX18M;24-02-2021;354;0;237;1;Spese correnti;3;Acquisto di beni e servizi;2;Acquisto di servizi;5;Utenze e canoni;4;Energia elettrica;25-02-2021;
500;1;423;"1.091,66";"1.091,66";ENEL ENERGIA SPA;82396527ED;SALDO Fatt.n. 004107576519  del 04/02/2021 FATTURA Descrizione Contratto CONSIPEE17_5_FIX18M;24-02-2021;960;0;238;1;Spese correnti;3;Acquisto di beni e servizi;2;Acquisto di servizi;5;Utenze e canoni;4;Energia elettrica;25-02-2021;
501;1;424;"198,01";"198,01";ENEL ENERGIA SPA;82396527ED;SALDO Fatt.n. 004107576520  del 04/02/2021 FATTURA Descrizione Contratto CONSIPEE17_5_FIX18M;24-02-2021;960;0;238;1;Spese correnti;3;Acquisto di beni e servizi;2;Acquisto di servizi;5;Utenze e canoni;4;Energia elettrica;25-02-2021;
502;1;425;"203,26";"203,26";ENEL ENERGIA SPA;82396527ED;SALDO Fatt.n. 004107576521  del 04/02/2021 FATTURA Descrizione Contratto CONSIPEE17_5_FIX18M;24-02-2021;211;0;232;1;Spese correnti;3;Acquisto di beni e servizi;2;Acquisto di servizi;5;Utenze e canoni;4;Energia elettrica;25-02-2021;
503;1;426;"7,14";"7,14";ENEL ENERGIA SPA;82396527ED;SALDO Fatt.n. 004107576522  del 04/02/2021 FATTURA Descrizione Contratto CONSIPEE17_5_FIX18M;24-02-2021;960;0;238;1;Spese correnti;3;Acquisto di beni e servizi;2;Acquisto di servizi;5;Utenze e canoni;4;Energia elettrica;25-02-2021;
504;1;427;"88,88";"88,88";ENEL ENERGIA SPA;82396527ED;SALDO Fatt.n. 004107576523  del 04/02/2021 FATTURA Descrizione Contratto CONSIPEE17_5_FIX18M;24-02-2021;354;0;237;1;Spese correnti;3;Acquisto di beni e servizi;2;Acquisto di servizi;5;Utenze e canoni;4;Energia elettrica;25-02-2021;
505;1;428;"2.804,50";"2.804,50";ENEL ENERGIA SPA;82396527ED;SALDO Fatt.n. 004107576524  del 04/02/2021 FATTURA Descrizione Contratto CONSIPEE17_5_FIX18M;24-02-2021;111;0;236;1;Spese correnti;3;Acquisto di beni e servizi;2;Acquisto di servizi;5;Utenze e canoni;4;Energia elettrica;25-02-2021;
506;1;429;"14,03";"14,03";ENEL ENERGIA SPA;82396527ED;SALDO Fatt.n. 004107576525  del 04/02/2021 FATTURA Descrizione Contratto CONSIPEE17_5_FIX18M;24-02-2021;354;0;237;1;Spese correnti;3;Acquisto di beni e servizi;2;Acquisto di servizi;5;Utenze e canoni;4;Energia elettrica;25-02-2021;
507;1;430;"18,40";"18,40";ENEL ENERGIA SPA;82396527ED;SALDO Fatt.n. 004107576526  del 04/02/2021 FATTURA Descrizione Contratto CONSIPEE17_5_FIX18M;24-02-2021;354;0;237;1;Spese correnti;3;Acquisto di beni e servizi;2;Acquisto di servizi;5;Utenze e canoni;4;Energia elettrica;25-02-2021;
508;1;431;"964,48";"964,48";ENEL ENERGIA SPA;82396527ED;SALDO Fatt.n. 004110892611  del 08/02/2021 FATTURA Descrizione Contratto CONSIPEE17_5_FIX18M;24-02-2021;881;0;234;1;Spese correnti;3;Acquisto di beni e servizi;2;Acquisto di servizi;5;Utenze e canoni;4;Energia elettrica;25-02-2021;
509;1;432;"16.396,35";"16.396,35";CONSORZIO DI BACINO VERONA DUE DEL QUADRILATERO;7910634DAD;SALDO Fatt.n. 000209/PA  del 08/02/2021 FATTURA;24-02-2021;840;0;496;1;Spese correnti;3;Acquisto di beni e servizi;2;Acquisto di servizi;15;Contratti di servizio pubblico;4;Contratti di servizio per la raccolta rifiuti;25-02-2021;
510;1;433;"851,47";"851,47";CONSORZIO DI BACINO VERONA DUE DEL QUADRILATERO;7910634DAD;SALDO Fatt.n. 000307/PA  del 09/02/2021 FATTURA;24-02-2021;840;0;496;1;Spese correnti;3;Acquisto di beni e servizi;2;Acquisto di servizi;15;Contratti di servizio pubblico;4;Contratti di servizio per la raccolta rifiuti;25-02-2021;
511;1;434;"179,18";"179,18";CONSORZIO DI BACINO VERONA DUE DEL QUADRILATERO;7910634DAD;SALDO Fatt.n. 000263/PA  del 09/02/2021 FATTURA;24-02-2021;840;0;496;1;Spese correnti;3;Acquisto di beni e servizi;2;Acquisto di servizi;15;Contratti di servizio pubblico;4;Contratti di servizio per la raccolta rifiuti;25-02-2021;
512;1;435;"2.398,48";"2.398,48";CIDIELLE COOPERATIVA SOCIALE;7815839A5F;SALDO Fatt.n. 8/02  del 31/01/2021 SERVIZIO PULIZIA SEDE COMUNALE ED EDIFICI COMUNALI - GENNAIO 2021;24-02-2021;117;0;115;1;Spese correnti;3;Acquisto di beni e servizi;2;Acquisto di servizi;13;Servizi ausiliari per il funzionamento dell'ente;2;Servizi di pulizia e lavanderia;25-02-2021;
513;1;436;"1.523,01";"1.523,01";CIDIELLE COOPERATIVA SOCIALE;83634823AE;ACCONTO Fatt.n. 18/02  del 31/01/2021 FATTURA;24-02-2021;352;0;456;1;Spese correnti;3;Acquisto di beni e servizi;2;Acquisto di servizi;9;Manutenzione ordinaria e riparazioni;8;Manutenzione ordinaria e riparazioni di beni immobili;25-02-2021;
514;1;437;"4.403,09";"4.403,09";CIDIELLE COOPERATIVA SOCIALE;83634823AE;SALDO Fatt.n. 18/02  del 31/01/2021 FATTURA;24-02-2021;952;0;457;1;Spese correnti;3;Acquisto di beni e servizi;2;Acquisto di servizi;9;Manutenzione ordinaria e riparazioni;8;Manutenzione ordinaria e riparazioni di beni immobili;25-02-2021;
515;1;438;"146,40";"146,40";SERIT SRL SERV. IGIENE TERRITORIO;7910634DAD;SALDO Fatt.n. 3/FEB  del 31/01/2021 FATTURA VENDITA BENI PA;24-02-2021;840;0;495;1;Spese correnti;3;Acquisto di beni e servizi;2;Acquisto di servizi;15;Contratti di servizio pubblico;4;Contratti di servizio per la raccolta rifiuti;25-02-2021;
516;1;439;"8,56";"8,56";ENEL ENERGIA SPA;82396527ED;SALDO Fatt.n. 004114073786  del 11/02/2021 FATTURA Descrizione Contratto CONSIPEE17_5_FIX18M;24-02-2021;960;0;238;1;Spese correnti;3;Acquisto di beni e servizi;2;Acquisto di servizi;5;Utenze e canoni;4;Energia elettrica;25-02-2021;
517;1;440;"213,06";"213,06";ENEL ENERGIA SPA;82396527ED;SALDO Fatt.n. 004114073787  del 11/02/2021 FATTURA Descrizione Contratto CONSIPEE17_5_FIX18M;24-02-2021;960;0;238;1;Spese correnti;3;Acquisto di beni e servizi;2;Acquisto di servizi;5;Utenze e canoni;4;Energia elettrica;25-02-2021;
518;1;441;"446,41";"446,41";ABACO SPA;7408612407;SALDO Fatt.n. 2021120000064  del 08/01/2021 fattura;24-02-2021;382;0;166;1;Spese correnti;3;Acquisto di beni e servizi;2;Acquisto di servizi;3;Aggi di riscossione;999;Altri aggi di riscossione n.a.c.;25-02-2021;
519;1;442;"56,95";"56,95";ABACO SPA;7408612407;SALDO Fatt.n. 2021140000177  del 05/01/2021 FATTURA;24-02-2021;843;0;663;1;Spese correnti;3;Acquisto di beni e servizi;2;Acquisto di servizi;3;Aggi di riscossione;999;Altri aggi di riscossione n.a.c.;25-02-2021;
520;1;443;"133,27";"133,27";ABACO SPA;7408612407;SALDO Fatt.n. 2021120000727  del 09/02/2021 FATTURA;24-02-2021;382;0;166;1;Spese correnti;3;Acquisto di beni e servizi;2;Acquisto di servizi;3;Aggi di riscossione;999;Altri aggi di riscossione n.a.c.;25-02-2021;
521;1;444;"356,14";"356,14";ABACO SPA;7408612407;SALDO Fatt.n. 2021120000725  del 09/02/2021 FATTURA;24-02-2021;382;0;166;1;Spese correnti;3;Acquisto di beni e servizi;2;Acquisto di servizi;3;Aggi di riscossione;999;Altri aggi di riscossione n.a.c.;25-02-2021;
523;1;469;"3.420,30";"3.420,30";PROVINCIA DI VERONA; ;CONVENZIONE SISTEMA BIBLIOTECARIO DELLA PROVINCIA DI VERONA (SBPVR) 10.05.2019 - 09.05.2022 - LIQUIDAZIONE CONTRIBUTO ANNO 2021.;26-02-2021;683;0;329;1;Spese correnti;4;Trasferimenti correnti;1;Trasferimenti correnti a Amministrazioni Pubbliche;2;Trasferimenti correnti a Amministrazioni Locali;2;Trasferimenti correnti a Province;26-02-2021;
524;1;180;"177,00";"177,00";NEXI PAYMENTS SPA;ZB823CBCD9;ENTE EROGATORE SERVIZI POS-CANONE SPESE DIVERSE SERVIZIO POS                           FT POS NQ0000104998 05 01 21  ACCONTO (P. 26 -R. 180 del 01/02/2021);26-02-2021;374;0;301;1;Spese correnti;3;Acquisto di beni e servizi;2;Acquisto di servizi;17;Servizi finanziari;2;Oneri per servizio di tesoreria;26-02-2021;
525;1;470;"38,94";"38,94";NEXI PAYMENTS SPA;ZB823CBCD9;SALDO Fatt.n. NQ00001049  del 05/01/2021;26-02-2021;374;0;301;1;Spese correnti;3;Acquisto di beni e servizi;2;Acquisto di servizi;17;Servizi finanziari;2;Oneri per servizio di tesoreria;26-02-2021;
526;1;471;"1.005,75";"1.005,75";EDILTOSI SRL;Z9B248C873;SALDO Fatt.n. 000366  del 31/01/2021 FATTURA;26-02-2021;350;0;505;1;Spese correnti;3;Acquisto di beni e servizi;1;Acquisto di beni;2;Altri beni di consumo;999;Altri beni e materiali di consumo n.a.c.;26-02-2021;
527;1;472;"260,00";"260,00";IPSOA WOLTERS KLUWER SRL;Z7D30708FE;SALDO Fatt.n. 0073202923  del 22/01/2021 ABBONAMENTO URBANISTICA E APPALTI;26-02-2021;150;0;80;1;Spese correnti;3;Acquisto di beni e servizi;2;Acquisto di servizi;5;Utenze e canoni;3;Accesso a banche dati e a pubblicazioni on line;26-02-2021;
528;1;473;"189,99";"189,99";SOCIETA' ATHESIS SPA;Z94307094F;SALDO Fatt.n. 2021/CO/1607  del 16/02/2021 ABBONAMENTO LARENA;26-02-2021;150;0;81;1;Spese correnti;3;Acquisto di beni e servizi;2;Acquisto di servizi;5;Utenze e canoni;3;Accesso a banche dati e a pubblicazioni on line;26-02-2021;
529;1;446;"0,01";"0,01";SINERGAS SPA;827398004C;SOGGETTI DIVERSI-PAGAMENTO ADUE                COD DISP 012102230OORKG NOME  SINERGAS SPA MANDATO          99Z1610053624A299 PFM 5793469 Fattura 211010936 del 22 01 21 Scad 24 0  SALDO (P. 35 -R. 446 del 25/02/2021);26-02-2021;353;0;293;1;Spese correnti;3;Acquisto di beni e servizi;2;Acquisto di servizi;5;Utenze e canoni;6;Gas;26-02-2021;
530;1;447;"2.089,81";"2.089,81";SINERGAS SPA;827398004C;SOGGETTI DIVERSI-PAGAMENTO ADUE                COD DISP 012102230OORMD NOME  SINERGAS SPA MANDATO          99Z1610053624A299 PFM 5793475 Fattura 211010942 del 22 01 21 Scad 24 0  ACCONTO (P. 36 -R. 447 del 25/02/2021);26-02-2021;888;0;296;1;Spese correnti;3;Acquisto di beni e servizi;2;Acquisto di servizi;5;Utenze e canoni;6;Gas;26-02-2021;
531;1;474;"459,76";"459,76";SINERGAS SPA;827398004C;SALDO Fatt.n. 211010942  del 22/01/2021 FATTURA FORNITURA GAS;26-02-2021;888;0;296;1;Spese correnti;3;Acquisto di beni e servizi;2;Acquisto di servizi;5;Utenze e canoni;6;Gas;26-02-2021;
532;1;448;"1.737,85";"1.737,85";SINERGAS SPA;827398004C;SOGGETTI DIVERSI-PAGAMENTO ADUE                COD DISP 012102230OORQ0 NOME  SINERGAS SPA MANDATO          99Z1610053624A299 PFM 5793477 Fattura 211010944 del 22 01 21 Scad 24 0  ACCONTO (P. 37 -R. 448 del 25/02/2021);26-02-2021;887;0;295;1;Spese correnti;3;Acquisto di beni e servizi;2;Acquisto di servizi;5;Utenze e canoni;6;Gas;26-02-2021;
533;1;475;"382,33";"382,33";SINERGAS SPA;827398004C;SALDO Fatt.n. 211010944  del 22/01/2021 FATTURA FORNITURA GAS;26-02-2021;887;0;295;1;Spese correnti;3;Acquisto di beni e servizi;2;Acquisto di servizi;5;Utenze e canoni;6;Gas;26-02-2021;
534;1;449;"928,98";"928,98";SINERGAS SPA;827398004C;SOGGETTI DIVERSI-PAGAMENTO ADUE                COD DISP 012102230OORM8 NOME  SINERGAS SPA MANDATO          99Z1610053624A299 PFM 5793472 Fattura 211010939 del 22 01 21 Scad 24 0  ACCONTO (P. 38 -R. 449 del 25/02/2021);26-02-2021;884;0;294;1;Spese correnti;3;Acquisto di beni e servizi;2;Acquisto di servizi;5;Utenze e canoni;6;Gas;26-02-2021;
535;1;476;"204,38";"204,38";SINERGAS SPA;827398004C;SALDO Fatt.n. 211010939  del 22/01/2021 FATTURA FORNITURA GAS;26-02-2021;884;0;294;1;Spese correnti;3;Acquisto di beni e servizi;2;Acquisto di servizi;5;Utenze e canoni;6;Gas;26-02-2021;
536;1;450;"901,19";"901,19";SINERGAS SPA;827398004C;SOGGETTI DIVERSI-PAGAMENTO ADUE                COD DISP 012102230OORLP NOME  SINERGAS SPA MANDATO          99Z1610053624A299 PFM 5793470 Fattura 211010937 del 22 01 21 Scad 24 0  ACCONTO (P. 39 -R. 450 del 25/02/2021);26-02-2021;353;0;293;1;Spese correnti;3;Acquisto di beni e servizi;2;Acquisto di servizi;5;Utenze e canoni;6;Gas;26-02-2021;
537;1;477;"198,29";"198,29";SINERGAS SPA;827398004C;SALDO Fatt.n. 211010937  del 22/01/2021 FATTURA FORNITURA GAS;26-02-2021;353;0;293;1;Spese correnti;3;Acquisto di beni e servizi;2;Acquisto di servizi;5;Utenze e canoni;6;Gas;26-02-2021;
538;1;451;"551,61";"551,61";SINERGAS SPA;827398004C;SOGGETTI DIVERSI-PAGAMENTO ADUE                COD DISP 012102230OORKO NOME  SINERGAS SPA MANDATO          99Z1610053624A299 PFM 5793476 Fattura 211010943 del 22 01 21 Scad 24 0  ACCONTO (P. 40 -R. 451 del 25/02/2021);26-02-2021;212;0;290;1;Spese correnti;3;Acquisto di beni e servizi;2;Acquisto di servizi;5;Utenze e canoni;6;Gas;26-02-2021;
539;1;478;"121,35";"121,35";SINERGAS SPA;827398004C;SALDO Fatt.n. 211010943  del 22/01/2021 FATTURA FORNITURA GAS;26-02-2021;212;0;290;1;Spese correnti;3;Acquisto di beni e servizi;2;Acquisto di servizi;5;Utenze e canoni;6;Gas;26-02-2021;
540;1;452;"579,66";"579,66";SINERGAS SPA;827398004C;SOGGETTI DIVERSI-PAGAMENTO ADUE                COD DISP 012102230OORL2 NOME  SINERGAS SPA MANDATO          99Z1610053624A299 PFM 5793473 Fattura 211010940 del 22 01 21 Scad 24 0  ACCONTO (P. 41 -R. 452 del 25/02/2021);26-02-2021;582;0;292;1;Spese correnti;3;Acquisto di beni e servizi;2;Acquisto di servizi;5;Utenze e canoni;6;Gas;26-02-2021;
541;1;479;"127,53";"127,53";SINERGAS SPA;827398004C;SALDO Fatt.n. 211010940  del 22/01/2021 FATTURA FORNITURA GAS;26-02-2021;582;0;292;1;Spese correnti;3;Acquisto di beni e servizi;2;Acquisto di servizi;5;Utenze e canoni;6;Gas;26-02-2021;
542;1;453;"301,60";"301,60";SINERGAS SPA;827398004C;SOGGETTI DIVERSI-PAGAMENTO ADUE                COD DISP 012102230OORLC NOME  SINERGAS SPA MANDATO          99Z1610053624A299 PFM 5793474 Fattura 211010941 del 22 01 21 Scad 24 0  ACCONTO (P. 42 -R. 453 del 25/02/2021);26-02-2021;112;0;289;1;Spese correnti;3;Acquisto di beni e servizi;2;Acquisto di servizi;5;Utenze e canoni;6;Gas;26-02-2021;
543;1;480;"66,35";"66,35";SINERGAS SPA;827398004C;SALDO Fatt.n. 211010941  del 22/01/2021 FATTURA FORNITURA GAS;26-02-2021;112;0;289;1;Spese correnti;3;Acquisto di beni e servizi;2;Acquisto di servizi;5;Utenze e canoni;6;Gas;26-02-2021;
544;1;454;"2.337,82";"2.337,82";SINERGAS SPA;827398004C;SOGGETTI DIVERSI-PAGAMENTO ADUE                COD DISP 012102230OORML NOME  SINERGAS SPA MANDATO          99Z1610053624A299 PFM 5793471 Fattura 211010938 del 22 01 21 Scad 24 0  ACCONTO (P. 43 -R. 454 del 25/02/2021);26-02-2021;542;0;291;1;Spese correnti;3;Acquisto di beni e servizi;2;Acquisto di servizi;5;Utenze e canoni;6;Gas;26-02-2021;
545;1;481;"514,32";"514,32";SINERGAS SPA;827398004C;SALDO Fatt.n. 211010938  del 22/01/2021 FATTURA FORNITURA GAS;26-02-2021;542;0;291;1;Spese correnti;3;Acquisto di beni e servizi;2;Acquisto di servizi;5;Utenze e canoni;6;Gas;26-02-2021;
546;1;347;"300,00";"300,00";INTESA SAN PAOLO - TESORERIA COMUNALE;ZA724A677B;SOGGETTI DIVERSI-COMMISSIONE SERVIZI INBIZ  ACCONTO (P. 33 -R. 347 del 15/02/2021);26-02-2021;374;0;478;1;Spese correnti;3;Acquisto di beni e servizi;2;Acquisto di servizi;17;Servizi finanziari;2;Oneri per servizio di tesoreria;03-03-2021;
547;1;347;"840,00";"840,00";INTESA SAN PAOLO - TESORERIA COMUNALE;685405404B;SOGGETTI DIVERSI-COMMISSIONE SERVIZI INBIZ  ACCONTO (P. 33 -R. 347 del 15/02/2021);26-02-2021;374;0;734;1;Spese correnti;3;Acquisto di beni e servizi;2;Acquisto di servizi;17;Servizi finanziari;2;Oneri per servizio di tesoreria;03-03-2021;
548;1;491;"184,80";"184,80";INTESA SAN PAOLO - TESORERIA COMUNALE;685405404B;SALDO Fatt.n. 016X20211V6000498  del 15/01/2021 AP - Servizio PUBBLICA AMMINISTRAZIONE;26-02-2021;374;0;734;1;Spese correnti;3;Acquisto di beni e servizi;2;Acquisto di servizi;17;Servizi finanziari;2;Oneri per servizio di tesoreria;03-03-2021;
549;1;492;"66,00";"66,00";INTESA SAN PAOLO - TESORERIA COMUNALE;ZA724A677B;SALDO Fatt.n. 016X20211V6000499  del 15/01/2021 AP - Servizio PUBBLICA AMMINISTRAZIONE;26-02-2021;374;0;478;1;Spese correnti;3;Acquisto di beni e servizi;2;Acquisto di servizi;17;Servizi finanziari;2;Oneri per servizio di tesoreria;03-03-2021;
553;1;495;"8.062,96";"8.062,96";SERIT SRL SERV. IGIENE TERRITORIO;7910634DAD;SALDO Fatt.n. 131/FEL  del 23/02/2021 FATTURA VENDITA PA;02-03-2021;840;0;495;1;Spese correnti;3;Acquisto di beni e servizi;2;Acquisto di servizi;15;Contratti di servizio pubblico;4;Contratti di servizio per la raccolta rifiuti;03-03-2021;
554;1;496;"501,75";"501,75";SERIT SRL SERV. IGIENE TERRITORIO;7910634DAD;SALDO Fatt.n. 184/FEL  del 25/02/2021 FATTURA VENDITA PA;02-03-2021;840;0;495;1;Spese correnti;3;Acquisto di beni e servizi;2;Acquisto di servizi;15;Contratti di servizio pubblico;4;Contratti di servizio per la raccolta rifiuti;03-03-2021;
555;1;497;"327,50";"327,50";SAVOIA ANDREA;Z9C24BEDAF;SALDO Fatt.n. 2/01  del 16/02/2021 FATTURA;02-03-2021;271;0;555;1;Spese correnti;3;Acquisto di beni e servizi;2;Acquisto di servizi;11;Prestazioni professionali e specialistiche;999;Altre prestazioni professionali e specialistiche n.a.c.;03-03-2021;
556;1;498;"165,00";"165,00";ASSOCIAZIONE FEBO TEATRO;ZB83066F46;SALDO Fatt.n. 6/FE  del 03/02/2021 FATTURA;02-03-2021;686;0;73;1;Spese correnti;3;Acquisto di beni e servizi;2;Acquisto di servizi;2;"Organizzazione eventi, pubblicita` e servizi per trasferta";999;"Altre spese per relazioni pubbliche, convegni e mostre, pubblicita` n.a.c";03-03-2021;
557;1;499;"1.159,00";"1.159,00";TEODORO SRL;ZAF3096C8E;SALDO Fatt.n. 6  del 22/02/2021 FATTURA;02-03-2021;352;0;94;1;Spese correnti;3;Acquisto di beni e servizi;2;Acquisto di servizi;9;Manutenzione ordinaria e riparazioni;8;Manutenzione ordinaria e riparazioni di beni immobili;03-03-2021;
558;1;500;"914,71";"914,71";ANCI VENETO; ;ORGANISMI ASSOCIATIVI - ADESIONE ANNO 2021 AD ANCI VENETO - ANUSCA - ANUTEL E AVVISO PUBBLICO.;02-03-2021;190;0;95;1;Spese correnti;4;Trasferimenti correnti;1;Trasferimenti correnti a Amministrazioni Pubbliche;1;Trasferimenti correnti a Amministrazioni Centrali;11;Trasferimenti correnti a enti centrali a struttura associativa;03-03-2021;
559;1;501;"230,00";"230,00";ANUTEL; ;ORGANISMI ASSOCIATIVI - ADESIONE ANNO 2021 AD ANCI VENETO - ANUSCA - ANUTEL E AVVISO PUBBLICO.;02-03-2021;190;0;96;1;Spese correnti;4;Trasferimenti correnti;1;Trasferimenti correnti a Amministrazioni Pubbliche;1;Trasferimenti correnti a Amministrazioni Centrali;11;Trasferimenti correnti a enti centrali a struttura associativa;03-03-2021;
560;1;502;"440,00";"440,00";ANUSCA; ;ORGANISMI ASSOCIATIVI - ADESIONE ANNO 2021 AD ANCI VENETO - ANUSCA - ANUTEL E AVVISO PUBBLICO.;02-03-2021;190;0;97;1;Spese correnti;4;Trasferimenti correnti;1;Trasferimenti correnti a Amministrazioni Pubbliche;1;Trasferimenti correnti a Amministrazioni Centrali;11;Trasferimenti correnti a enti centrali a struttura associativa;03-03-2021;
561;1;503;"500,00";"500,00";AVVISO PUBBLICO; ;ORGANISMI ASSOCIATIVI - ADESIONE ANNO 2021 AD ANCI VENETO - ANUSCA - ANUTEL E AVVISO PUBBLICO.;02-03-2021;190;0;98;1;Spese correnti;4;Trasferimenti correnti;1;Trasferimenti correnti a Amministrazioni Pubbliche;1;Trasferimenti correnti a Amministrazioni Centrali;11;Trasferimenti correnti a enti centrali a struttura associativa;03-03-2021;
562;1;504;"475,80";"475,80";TIPOGRAFIA CENTRALE SAS DI GIONA F & C;Z18304BA00;SALDO Fatt.n. FATTPA 4_21  del 18/02/2021 FATTURA3;02-03-2021;840;0;66;1;Spese correnti;3;Acquisto di beni e servizi;2;Acquisto di servizi;15;Contratti di servizio pubblico;999;Altre spese per contratti di servizio pubblico;03-03-2021;
564;1;507;"1.546,64";"1.546,64";ACQUE VERONESI SCARL; ;SALDO Fatt.n. 060120210000000003  del 11/02/2021 fattura allacciamento fognatura via Carcereri 060120210000000000000003F/DOCUMENTO DA PREVENTIVO;03-03-2021;1101;1;376;2;Spese in conto capitale;2;Investimenti fissi lordi e acquisto di terreni;1;Beni materiali;9;Beni immobili;3;Fabbricati ad uso scolastico;05-03-2021;
565;1;508;"732,00";"732,00";LABZEROUNO PROJECTS SRL;ZC930837DA;SALDO Fatt.n. 5/PA  del 19/02/2021 FATTURA;03-03-2021;934;0;92;1;Spese correnti;3;Acquisto di beni e servizi;2;Acquisto di servizi;11;Prestazioni professionali e specialistiche;999;Altre prestazioni professionali e specialistiche n.a.c.;05-03-2021;
566;1;509;"1.530,00";"1.530,00";SEGNEGHI FRANCESCO;Z1F2EDE269;"SALDO Fatt.n. 1E/2021  del 19/02/2021 FATTURA REDAZIONE DELLO STUDIO AGRONOMICO INERENTE LE PIANTE DI GELSO LUNGO LA FUTURA PISTA CICLABILE CALDIERO CALDIERINO, CIG Z1F2EDE269";03-03-2021;270;0;568;1;Spese correnti;3;Acquisto di beni e servizi;2;Acquisto di servizi;11;Prestazioni professionali e specialistiche;999;Altre prestazioni professionali e specialistiche n.a.c.;05-03-2021;
567;1;510;"1.244,40";"1.244,40";SEGNEGHI FRANCESCO;Z9A2E4F3C6;"ACCONTO Fatt.n. 2E/2021  del 19/02/2021 FATTURA REDAZIONE DELLO STUDIO AGRONOMICO INERENTE LE PIANTE CHE DIMORANO LUNGO VIA DON MINZONI, CIG Z9A2E4F3C6, CUP G13D20000020006";03-03-2021;1179;1;372;2;Spese in conto capitale;2;Investimenti fissi lordi e acquisto di terreni;1;Beni materiali;9;Beni immobili;12;Infrastrutture stradali;05-03-2021;
568;1;511;"30,60";"30,60";SEGNEGHI FRANCESCO;Z9A2E4F3C6;"SALDO Fatt.n. 2E/2021  del 19/02/2021 FATTURA REDAZIONE DELLO STUDIO AGRONOMICO INERENTE LE PIANTE CHE DIMORANO LUNGO VIA DON MINZONI, CIG Z9A2E4F3C6, CUP G13D20000020006";03-03-2021;1179;1;372;2;Spese in conto capitale;2;Investimenti fissi lordi e acquisto di terreni;1;Beni materiali;9;Beni immobili;12;Infrastrutture stradali;05-03-2021;
569;1;512;"162,81";"162,81";KYOCERA DOCUMENT SOLUTIONS ITALIA SPA;Z6E2796919;SALDO Fatt.n. 1010667413  del 16/02/2021 FOTOCOPIATRICI 29 L3 - 60 MESI;03-03-2021;109;0;186;1;Spese correnti;3;Acquisto di beni e servizi;2;Acquisto di servizi;7;Utilizzo di beni di terzi;4;Noleggi di hardware;05-03-2021;
570;1;513;"8.847,82";"8.847,82";CIRFOOD SOCIETA' COOPERATIVA ITALIANA DI RISTORAZIONE;80300395CF;"SALDO Fatt.n. 5200001866  del 31/01/2021 FATTURA Destinatario:0000528988,SC.PRIMARIA C.EDERLECOMUNE DI CALDIERO,PIAZZA VITTORIO VENETO .,CALDIERO,37042,VR";03-03-2021;662;0;492;1;Spese correnti;3;Acquisto di beni e servizi;2;Acquisto di servizi;15;Contratti di servizio pubblico;6;Contratti di servizio per le mense scolastiche;05-03-2021;
571;1;514;"490,09";"490,09";CIRFOOD SOCIETA' COOPERATIVA ITALIANA DI RISTORAZIONE;80300395CF;"SALDO Fatt.n. 5200003682  del 15/02/2021 FATTURA Destinatario:0000129572,COMUNE DI CALDIERO,PIAZZA MARCOLUNGO 19,CALDIERO,37042,VR";03-03-2021;662;0;492;1;Spese correnti;3;Acquisto di beni e servizi;2;Acquisto di servizi;15;Contratti di servizio pubblico;6;Contratti di servizio per le mense scolastiche;05-03-2021;
572;1;515;"432,43";"432,43";CIRFOOD SOCIETA' COOPERATIVA ITALIANA DI RISTORAZIONE;80300395CF;"SALDO Fatt.n. 5200000159  del 15/01/2021 FATTURA Destinatario:0000129572,COMUNE DI CALDIERO,PIAZZA MARCOLUNGO 19,CALDIERO,37042,VR";03-03-2021;662;0;492;1;Spese correnti;3;Acquisto di beni e servizi;2;Acquisto di servizi;15;Contratti di servizio pubblico;6;Contratti di servizio per le mense scolastiche;05-03-2021;
573;1;516;"4.853,16";"4.853,16";MANTOVANI DANIEL;Z6D270C8D0;SALDO Fatt.n. 9  del 15/02/2021 FATTURA;03-03-2021;1730;0;110;2;Spese in conto capitale;2;Investimenti fissi lordi e acquisto di terreni;3;Beni immateriali;5;Incarichi professionali per la realizzazione di investimenti;1;Incarichi professionali per la realizzazione di investimenti;05-03-2021;
574;1;517;"1.554,28";"1.554,28";MANTOVANI DANIEL;ZE7289F7EC;SALDO Fatt.n. 10  del 15/02/2021 FATTURA;03-03-2021;1730;1;311;2;Spese in conto capitale;2;Investimenti fissi lordi e acquisto di terreni;3;Beni immateriali;5;Incarichi professionali per la realizzazione di investimenti;1;Incarichi professionali per la realizzazione di investimenti;05-03-2021;
575;1;518;"7.612,80";"7.612,80";MANTOVANI DANIEL;ZAA2EF844C;SALDO Fatt.n. 11  del 15/02/2021 FATTURA;03-03-2021;1730;0;595;2;Spese in conto capitale;2;Investimenti fissi lordi e acquisto di terreni;3;Beni immateriali;5;Incarichi professionali per la realizzazione di investimenti;1;Incarichi professionali per la realizzazione di investimenti;05-03-2021;
576;1;519;"3.300,00";"3.300,00";STARTRE DI TARGON LUIGI & C;Z1D2D75DB2;PATRIMONIO COMUNALE - LOCAZIONE DI UN IMMOBILE ED AREA ESTERNA DA ADIBIRE A DEPOSITO COMUNALE - APPROVAZIONE SCHEMA DI CONTRATTO  - CIG Z1D2D75DB2;03-03-2021;280;0;399;1;Spese correnti;3;Acquisto di beni e servizi;2;Acquisto di servizi;7;Utilizzo di beni di terzi;1;Locazione di beni immobili;05-03-2021;
578;1;521;"23.500,00";"23.500,00";PARROCCHIA S.PIETRO APOSTOLO (CALDIERO);ZF324B635B;LOCAZIONE DI UN IMMOBILE DI PROPRIETA DELLA PARROCCHIA S. PIETRO APOSTOLO DI CALDIERO PER SISTEMAZIONE AULE SCUOLA MEDIA "PISANO" DURANTE I LAVORI DI EFFICIENTAMENTO ENERGETICO ALLEDIFICIO SCOLASTICO. IMPEGNO E LIQUIDAZIONE DELLA RELATIVA SPESA PER;03-03-2021;546;0;485;1;Spese correnti;3;Acquisto di beni e servizi;2;Acquisto di servizi;7;Utilizzo di beni di terzi;1;Locazione di beni immobili;05-03-2021;
579;1;522;"1.677,50";"1.677,50";MATTARANETTA SOCIETA' COOPERATIVA SOCIALE;8357030751;SALDO Fatt.n. 6/FE  del 27/02/2021 FATTURA IMMEDIATA;04-03-2021;840;0;424;1;Spese correnti;3;Acquisto di beni e servizi;2;Acquisto di servizi;15;Contratti di servizio pubblico;999;Altre spese per contratti di servizio pubblico;05-03-2021;
580;1;523;"117,15";"117,15";SICONTRAF SRL;ZF721ED995;ACCONTO Fatt.n. 41/PA  del 10/02/2021 Fattura;04-03-2021;952;0;119;1;Spese correnti;3;Acquisto di beni e servizi;2;Acquisto di servizi;9;Manutenzione ordinaria e riparazioni;8;Manutenzione ordinaria e riparazioni di beni immobili;05-03-2021;
581;1;524;"274,23";"274,23";SICONTRAF SRL;ZF721ED995;SALDO Fatt.n. 41/PA  del 10/02/2021 Fattura;04-03-2021;952;0;115;1;Spese correnti;3;Acquisto di beni e servizi;2;Acquisto di servizi;9;Manutenzione ordinaria e riparazioni;4;Manutenzione ordinaria e riparazioni di impianti e macchinari;05-03-2021;
582;1;525;"11.125,00";"11.125,00";SCUOLA MATERNA MARIA BAMBINA; ;"CONVENZIONE CON LE SCUOLE MATERNE DEL  TERRITORIO, ART.10 - EROGAZIONE PRIMO ACCONTO DEL CONTRIBUTO ECONOMICO PREVISTO PER LANNO 2021.";04-03-2021;480;0;183;1;Spese correnti;4;Trasferimenti correnti;4;Trasferimenti correnti a Istituzioni Sociali Private;1;Trasferimenti correnti a Istituzioni Sociali Private;1;Trasferimenti correnti a Istituzioni Sociali Private;05-03-2021;
583;1;526;"19.375,00";"19.375,00";FONDAZIONE DON GAETANO PROVOLI - SCUOLA PARITARIA PER L; ;"CONVENZIONE CON LE SCUOLE MATERNE DEL  TERRITORIO, ART.10 - EROGAZIONE PRIMO ACCONTO DEL CONTRIBUTO ECONOMICO PREVISTO PER LANNO 2021.";04-03-2021;480;0;182;1;Spese correnti;4;Trasferimenti correnti;4;Trasferimenti correnti a Istituzioni Sociali Private;1;Trasferimenti correnti a Istituzioni Sociali Private;1;Trasferimenti correnti a Istituzioni Sociali Private;05-03-2021;
584;1;573;"50,45";"50,45";LIBRERIA VALERIO FRIGGI SRL; ;SALDO Fatt.n. 24/PA  del 19/02/2021 FATTURA Contributo Ambientale Conai assolto.;10-03-2021;555;0;416;1;Spese correnti;4;Trasferimenti correnti;2;Trasferimenti correnti a Famiglie;5;Altri trasferimenti a famiglie;999;Altri trasferimenti a famiglie n.a.c.;15-03-2021;
585;1;574;"362,68";"362,68";RANCAN SNC DI RANCAN LAURA E ALESSANDRO & C;Z0F2B965AD;SALDO Fatt.n. 10/PA  del 26/02/2021 Contributo Ambientale Conai assolto. ACQUISTO CANCELLERIA;10-03-2021;110;0;72;1;Spese correnti;3;Acquisto di beni e servizi;1;Acquisto di beni;2;Altri beni di consumo;1;"Carta, cancelleria e stampati";15-03-2021;
586;1;575;"1.845,00";"1.845,00";SOCIETA' COOPERATIVA CULTURE;7559364882;SALDO Fatt.n. 517/FE  del 03/03/2021 GESTIONE SERVIZI BIBLIOTECARI MESE DI GENNAIO 2021;11-03-2021;680;0;547;1;Spese correnti;3;Acquisto di beni e servizi;2;Acquisto di servizi;15;Contratti di servizio pubblico;999;Altre spese per contratti di servizio pubblico;15-03-2021;
587;1;576;"175,29";"175,29";CONVERGE SPA;Z5A1F50C97;SALDO Fatt.n. 21301279  del 28/02/2021 NOLEGGIO APPARECCHIATURE MULTIFUNZIONE PER UFFICIO TECNICO;15-03-2021;109;0;397;1;Spese correnti;3;Acquisto di beni e servizi;2;Acquisto di servizi;7;Utilizzo di beni di terzi;4;Noleggi di hardware;15-03-2021;
588;1;577;"250,00";"250,00";COMUNE DI SAN GIOVANNI LUPATOTO; ;PROGETTO "GIOVANI INTESE" NELLAMBITO DELLE INIZIATIVE INERENTI IL PROTOCOLLO DINTESA INTERCOMUNALE PER LE POLITICHE GIOVANILI. EROGAZIONE QUOTA PARTE AL COMUNE DI SAN GIOVANNI LUPATOTO (VR).;15-03-2021;894;0;137;1;Spese correnti;4;Trasferimenti correnti;4;Trasferimenti correnti a Istituzioni Sociali Private;1;Trasferimenti correnti a Istituzioni Sociali Private;1;Trasferimenti correnti a Istituzioni Sociali Private;15-03-2021;
589;1;578;"200,00";"200,00";CENTRO DI SERVIZIO PER IL VOLONTARIATO DI VERONA CSV; ;EROGAZIONE CONTRIBUTO A FAVORE C.S.V.  CENTRO SERVIZI PER IL VOLONTARIATO DI VERONA ODV- QUALE ENTE CAPOFILA NEL BANDO PER LIMPIEGO VOLONTARI DEL SERVIZIO CIVILE UNIVERSALE.;15-03-2021;894;0;138;1;Spese correnti;4;Trasferimenti correnti;4;Trasferimenti correnti a Istituzioni Sociali Private;1;Trasferimenti correnti a Istituzioni Sociali Private;1;Trasferimenti correnti a Istituzioni Sociali Private;15-03-2021;
590;1;579;"39,94";"39,94";PROVINCIA DI VERONA; ;"Rimborso quota parte oneri sostenuti dalla Provincia di Verona per alcune spese di parte padronale riguardanti il compendio immobiliare ubicato in Comune di Ceriale (SV), in Lungomare Gen. A. Diaz n.ri 95, 96 e 97 - impegno e liquidazione";15-03-2021;352;0;127;1;Spese correnti;3;Acquisto di beni e servizi;2;Acquisto di servizi;9;Manutenzione ordinaria e riparazioni;8;Manutenzione ordinaria e riparazioni di beni immobili;15-03-2021;
591;1;505;"0,84";"0,84";GP GLOBAL POWER SPA;622385037F;SOGGETTI DIVERSI-PAGAMENTO ADUE B2B            MANDATO AA5TZ1C77 NOME        GLOBALPOWER SPA2F 3B A5  ACCONTO (P. 53 -R. 505 del 03/03/2021);15-03-2021;960;0;335;1;Spese correnti;3;Acquisto di beni e servizi;2;Acquisto di servizi;5;Utenze e canoni;4;Energia elettrica;15-03-2021;
592;1;580;"0,18";"0,18";GP GLOBAL POWER SPA;622385037F;SALDO Fatt.n. V0/10612  del 01/02/2021 Fattura Energia Elettrica;15-03-2021;960;0;335;1;Spese correnti;3;Acquisto di beni e servizi;2;Acquisto di servizi;5;Utenze e canoni;4;Energia elettrica;15-03-2021;
593;1;581;"103,60";"103,60";TELECOM ITALIA;Z3E288BEB4;SALDO Fatt.n. 7X00430540  del 11/02/2021 2BIM 2021;15-03-2021;113;0;272;1;Spese correnti;3;Acquisto di beni e servizi;2;Acquisto di servizi;5;Utenze e canoni;2;Telefonia mobile;15-03-2021;
594;1;582;"1.292,83";"1.292,83";MINISTERO INTERNO - DIREZIONE CENTR SERV DEMOGRAFICI; ;Liquidazione diritti per il rilascio di n. 77 carte didentita elettroniche FEBBRAIO 2021.;15-03-2021;325;0;82;1;Spese correnti;4;Trasferimenti correnti;1;Trasferimenti correnti a Amministrazioni Pubbliche;1;Trasferimenti correnti a Amministrazioni Centrali;1;Trasferimenti correnti a Ministeri;15-03-2021;
595;1;583;"103,46";"103,46";LERCO ANTINCENDI SRL;Z57297A0AE;SALDO Fatt.n. 9/PA  del 26/02/2021 FATTURA Rif. Determinazione n 70 del 19/05/2020;15-03-2021;352;0;476;1;Spese correnti;3;Acquisto di beni e servizi;2;Acquisto di servizi;9;Manutenzione ordinaria e riparazioni;8;Manutenzione ordinaria e riparazioni di beni immobili;15-03-2021;
596;1;584;"36.851,43";"36.851,43";SERIT SRL SERV. IGIENE TERRITORIO;8616772134;SALDO Fatt.n. 226/FEL  del 08/03/2021 FATTURA VENDITA PA;15-03-2021;840;0;128;1;Spese correnti;3;Acquisto di beni e servizi;2;Acquisto di servizi;15;Contratti di servizio pubblico;4;Contratti di servizio per la raccolta rifiuti;15-03-2021;
597;1;585;"2.086,20";"2.086,20";COOPERATIVA SOCIALE VENETA ONLUS;Z902BC719A;SALDO Fatt.n. 51/02  del 26/02/2021 FATTURA;15-03-2021;782;0;239;1;Spese correnti;3;Acquisto di beni e servizi;2;Acquisto di servizi;9;Manutenzione ordinaria e riparazioni;8;Manutenzione ordinaria e riparazioni di beni immobili;15-03-2021;
600;1;588;"586,99";"586,99";ENEL ENERGIA SPA;82396527ED;SALDO Fatt.n. 004114720899  del 05/03/2021 FATTURA Descrizione Contratto CONSIPEE17_5_FIX18M;15-03-2021;960;0;238;1;Spese correnti;3;Acquisto di beni e servizi;2;Acquisto di servizi;5;Utenze e canoni;4;Energia elettrica;15-03-2021;
601;1;589;"187,40";"187,40";ENEL ENERGIA SPA;82396527ED;SALDO Fatt.n. 004114720900  del 05/03/2021 FATTURA Descrizione Contratto CONSIPEE17_5_FIX18M;15-03-2021;960;0;238;1;Spese correnti;3;Acquisto di beni e servizi;2;Acquisto di servizi;5;Utenze e canoni;4;Energia elettrica;15-03-2021;
602;1;590;"1.548,40";"1.548,40";ENEL ENERGIA SPA;82396527ED;SALDO Fatt.n. 004114720901  del 05/03/2021 FATTURA Descrizione Contratto CONSIPEE17_5_FIX18M;15-03-2021;581;0;233;1;Spese correnti;3;Acquisto di beni e servizi;2;Acquisto di servizi;5;Utenze e canoni;4;Energia elettrica;15-03-2021;
603;1;591;"536,46";"536,46";ENEL ENERGIA SPA;82396527ED;SALDO Fatt.n. 004114720902  del 05/03/2021 FATTURA Descrizione Contratto CONSIPEE17_5_FIX18M;15-03-2021;960;0;238;1;Spese correnti;3;Acquisto di beni e servizi;2;Acquisto di servizi;5;Utenze e canoni;4;Energia elettrica;15-03-2021;
604;1;592;"3.011,36";"3.011,36";MERCURIO SERVICE SPA;ZAE2EB49FS;SALDO Fatt.n. 40/10  del 25/02/2021 FATTURA;15-03-2021;843;0;606;1;Spese correnti;3;Acquisto di beni e servizi;2;Acquisto di servizi;3;Aggi di riscossione;999;Altri aggi di riscossione n.a.c.;15-03-2021;
605;1;599;"1.001,75";"1.001,75";ENEL ENERGIA SPA;82396527ED;SALDO Fatt.n. 004114720904  del 05/03/2021 FATTURA Descrizione Contratto CONSIPEE17_5_FIX18M;16-03-2021;960;0;238;1;Spese correnti;3;Acquisto di beni e servizi;2;Acquisto di servizi;5;Utenze e canoni;4;Energia elettrica;17-03-2021;
606;1;600;"109,45";"109,45";ENEL ENERGIA SPA;82396527ED;SALDO Fatt.n. 004114720905  del 05/03/2021 FATTURA Descrizione Contratto CONSIPEE17_5_FIX18M;16-03-2021;960;0;238;1;Spese correnti;3;Acquisto di beni e servizi;2;Acquisto di servizi;5;Utenze e canoni;4;Energia elettrica;17-03-2021;
607;1;601;"60,00";"60,00";ENEL ENERGIA SPA;82396527ED;SALDO Fatt.n. 004114720906  del 05/03/2021 FATTURA Descrizione Contratto CONSIPEE17_5_FIX18M;16-03-2021;960;0;238;1;Spese correnti;3;Acquisto di beni e servizi;2;Acquisto di servizi;5;Utenze e canoni;4;Energia elettrica;17-03-2021;
608;1;602;"513,94";"513,94";ENEL ENERGIA SPA;82396527ED;SALDO Fatt.n. 004114720907  del 05/03/2021 FATTURA Descrizione Contratto CONSIPEE17_5_FIX18M;16-03-2021;960;0;238;1;Spese correnti;3;Acquisto di beni e servizi;2;Acquisto di servizi;5;Utenze e canoni;4;Energia elettrica;17-03-2021;
609;1;603;"429,81";"429,81";ENEL ENERGIA SPA;82396527ED;SALDO Fatt.n. 004114720908  del 05/03/2021 FATTURA Descrizione Contratto CONSIPEE17_5_FIX18M;16-03-2021;960;0;238;1;Spese correnti;3;Acquisto di beni e servizi;2;Acquisto di servizi;5;Utenze e canoni;4;Energia elettrica;17-03-2021;
610;1;604;"39,20";"39,20";ENEL ENERGIA SPA;82396527ED;SALDO Fatt.n. 004114720909  del 05/03/2021 FATTURA Descrizione Contratto CONSIPEE17_5_FIX18M;16-03-2021;354;0;237;1;Spese correnti;3;Acquisto di beni e servizi;2;Acquisto di servizi;5;Utenze e canoni;4;Energia elettrica;17-03-2021;
611;1;605;"123,66";"123,66";ENEL ENERGIA SPA;82396527ED;SALDO Fatt.n. 004114720910  del 05/03/2021 FATTURA Descrizione Contratto CONSIPEE17_5_FIX18M;16-03-2021;960;0;238;1;Spese correnti;3;Acquisto di beni e servizi;2;Acquisto di servizi;5;Utenze e canoni;4;Energia elettrica;17-03-2021;
612;1;606;"1.236,99";"1.236,99";ENEL ENERGIA SPA;82396527ED;SALDO Fatt.n. 004114720911  del 05/03/2021 FATTURA Descrizione Contratto CONSIPEE17_5_FIX18M;16-03-2021;541;0;230;1;Spese correnti;3;Acquisto di beni e servizi;2;Acquisto di servizi;5;Utenze e canoni;4;Energia elettrica;17-03-2021;
613;1;607;"1,23";"1,23";ENEL ENERGIA SPA;82396527ED;SALDO Fatt.n. 004114720912  del 05/03/2021 FATTURA Descrizione Contratto CONSIPEE17_5_FIX18M;16-03-2021;960;0;238;1;Spese correnti;3;Acquisto di beni e servizi;2;Acquisto di servizi;5;Utenze e canoni;4;Energia elettrica;17-03-2021;
614;1;608;"90,59";"90,59";ENEL ENERGIA SPA;82396527ED;SALDO Fatt.n. 004114720913  del 05/03/2021 FATTURA Descrizione Contratto CONSIPEE17_5_FIX18M;16-03-2021;951;0;231;1;Spese correnti;3;Acquisto di beni e servizi;2;Acquisto di servizi;5;Utenze e canoni;4;Energia elettrica;17-03-2021;
615;1;609;"344,78";"344,78";ENEL ENERGIA SPA;82396527ED;SALDO Fatt.n. 004114720914  del 05/03/2021 FATTURA Descrizione Contratto CONSIPEE17_5_FIX18M;16-03-2021;960;0;238;1;Spese correnti;3;Acquisto di beni e servizi;2;Acquisto di servizi;5;Utenze e canoni;4;Energia elettrica;17-03-2021;
616;1;610;"409,20";"409,20";ENEL ENERGIA SPA;82396527ED;SALDO Fatt.n. 004114720915  del 05/03/2021 FATTURA Descrizione Contratto CONSIPEE17_5_FIX18M;16-03-2021;960;0;238;1;Spese correnti;3;Acquisto di beni e servizi;2;Acquisto di servizi;5;Utenze e canoni;4;Energia elettrica;17-03-2021;
617;1;611;"170,23";"170,23";ENEL ENERGIA SPA;82396527ED;SALDO Fatt.n. 004114720916  del 05/03/2021 FATTURA Descrizione Contratto CONSIPEE17_5_FIX18M;16-03-2021;960;0;238;1;Spese correnti;3;Acquisto di beni e servizi;2;Acquisto di servizi;5;Utenze e canoni;4;Energia elettrica;17-03-2021;
618;1;612;"42,52";"42,52";ENEL ENERGIA SPA;82396527ED;SALDO Fatt.n. 004114720917  del 05/03/2021 FATTURA Descrizione Contratto CONSIPEE17_5_FIX18M;16-03-2021;960;0;238;1;Spese correnti;3;Acquisto di beni e servizi;2;Acquisto di servizi;5;Utenze e canoni;4;Energia elettrica;17-03-2021;
619;1;613;"135,62";"135,62";ENEL ENERGIA SPA;82396527ED;SALDO Fatt.n. 004114720918  del 05/03/2021 FATTURA Descrizione Contratto CONSIPEE17_5_FIX18M;16-03-2021;354;0;237;1;Spese correnti;3;Acquisto di beni e servizi;2;Acquisto di servizi;5;Utenze e canoni;4;Energia elettrica;17-03-2021;
620;1;614;"295,97";"295,97";ENEL ENERGIA SPA;82396527ED;SALDO Fatt.n. 004114720919  del 05/03/2021 FATTURA Descrizione Contratto CONSIPEE17_5_FIX18M;16-03-2021;960;0;238;1;Spese correnti;3;Acquisto di beni e servizi;2;Acquisto di servizi;5;Utenze e canoni;4;Energia elettrica;17-03-2021;
621;1;615;"151,01";"151,01";ENEL ENERGIA SPA;82396527ED;SALDO Fatt.n. 004114720920  del 05/03/2021 FATTURA Descrizione Contratto CONSIPEE17_5_FIX18M;16-03-2021;960;0;238;1;Spese correnti;3;Acquisto di beni e servizi;2;Acquisto di servizi;5;Utenze e canoni;4;Energia elettrica;17-03-2021;
622;1;616;"16,42";"16,42";ENEL ENERGIA SPA;82396527ED;SALDO Fatt.n. 004114720921  del 05/03/2021 FATTURA Descrizione Contratto CONSIPEE17_5_FIX18M;16-03-2021;960;0;238;1;Spese correnti;3;Acquisto di beni e servizi;2;Acquisto di servizi;5;Utenze e canoni;4;Energia elettrica;17-03-2021;
623;1;617;"320,56";"320,56";ENEL ENERGIA SPA;82396527ED;SALDO Fatt.n. 004114720922  del 05/03/2021 FATTURA Descrizione Contratto CONSIPEE17_5_FIX18M;16-03-2021;960;0;238;1;Spese correnti;3;Acquisto di beni e servizi;2;Acquisto di servizi;5;Utenze e canoni;4;Energia elettrica;17-03-2021;
624;1;618;"253,13";"253,13";ENEL ENERGIA SPA;82396527ED;SALDO Fatt.n. 004114720923  del 05/03/2021 FATTURA Descrizione Contratto CONSIPEE17_5_FIX18M;16-03-2021;960;0;238;1;Spese correnti;3;Acquisto di beni e servizi;2;Acquisto di servizi;5;Utenze e canoni;4;Energia elettrica;17-03-2021;
625;1;619;"856,57";"856,57";ENEL ENERGIA SPA;82396527ED;SALDO Fatt.n. 004114720924  del 05/03/2021 FATTURA Descrizione Contratto CONSIPEE17_5_FIX18M;16-03-2021;881;0;234;1;Spese correnti;3;Acquisto di beni e servizi;2;Acquisto di servizi;5;Utenze e canoni;4;Energia elettrica;17-03-2021;
626;1;620;"48,81";"48,81";ENEL ENERGIA SPA;82396527ED;SALDO Fatt.n. 004114720925  del 05/03/2021 FATTURA Descrizione Contratto CONSIPEE17_5_FIX18M;16-03-2021;960;0;238;1;Spese correnti;3;Acquisto di beni e servizi;2;Acquisto di servizi;5;Utenze e canoni;4;Energia elettrica;17-03-2021;
627;1;621;"18,19";"18,19";ENEL ENERGIA SPA;82396527ED;SALDO Fatt.n. 004114720926  del 05/03/2021 FATTURA Descrizione Contratto CONSIPEE17_5_FIX18M;16-03-2021;960;0;238;1;Spese correnti;3;Acquisto di beni e servizi;2;Acquisto di servizi;5;Utenze e canoni;4;Energia elettrica;17-03-2021;
628;1;622;"73,05";"73,05";ENEL ENERGIA SPA;82396527ED;SALDO Fatt.n. 004114720927  del 05/03/2021 FATTURA Descrizione Contratto CONSIPEE17_5_FIX18M;16-03-2021;960;0;238;1;Spese correnti;3;Acquisto di beni e servizi;2;Acquisto di servizi;5;Utenze e canoni;4;Energia elettrica;17-03-2021;
629;1;623;"557,91";"557,91";ENEL ENERGIA SPA;82396527ED;SALDO Fatt.n. 004114720928  del 05/03/2021 FATTURA Descrizione Contratto CONSIPEE17_5_FIX18M;16-03-2021;960;0;238;1;Spese correnti;3;Acquisto di beni e servizi;2;Acquisto di servizi;5;Utenze e canoni;4;Energia elettrica;17-03-2021;
630;1;624;"846,74";"846,74";ENEL ENERGIA SPA;82396527ED;SALDO Fatt.n. 004114720930  del 05/03/2021 FATTURA Descrizione Contratto CONSIPEE17_5_FIX18M;16-03-2021;886;0;235;1;Spese correnti;3;Acquisto di beni e servizi;2;Acquisto di servizi;5;Utenze e canoni;4;Energia elettrica;17-03-2021;
631;1;625;"618,65";"618,65";ENEL ENERGIA SPA;82396527ED;SALDO Fatt.n. 004114720931  del 05/03/2021 FATTURA Descrizione Contratto CONSIPEE17_5_FIX18M;16-03-2021;960;0;238;1;Spese correnti;3;Acquisto di beni e servizi;2;Acquisto di servizi;5;Utenze e canoni;4;Energia elettrica;17-03-2021;
632;1;626;"89,76";"89,76";ENEL ENERGIA SPA;82396527ED;SALDO Fatt.n. 004114720932  del 05/03/2021 FATTURA Descrizione Contratto CONSIPEE17_5_FIX18M;16-03-2021;960;0;238;1;Spese correnti;3;Acquisto di beni e servizi;2;Acquisto di servizi;5;Utenze e canoni;4;Energia elettrica;17-03-2021;
633;1;627;"91,85";"91,85";ENEL ENERGIA SPA;82396527ED;SALDO Fatt.n. 004114720933  del 05/03/2021 FATTURA Descrizione Contratto CONSIPEE17_5_FIX18M;16-03-2021;960;0;238;1;Spese correnti;3;Acquisto di beni e servizi;2;Acquisto di servizi;5;Utenze e canoni;4;Energia elettrica;17-03-2021;
634;1;628;"306,55";"306,55";ENEL ENERGIA SPA;82396527ED;SALDO Fatt.n. 004114720934  del 05/03/2021 FATTURA Descrizione Contratto CONSIPEE17_5_FIX18M;16-03-2021;885;0;229;1;Spese correnti;3;Acquisto di beni e servizi;2;Acquisto di servizi;5;Utenze e canoni;4;Energia elettrica;17-03-2021;
635;1;629;"472,24";"472,24";ENEL ENERGIA SPA;82396527ED;SALDO Fatt.n. 004114720935  del 05/03/2021 FATTURA Descrizione Contratto CONSIPEE17_5_FIX18M;16-03-2021;960;0;238;1;Spese correnti;3;Acquisto di beni e servizi;2;Acquisto di servizi;5;Utenze e canoni;4;Energia elettrica;17-03-2021;
636;1;630;"6,10";"6,10";ENEL ENERGIA SPA;82396527ED;SALDO Fatt.n. 004114720936  del 05/03/2021 FATTURA Descrizione Contratto CONSIPEE17_5_FIX18M;16-03-2021;354;0;237;1;Spese correnti;3;Acquisto di beni e servizi;2;Acquisto di servizi;5;Utenze e canoni;4;Energia elettrica;17-03-2021;
637;1;631;"374,31";"374,31";ENEL ENERGIA SPA;82396527ED;SALDO Fatt.n. 004114720937  del 05/03/2021 FATTURA Descrizione Contratto CONSIPEE17_5_FIX18M;16-03-2021;960;0;238;1;Spese correnti;3;Acquisto di beni e servizi;2;Acquisto di servizi;5;Utenze e canoni;4;Energia elettrica;17-03-2021;
638;1;632;"27,58";"27,58";ENEL ENERGIA SPA;82396527ED;SALDO Fatt.n. 004114720938  del 05/03/2021 FATTURA Descrizione Contratto CONSIPEE17_5_FIX18M;16-03-2021;354;0;237;1;Spese correnti;3;Acquisto di beni e servizi;2;Acquisto di servizi;5;Utenze e canoni;4;Energia elettrica;17-03-2021;
639;1;633;"1.040,86";"1.040,86";ENEL ENERGIA SPA;82396527ED;SALDO Fatt.n. 004114720939  del 05/03/2021 FATTURA Descrizione Contratto CONSIPEE17_5_FIX18M;16-03-2021;960;0;238;1;Spese correnti;3;Acquisto di beni e servizi;2;Acquisto di servizi;5;Utenze e canoni;4;Energia elettrica;17-03-2021;
640;1;634;"76,03";"76,03";ENEL ENERGIA SPA;82396527ED;SALDO Fatt.n. 004114720940  del 05/03/2021 FATTURA Descrizione Contratto CONSIPEE17_5_FIX18M;16-03-2021;960;0;238;1;Spese correnti;3;Acquisto di beni e servizi;2;Acquisto di servizi;5;Utenze e canoni;4;Energia elettrica;17-03-2021;
641;1;635;"243,09";"243,09";ENEL ENERGIA SPA;82396527ED;SALDO Fatt.n. 004114720941  del 05/03/2021 FATTURA Descrizione Contratto CONSIPEE17_5_FIX18M;16-03-2021;960;0;238;1;Spese correnti;3;Acquisto di beni e servizi;2;Acquisto di servizi;5;Utenze e canoni;4;Energia elettrica;17-03-2021;
642;1;636;"22,06";"22,06";ENEL ENERGIA SPA;82396527ED;SALDO Fatt.n. 004114720942  del 05/03/2021 FATTURA Descrizione Contratto CONSIPEE17_5_FIX18M;16-03-2021;354;0;237;1;Spese correnti;3;Acquisto di beni e servizi;2;Acquisto di servizi;5;Utenze e canoni;4;Energia elettrica;17-03-2021;
643;1;637;"899,45";"899,45";ENEL ENERGIA SPA;82396527ED;SALDO Fatt.n. 004114720943  del 05/03/2021 FATTURA Descrizione Contratto CONSIPEE17_5_FIX18M;16-03-2021;960;0;238;1;Spese correnti;3;Acquisto di beni e servizi;2;Acquisto di servizi;5;Utenze e canoni;4;Energia elettrica;17-03-2021;
644;1;638;"162,60";"162,60";ENEL ENERGIA SPA;82396527ED;SALDO Fatt.n. 004114720944  del 05/03/2021 FATTURA Descrizione Contratto CONSIPEE17_5_FIX18M;16-03-2021;960;0;238;1;Spese correnti;3;Acquisto di beni e servizi;2;Acquisto di servizi;5;Utenze e canoni;4;Energia elettrica;17-03-2021;
645;1;639;"191,97";"191,97";ENEL ENERGIA SPA;82396527ED;SALDO Fatt.n. 004114720945  del 05/03/2021 FATTURA Descrizione Contratto CONSIPEE17_5_FIX18M;16-03-2021;211;0;232;1;Spese correnti;3;Acquisto di beni e servizi;2;Acquisto di servizi;5;Utenze e canoni;4;Energia elettrica;17-03-2021;
646;1;640;"5,71";"5,71";ENEL ENERGIA SPA;82396527ED;SALDO Fatt.n. 004114720946  del 05/03/2021 FATTURA Descrizione Contratto CONSIPEE17_5_FIX18M;16-03-2021;960;0;238;1;Spese correnti;3;Acquisto di beni e servizi;2;Acquisto di servizi;5;Utenze e canoni;4;Energia elettrica;17-03-2021;
647;1;641;"86,84";"86,84";ENEL ENERGIA SPA;82396527ED;SALDO Fatt.n. 004114720947  del 05/03/2021 FATTURA Descrizione Contratto CONSIPEE17_5_FIX18M;16-03-2021;354;0;237;1;Spese correnti;3;Acquisto di beni e servizi;2;Acquisto di servizi;5;Utenze e canoni;4;Energia elettrica;17-03-2021;
648;1;642;"14,03";"14,03";ENEL ENERGIA SPA;82396527ED;SALDO Fatt.n. 004114720948  del 05/03/2021 FATTURA Descrizione Contratto CONSIPEE17_5_FIX18M;16-03-2021;354;0;237;1;Spese correnti;3;Acquisto di beni e servizi;2;Acquisto di servizi;5;Utenze e canoni;4;Energia elettrica;17-03-2021;
649;1;643;"17,75";"17,75";ENEL ENERGIA SPA;82396527ED;SALDO Fatt.n. 004114720949  del 05/03/2021 FATTURA Descrizione Contratto CONSIPEE17_5_FIX18M;16-03-2021;354;0;237;1;Spese correnti;3;Acquisto di beni e servizi;2;Acquisto di servizi;5;Utenze e canoni;4;Energia elettrica;17-03-2021;
650;1;644;"713,00";"713,00";ENEL ENERGIA SPA;82396527ED;SALDO Fatt.n. 004116436650  del 07/03/2021 FATTURA Descrizione Contratto CONSIPEE17_5_FIX18M;16-03-2021;960;0;238;1;Spese correnti;3;Acquisto di beni e servizi;2;Acquisto di servizi;5;Utenze e canoni;4;Energia elettrica;17-03-2021;
651;1;645;"3.225,00";"3.225,00";MAG SPA;Z262CE2240;ASSICURAZIONI. POLIZZA RC PATRIMONIALE COLPA LIEVE. LIQUIDAZIONE PREMIO ANNO 2021;16-03-2021;120;0;342;1;Spese correnti;10;Altre spese correnti;4;Premi di assicurazione;1;Premi di assicurazione contro i danni;3;Premi di assicurazione per responsabilità civile verso terzi;17-03-2021;
652;1;646;"1.000,00";"1.000,00";MAG SPA;ZB22C6A4EE;Assicurazioni. Polizza Kasko Km Enti Pubblici. Liquidazione premio anno 2021;16-03-2021;120;0;322;1;Spese correnti;10;Altre spese correnti;4;Premi di assicurazione;1;Premi di assicurazione contro i danni;999;Altri premi di assicurazione contro i danni;17-03-2021;
653;1;647;"4.043,31";"4.043,31";MAG SPA;Z6F2C78CE4;Assicurazioni. RCA libro Matricola Globale. Liquidazione premio anno 2021;16-03-2021;120;0;246;1;Spese correnti;10;Altre spese correnti;4;Premi di assicurazione;1;Premi di assicurazione contro i danni;3;Premi di assicurazione per responsabilità civile verso terzi;17-03-2021;
654;1;648;"2.950,00";"2.950,00";MAG SPA;Z782C6A4FC;Assicurazioni. polizza Tutela Legale. Liquidazione premio anno 2021.;16-03-2021;120;0;325;1;Spese correnti;10;Altre spese correnti;4;Premi di assicurazione;1;Premi di assicurazione contro i danni;999;Altri premi di assicurazione contro i danni;17-03-2021;
655;1;649;"35.000,00";"35.000,00";MAG SPA;8244359445;Assicurazioni. Polizza RCT/RCO. Liquidazione premio 2021;16-03-2021;120;0;336;1;Spese correnti;10;Altre spese correnti;4;Premi di assicurazione;1;Premi di assicurazione contro i danni;3;Premi di assicurazione per responsabilità civile verso terzi;17-03-2021;
656;1;650;"9.999,99";"9.999,99";MAG SPA;Z0A2C6A4C0;Assicurazioni. polizza All Risks (generale + fabbricati storici). Liquidazione premio 2021;16-03-2021;120;0;324;1;Spese correnti;10;Altre spese correnti;4;Premi di assicurazione;1;Premi di assicurazione contro i danni;2;Premi di assicurazione su beni immobili;17-03-2021;
657;1;593;"60,56";"60,56";TELECOM ITALIA;Z6E2A4DE7A;SOGGETTI DIVERSI-PAGAMENTO ADUE B2B            COD DISP 01210305053468 NOME  TELECOM ITALIA SPA MANDATO    80020100004507652787153B A  ACCONTO (P. 54 -R. 593 del 16/03/2021);17-03-2021;543;0;736;1;Spese correnti;3;Acquisto di beni e servizi;2;Acquisto di servizi;5;Utenze e canoni;1;Telefonia fissa;23-03-2021;
658;1;659;"13,32";"13,32";TELECOM ITALIA;Z6D2A4DE7A;SALDO Fatt.n. 8E00120520  del 11/02/2021 2BIM 2021;17-03-2021;543;0;736;1;Spese correnti;3;Acquisto di beni e servizi;2;Acquisto di servizi;5;Utenze e canoni;1;Telefonia fissa;23-03-2021;
659;1;597;"111,04";"111,04";TELECOM ITALIA;Z6D2A4DE7A;SOGGETTI DIVERSI-PAGAMENTO ADUE B2B            COD DISP 012103050533QY NOME  TELECOM ITALIA SPA MANDATO    80020100004506150148153B A  ACCONTO (P. 58 -R. 597 del 16/03/2021);17-03-2021;113;0;734;1;Spese correnti;3;Acquisto di beni e servizi;2;Acquisto di servizi;5;Utenze e canoni;1;Telefonia fissa;23-03-2021;
660;1;660;"24,43";"24,43";TELECOM ITALIA;Z6D2A4DE7A;SALDO Fatt.n. 8E00116026  del 11/02/2021 2BIM 2021;17-03-2021;113;0;734;1;Spese correnti;3;Acquisto di beni e servizi;2;Acquisto di servizi;5;Utenze e canoni;1;Telefonia fissa;23-03-2021;
661;1;596;"59,55";"59,55";TELECOM ITALIA;Z6E2A4DE7A;SOGGETTI DIVERSI-PAGAMENTO ADUE B2B            COD DISP 0121030505344E NOME  TELECOM ITALIA SPA MANDATO    80020100004507650023133B A  ACCONTO (P. 57 -R. 596 del 16/03/2021);17-03-2021;113;0;734;1;Spese correnti;3;Acquisto di beni e servizi;2;Acquisto di servizi;5;Utenze e canoni;1;Telefonia fissa;23-03-2021;
662;1;596;"51,49";"51,49";TELECOM ITALIA;Z6E2A4DE7A;SOGGETTI DIVERSI-PAGAMENTO ADUE B2B            COD DISP 0121030505344E NOME  TELECOM ITALIA SPA MANDATO    80020100004507650023133B A  ACCONTO (P. 57 -R. 596 del 16/03/2021);17-03-2021;113;0;570;1;Spese correnti;3;Acquisto di beni e servizi;2;Acquisto di servizi;5;Utenze e canoni;1;Telefonia fissa;23-03-2021;
663;1;661;"24,43";"24,43";TELECOM ITALIA;Z6D2A4DE7A;SALDO Fatt.n. 8E00113177  del 11/02/2021 2BIM 2021;17-03-2021;113;0;734;1;Spese correnti;3;Acquisto di beni e servizi;2;Acquisto di servizi;5;Utenze e canoni;1;Telefonia fissa;23-03-2021;
664;1;598;"111,04";"111,04";TELECOM ITALIA;Z6E2A4DE7A;SOGGETTI DIVERSI-PAGAMENTO ADUE B2B            COD DISP 012103050533R4 NOME  TELECOM ITALIA SPA MANDATO    80020100004506151555193B A  ACCONTO (P. 59 -R. 598 del 16/03/2021);17-03-2021;113;0;570;1;Spese correnti;3;Acquisto di beni e servizi;2;Acquisto di servizi;5;Utenze e canoni;1;Telefonia fissa;23-03-2021;
665;1;662;"24,43";"24,43";TELECOM ITALIA;Z6E2A4DE7A;SALDO Fatt.n. 8E00115949  del 11/02/2021 2BIM 2021;17-03-2021;113;0;570;1;Spese correnti;3;Acquisto di beni e servizi;2;Acquisto di servizi;5;Utenze e canoni;1;Telefonia fissa;23-03-2021;
666;1;594;"100,00";"100,00";TELECOM ITALIA;Z6D2A4DE7A;SOGGETTI DIVERSI-PAGAMENTO ADUE B2B            COD DISP 012103050533R8 NOME  TELECOM ITALIA SPA MANDATO    80020100004506152502113B A  ACCONTO (P. 55 -R. 594 del 16/03/2021);17-03-2021;213;0;735;1;Spese correnti;3;Acquisto di beni e servizi;2;Acquisto di servizi;5;Utenze e canoni;1;Telefonia fissa;23-03-2021;
667;1;663;"22,00";"22,00";TELECOM ITALIA;Z6D2A4DE7A;SALDO Fatt.n. 8E00113575  del 11/02/2021 2BIM 2021;17-03-2021;213;0;735;1;Spese correnti;3;Acquisto di beni e servizi;2;Acquisto di servizi;5;Utenze e canoni;1;Telefonia fissa;23-03-2021;
668;1;595;"133,46";"133,46";TELECOM ITALIA;Z6D2A4DE7A;SOGGETTI DIVERSI-PAGAMENTO ADUE B2B            COD DISP 01210305053463 NOME  TELECOM ITALIA SPA MANDATO    80020100004507650048143B A  ACCONTO (P. 56 -R. 595 del 16/03/2021);17-03-2021;583;0;737;1;Spese correnti;3;Acquisto di beni e servizi;2;Acquisto di servizi;5;Utenze e canoni;1;Telefonia fissa;23-03-2021;
669;1;664;"29,36";"29,36";TELECOM ITALIA;Z6D2A4DE7A;SALDO Fatt.n. 8E00113664  del 11/02/2021 2BIM 2021;17-03-2021;583;0;737;1;Spese correnti;3;Acquisto di beni e servizi;2;Acquisto di servizi;5;Utenze e canoni;1;Telefonia fissa;23-03-2021;
670;1;665;"51,91";"51,91";LEGGERE SRL;Z7E2C5EA5A;SALDO Fatt.n. 3676  del 26/02/2021 ACQUISTO LIBRI BIBLIOTECA;18-03-2021;681;0;209;1;Spese correnti;3;Acquisto di beni e servizi;1;Acquisto di beni;1;"Giornali, riviste e pubblicazioni";2;Pubblicazioni;23-03-2021;
671;1;666;"10.125,00";"10.125,00";SCUOLA MATERNA "MARIA IMMACOLATA" STRA'; ;"CONVENZIONE CON LE SCUOLE MATERNE DEL  TERRITORIO, ART.10 - EROGAZIONE PRIMO ACCONTO DEL CONTRIBUTO ECONOMICO PREVISTO PER LANNO 2021.";22-03-2021;480;0;184;1;Spese correnti;4;Trasferimenti correnti;4;Trasferimenti correnti a Istituzioni Sociali Private;1;Trasferimenti correnti a Istituzioni Sociali Private;1;Trasferimenti correnti a Istituzioni Sociali Private;23-03-2021;
672;1;673;"4.240,00";"4.240,00";AMMINISTRATORI COMUNALI; ;INDENNITA DI CARICA EROGATA NEL MESE DI MARZO 2021;22-03-2021;10;0;2;1;Spese correnti;3;Acquisto di beni e servizi;2;Acquisto di servizi;1;Organi e incarichi istituzionali dell'amministrazione;1;Organi istituzionali dell'amministrazione - Indennità;29-03-2021;
743;1;674;"833,29";"833,29";EDILTOSI SRL;Z9B248C873;SALDO Fatt.n. 001128  del 28/02/2021 FATTURA;23-03-2021;350;0;505;1;Spese correnti;3;Acquisto di beni e servizi;1;Acquisto di beni;2;Altri beni di consumo;999;Altri beni e materiali di consumo n.a.c.;26-03-2021;
744;1;675;"65,88";"65,88";CONSORZIO AGRARIO DEL NORDEST;ZAC2D2B172;SALDO Fatt.n. 019815/V1  del 28/02/2021 FATTURA;23-03-2021;350;0;368;1;Spese correnti;3;Acquisto di beni e servizi;1;Acquisto di beni;2;Altri beni di consumo;999;Altri beni e materiali di consumo n.a.c.;26-03-2021;
745;1;676;"97,60";"97,60";CIVIS SPA;Z362D7E2EA;SALDO Fatt.n. V9/0001050  del 12/03/2021 Fattura;23-03-2021;357;0;401;1;Spese correnti;3;Acquisto di beni e servizi;2;Acquisto di servizi;13;Servizi ausiliari per il funzionamento dell'ente;1;"Servizi di sorveglianza, custodia e accoglienza";26-03-2021;
746;1;677;"0,21";"0,21";ENEL ENERGIA SPA;82396527ED;SALDO Fatt.n. 004121243223  del 12/03/2021 FATTURA Descrizione Contratto CONSIPEE17_5_FIX18M;23-03-2021;960;0;238;1;Spese correnti;3;Acquisto di beni e servizi;2;Acquisto di servizi;5;Utenze e canoni;4;Energia elettrica;26-03-2021;
747;1;678;"5.710,58";"5.710,58";CIDIELLE COOPERATIVA SOCIALE;83634823AE;SALDO Fatt.n. 66/02  del 28/02/2021 Fattura;23-03-2021;952;0;457;1;Spese correnti;3;Acquisto di beni e servizi;2;Acquisto di servizi;9;Manutenzione ordinaria e riparazioni;8;Manutenzione ordinaria e riparazioni di beni immobili;26-03-2021;
748;1;679;"6,88";"6,88";ENEL ENERGIA SPA;82396527ED;SALDO Fatt.n. 004121243224  del 12/03/2021 FATTURA Descrizione Contratto CONSIPEE17_5_FIX18M;23-03-2021;960;0;238;1;Spese correnti;3;Acquisto di beni e servizi;2;Acquisto di servizi;5;Utenze e canoni;4;Energia elettrica;26-03-2021;
749;1;680;"172,67";"172,67";ENEL ENERGIA SPA;82396527ED;SALDO Fatt.n. 004121243225  del 12/03/2021 FATTURA Descrizione Contratto CONSIPEE17_5_FIX18M;23-03-2021;960;0;238;1;Spese correnti;3;Acquisto di beni e servizi;2;Acquisto di servizi;5;Utenze e canoni;4;Energia elettrica;26-03-2021;
750;1;681;"2.502,28";"2.502,28";ENEL ENERGIA SPA;82396527ED;SALDO Fatt.n. 004121243226  del 12/03/2021 FATTURA Descrizione Contratto CONSIPEE17_5_FIX18M;23-03-2021;111;0;236;1;Spese correnti;3;Acquisto di beni e servizi;2;Acquisto di servizi;5;Utenze e canoni;4;Energia elettrica;26-03-2021;
751;1;682;"1.342,00";"1.342,00";PIZZEGHELLA E STEVAN SRL STEVAN;Z1926792B2;SALDO Fatt.n. 29/PA  del 16/02/2021 Fattura;23-03-2021;352;0;761;1;Spese correnti;3;Acquisto di beni e servizi;2;Acquisto di servizi;9;Manutenzione ordinaria e riparazioni;4;Manutenzione ordinaria e riparazioni di impianti e macchinari;26-03-2021;
752;1;683;"124,44";"124,44";LERCO ANTINCENDI SRL;ZE32CB361C;SALDO Fatt.n. 8/PA  del 26/02/2021 FATTURA Rif. Determinazione n 52 del 14/04/2020;23-03-2021;352;0;269;1;Spese correnti;3;Acquisto di beni e servizi;2;Acquisto di servizi;9;Manutenzione ordinaria e riparazioni;8;Manutenzione ordinaria e riparazioni di beni immobili;26-03-2021;
753;1;684;"3.436,13";"3.436,13";SISE SISTEMI SEGNALETICI SPA;Z7E2FBDF32;SALDO Fatt.n. 86/F4  del 25/02/2021 FATTURA;23-03-2021;950;0;685;1;Spese correnti;3;Acquisto di beni e servizi;1;Acquisto di beni;2;Altri beni di consumo;999;Altri beni e materiali di consumo n.a.c.;26-03-2021;
754;1;685;"277,26";"277,26";FOLETTO LUCIANO SRL;Z4B2981DE3;SALDO Fatt.n. 2021-E-0000006  del 27/02/2021 FATTURE ELETTRONICHE;23-03-2021;350;0;759;1;Spese correnti;3;Acquisto di beni e servizi;1;Acquisto di beni;2;Altri beni di consumo;999;Altri beni e materiali di consumo n.a.c.;26-03-2021;
755;1;686;"2.822,96";"2.822,96";IPS SRL;Z063091BB5;SALDO Fatt.n. 54  del 25/02/2021 FATTURA;23-03-2021;1108;0;802;2;Spese in conto capitale;2;Investimenti fissi lordi e acquisto di terreni;1;Beni materiali;9;Beni immobili;3;Fabbricati ad uso scolastico;26-03-2021;
756;1;687;"1.384,45";"1.384,45";MORANDO FRANCESCO;Z7F2A916A2;ACCONTO Fatt.n. 60/E  del 08/03/2021 FATTURA;23-03-2021;870;0;764;1;Spese correnti;3;Acquisto di beni e servizi;2;Acquisto di servizi;9;Manutenzione ordinaria e riparazioni;8;Manutenzione ordinaria e riparazioni di beni immobili;26-03-2021;
757;1;688;"11.141,29";"11.141,29";MORANDO FRANCESCO;Z7F2A916A2;SALDO Fatt.n. 60/E  del 08/03/2021 FATTURA;23-03-2021;870;0;665;1;Spese correnti;3;Acquisto di beni e servizi;2;Acquisto di servizi;9;Manutenzione ordinaria e riparazioni;8;Manutenzione ordinaria e riparazioni di beni immobili;26-03-2021;
758;1;689;"5,88";"5,88";COMUNE DI SAN MARTINO BUON ALBERGO; ;"RIMBORSO SPESE DI NOTIFICA ATTI EFFETTUATE DA PARTE DI ALTRI COMUNI - IMPEGNO DI SPESA PER GLI ANNI 2019, 2020 E 2021.";24-03-2021;843;0;87;1;Spese correnti;3;Acquisto di beni e servizi;2;Acquisto di servizi;3;Aggi di riscossione;999;Altri aggi di riscossione n.a.c.;26-03-2021;
759;1;690;"5,88";"5,88";COMUNE DI MONTEFORTE D'ALPONE; ;"RIMBORSO SPESE DI NOTIFICA ATTI EFFETTUATE DA PARTE DI ALTRI COMUNI - IMPEGNO DI SPESA PER GLI ANNI 2019, 2020 E 2021. (RIF. VS. PROT. N. 1385/2021)";24-03-2021;843;0;87;1;Spese correnti;3;Acquisto di beni e servizi;2;Acquisto di servizi;3;Aggi di riscossione;999;Altri aggi di riscossione n.a.c.;26-03-2021;
760;1;691;"11,76";"11,76";COMUNE DI VERONA; ;"RIMBORSO SPESE DI NOTIFICA ATTI EFFETTUATE DA PARTE DI ALTRI COMUNI - IMPEGNO DI SPESA PER GLI ANNI 2019, 2020 E 2021. (RIF. SPESE DI NOTIFIC N. 210057)";24-03-2021;843;0;87;1;Spese correnti;3;Acquisto di beni e servizi;2;Acquisto di servizi;3;Aggi di riscossione;999;Altri aggi di riscossione n.a.c.;26-03-2021;
761;1;692;"18,06";"18,06";COMUNE DI VERONA; ;"RIMBORSO SPESE DI NOTIFICA ATTI EFFETTUATE DA PARTE DI ALTRI COMUNI - IMPEGNO DI SPESA PER GLI ANNI 2019, 2020 E 2021. (RIF. SPESE DI NOTIFICA N. 210250).";24-03-2021;843;0;87;1;Spese correnti;3;Acquisto di beni e servizi;2;Acquisto di servizi;3;Aggi di riscossione;999;Altri aggi di riscossione n.a.c.;26-03-2021;
762;1;693;"1.366,40";"1.366,40";FONDERIA VELO SRL;Z702951F54;ACCONTO Fatt.n. F2100762  del 19/03/2021 FATTURA VENDITA;24-03-2021;950;0;765;1;Spese correnti;3;Acquisto di beni e servizi;1;Acquisto di beni;2;Altri beni di consumo;7;Altri materiali tecnico-specialistici non sanitari;26-03-2021;
763;1;694;"1.756,80";"1.756,80";FONDERIA VELO SRL;Z702951F54;SALDO Fatt.n. F2100762  del 19/03/2021 FATTURA VENDITA;24-03-2021;950;0;467;1;Spese correnti;3;Acquisto di beni e servizi;1;Acquisto di beni;2;Altri beni di consumo;7;Altri materiali tecnico-specialistici non sanitari;26-03-2021;
764;1;695;"561,20";"561,20";IL VOLANTINAGGIO SRL;ZCD3065A76;SALDO Fatt.n. 64/001  del 28/02/2021 FATTURA;24-03-2021;115;0;72;1;Spese correnti;3;Acquisto di beni e servizi;2;Acquisto di servizi;11;Prestazioni professionali e specialistiche;999;Altre prestazioni professionali e specialistiche n.a.c.;26-03-2021;
765;1;696;"490,09";"490,09";CIRFOOD SOCIETA' COOPERATIVA ITALIANA DI RISTORAZIONE;80300395CF;"SALDO Fatt.n. 5200007083  del 15/03/2021 FATTURA Destinatario:0000129572,COMUNE DI CALDIERO,PIAZZA MARCOLUNGO 19,CALDIERO,37042,VR";24-03-2021;662;0;492;1;Spese correnti;3;Acquisto di beni e servizi;2;Acquisto di servizi;15;Contratti di servizio pubblico;6;Contratti di servizio per le mense scolastiche;26-03-2021;
766;1;697;"9.062,14";"9.062,14";CIRFOOD SOCIETA' COOPERATIVA ITALIANA DI RISTORAZIONE;80300395CF;"SALDO Fatt.n. 5200005914  del 28/02/2021 FATTURA Destinatario:0000528988,SC.PRIMARIA C.EDERLECOMUNE DI CALDIERO,PIAZZA VITTORIO VENETO .,CALDIERO,37042,VR";24-03-2021;662;0;492;1;Spese correnti;3;Acquisto di beni e servizi;2;Acquisto di servizi;15;Contratti di servizio pubblico;6;Contratti di servizio per le mense scolastiche;26-03-2021;
767;1;698;"275,00";"275,00";LEGISLAZIONE TECNICA SRL;Z5030708A1;SALDO Fatt.n. 211/PA/2021  del 18/02/2021 ABBONAMENTO LEGISLAZIONE TECNICA;24-03-2021;150;0;79;1;Spese correnti;3;Acquisto di beni e servizi;2;Acquisto di servizi;5;Utenze e canoni;3;Accesso a banche dati e a pubblicazioni on line;26-03-2021;
768;1;699;"330,00";"330,00";SEPEL EDITRICE - LO STATO CIVILE ITALIANO;Z86307077F;SALDO Fatt.n. 597/2  del 09/03/2021 ABBONAMENTO LO STATO CIVILE ITALIANO;24-03-2021;150;0;78;1;Spese correnti;3;Acquisto di beni e servizi;2;Acquisto di servizi;5;Utenze e canoni;3;Accesso a banche dati e a pubblicazioni on line;26-03-2021;
769;1;700;"122,00";"122,00";CIDIELLE COOPERATIVA SOCIALE;ZA330A9A3F;SALDO Fatt.n. 49/02  del 28/02/2021 PULIZIE STRAORDINARIE SALA AUDITORIUM E SALA CONSILIARE PER CONCORSO;24-03-2021;117;0;101;1;Spese correnti;3;Acquisto di beni e servizi;2;Acquisto di servizi;13;Servizi ausiliari per il funzionamento dell'ente;2;Servizi di pulizia e lavanderia;26-03-2021;
770;1;701;"2.398,48";"2.398,48";CIDIELLE COOPERATIVA SOCIALE;7815839A5F;SALDO Fatt.n. 50/02  del 28/02/2021 SERVIZIO PULIZIA UFFICI MESE DI FEBBRAIO 2021;24-03-2021;117;0;115;1;Spese correnti;3;Acquisto di beni e servizi;2;Acquisto di servizi;13;Servizi ausiliari per il funzionamento dell'ente;2;Servizi di pulizia e lavanderia;26-03-2021;
771;1;654;"2.245,16";"2.245,16";SINERGAS SPA;827398004C;SOGGETTI DIVERSI-PAGAMENTO ADUE                COD DISP 012103100A72F1 NOME  SINERGAS SPA MANDATO          99Z1610053624A299 PFM 5828960 Fattura 211027899 del 12 02 21 Scad 19 0  ACCONTO (P. 63 -R. 654 del 19/03/2021);24-03-2021;542;0;291;1;Spese correnti;3;Acquisto di beni e servizi;2;Acquisto di servizi;5;Utenze e canoni;6;Gas;26-03-2021;
772;1;702;"463,37";"463,37";SINERGAS SPA;827398004C;SALDO Fatt.n. 211027899  del 12/02/2021 FATTURA FORNITURA GAS;24-03-2021;542;0;291;1;Spese correnti;3;Acquisto di beni e servizi;2;Acquisto di servizi;5;Utenze e canoni;6;Gas;26-03-2021;
773;1;652;"1.034,71";"1.034,71";SINERGAS SPA;827398004C;SOGGETTI DIVERSI-PAGAMENTO ADUE                COD DISP 012103100A72EC NOME  SINERGAS SPA MANDATO          99Z1610053624A299 PFM 5828961 Fattura 211027900 del 12 02 21 Scad 19 0  ACCONTO (P. 61 -R. 652 del 19/03/2021);24-03-2021;887;0;295;1;Spese correnti;3;Acquisto di beni e servizi;2;Acquisto di servizi;5;Utenze e canoni;6;Gas;26-03-2021;
774;1;703;"212,36";"212,36";SINERGAS SPA;827398004C;SALDO Fatt.n. 211027900  del 12/02/2021 FATTURA FORNITURA GAS;24-03-2021;887;0;295;1;Spese correnti;3;Acquisto di beni e servizi;2;Acquisto di servizi;5;Utenze e canoni;6;Gas;26-03-2021;
775;1;657;"611,09";"611,09";SINERGAS SPA;827398004C;SOGGETTI DIVERSI-PAGAMENTO ADUE                COD DISP 012103100A71QF NOME  SINERGAS SPA MANDATO          99Z1610053624A299 PFM 5828962 Fattura 211027901 del 12 02 21 Scad 19 0  ACCONTO (P. 66 -R. 657 del 19/03/2021);24-03-2021;582;0;292;1;Spese correnti;3;Acquisto di beni e servizi;2;Acquisto di servizi;5;Utenze e canoni;6;Gas;26-03-2021;
776;1;704;"119,16";"119,16";SINERGAS SPA;827398004C;SALDO Fatt.n. 211027901  del 12/02/2021 FATTURA FORNITURA GAS;24-03-2021;582;0;292;1;Spese correnti;3;Acquisto di beni e servizi;2;Acquisto di servizi;5;Utenze e canoni;6;Gas;26-03-2021;
777;1;655;"2.264,19";"2.264,19";SINERGAS SPA;827398004C;SOGGETTI DIVERSI-PAGAMENTO ADUE                COD DISP 012103100A72JG NOME  SINERGAS SPA MANDATO          99Z1610053624A299 PFM 5828964 Fattura 211027903 del 12 02 21 Scad 19 0  ACCONTO (P. 64 -R. 655 del 19/03/2021);24-03-2021;888;0;296;1;Spese correnti;3;Acquisto di beni e servizi;2;Acquisto di servizi;5;Utenze e canoni;6;Gas;26-03-2021;
778;1;705;"482,84";"482,84";SINERGAS SPA;827398004C;SALDO Fatt.n. 211027903  del 12/02/2021 FATTURA FORNITURA GAS;24-03-2021;888;0;296;1;Spese correnti;3;Acquisto di beni e servizi;2;Acquisto di servizi;5;Utenze e canoni;6;Gas;26-03-2021;
779;1;656;"291,75";"291,75";SINERGAS SPA;827398004C;SOGGETTI DIVERSI-PAGAMENTO ADUE                COD DISP 012103100A72WD NOME  SINERGAS SPA MANDATO          99Z1610053624A299 PFM 5828963 Fattura 211027902 del 12 02 21 Scad 19 0  ACCONTO (P. 65 -R. 656 del 19/03/2021);24-03-2021;112;0;289;1;Spese correnti;3;Acquisto di beni e servizi;2;Acquisto di servizi;5;Utenze e canoni;6;Gas;26-03-2021;
780;1;706;"48,91";"48,91";SINERGAS SPA;827398004C;SALDO Fatt.n. 211027902  del 12/02/2021 FATTURA FORNITURA GAS;24-03-2021;112;0;289;1;Spese correnti;3;Acquisto di beni e servizi;2;Acquisto di servizi;5;Utenze e canoni;6;Gas;26-03-2021;
781;1;651;"622,42";"622,42";SINERGAS SPA;827398004C;SOGGETTI DIVERSI-PAGAMENTO ADUE                COD DISP 012103100A72E5 NOME  SINERGAS SPA MANDATO          99Z1610053624A299 PFM 5828965 Fattura 211027904 del 12 02 21 Scad 19 0  ACCONTO (P. 60 -R. 651 del 19/03/2021);24-03-2021;212;0;290;1;Spese correnti;3;Acquisto di beni e servizi;2;Acquisto di servizi;5;Utenze e canoni;6;Gas;26-03-2021;
782;1;707;"121,65";"121,65";SINERGAS SPA;827398004C;SALDO Fatt.n. 211027904  del 12/02/2021 FATTURA FORNITURA GAS;24-03-2021;212;0;290;1;Spese correnti;3;Acquisto di beni e servizi;2;Acquisto di servizi;5;Utenze e canoni;6;Gas;26-03-2021;
783;1;708;"2.340,00";"2.340,00";PAZZOCCO COSTRUZIONI S.R.L.;8332633248;SALDO Fatt.n. 16/21  del 25/02/2021 FATTURA SAL n. 1 INTEGRAZIONE - Lavori di eliminazione delle barriere architettoniche presenti in Via Don Minzoni nel tratto ricompreso tra Via G. Marconi/Viale della Stazione e la SR11.;25-03-2021;1179;1;372;2;Spese in conto capitale;2;Investimenti fissi lordi e acquisto di terreni;1;Beni materiali;9;Beni immobili;12;Infrastrutture stradali;26-03-2021;
784;1;709;"4.703,49";"4.703,49";PAZZOCCO COSTRUZIONI S.R.L.;8332633248;ACCONTO Fatt.n. 15/21  del 24/02/2021 FATTURA SAL n. 1 - Lavori di eliminazione delle barriere architettoniche presenti in Via Don Minzoni nel tratto ricompreso tra Via G. Marconi/Viale della Stazione e la SR11.;25-03-2021;1179;1;372;2;Spese in conto capitale;2;Investimenti fissi lordi e acquisto di terreni;1;Beni materiali;9;Beni immobili;12;Infrastrutture stradali;26-03-2021;
785;1;710;"42.977,10";"42.977,10";PAZZOCCO COSTRUZIONI S.R.L.;8332633248;ACCONTO Fatt.n. 15/21  del 24/02/2021 FATTURA SAL n. 1 - Lavori di eliminazione delle barriere architettoniche presenti in Via Don Minzoni nel tratto ricompreso tra Via G. Marconi/Viale della Stazione e la SR11.;25-03-2021;1179;0;371;2;Spese in conto capitale;2;Investimenti fissi lordi e acquisto di terreni;1;Beni materiali;9;Beni immobili;12;Infrastrutture stradali;26-03-2021;
786;1;711;"24.916,28";"24.916,28";PAZZOCCO COSTRUZIONI S.R.L.;8332633248;ACCONTO Fatt.n. 15/21  del 24/02/2021 FATTURA SAL n. 1 - Lavori di eliminazione delle barriere architettoniche presenti in Via Don Minzoni nel tratto ricompreso tra Via G. Marconi/Viale della Stazione e la SR11.;25-03-2021;1179;2;535;2;Spese in conto capitale;2;Investimenti fissi lordi e acquisto di terreni;1;Beni materiali;9;Beni immobili;12;Infrastrutture stradali;26-03-2021;
787;1;712;"2.250,00";"2.250,00";PAZZOCCO COSTRUZIONI S.R.L.;8332633248;SALDO Fatt.n. 15/21  del 24/02/2021 FATTURA SAL n. 1 - Lavori di eliminazione delle barriere architettoniche presenti in Via Don Minzoni nel tratto ricompreso tra Via G. Marconi/Viale della Stazione e la SR11.;25-03-2021;1179;2;535;2;Spese in conto capitale;2;Investimenti fissi lordi e acquisto di terreni;1;Beni materiali;9;Beni immobili;12;Infrastrutture stradali;26-03-2021;
793;1;716;"180,00";"180,00";MAG SPA;ZE7310064A;ASSICURAZIONI. POLIZZA "CAUZIONI" PER PISTA CICLABILE CALDIERO CALDIERINO;30-03-2021;120;0;147;1;Spese correnti;10;Altre spese correnti;4;Premi di assicurazione;1;Premi di assicurazione contro i danni;2;Premi di assicurazione su beni immobili;31-03-2021;
794;1;717;"2.150,00";"2.150,00";MAG SPA;Z5E2C6A4D7;ASSICURAZIONI - AFFIDAMENTO COPERTURA ASSICURATIVA  "POLIZZA INFORTUNI CUMULATIVA"  PERIODO 01.05.2020 - 31.12.2022 CIG: Z5E2C6A4D7 - DETERMINAZIONI;30-03-2021;120;0;323;1;Spese correnti;10;Altre spese correnti;4;Premi di assicurazione;1;Premi di assicurazione contro i danni;999;Altri premi di assicurazione contro i danni;31-03-2021;
796;1;653;"1.182,70";"1.182,70";SINERGAS SPA;827398004C;SOGGETTI DIVERSI-PAGAMENTO ADUE                COD DISP 012103100A72EM NOME  SINERGAS SPA MANDATO          99Z1610053624A299 PFM 5828959 Fattura 211027898 del 12 02 21 Scad 19 0  ACCONTO (P. 62 -R. 653 del 19/03/2021);31-03-2021;353;0;293;1;Spese correnti;3;Acquisto di beni e servizi;2;Acquisto di servizi;5;Utenze e canoni;6;Gas;31-03-2021;
797;1;5;"1,15";"3,45";INTESA SAN PAOLO - TESORERIA COMUNALE;ZB823CBCD9;ENTE EROGATORE SERVIZI POS-CANONE SPESE DIVERSE SERVIZIO POS                           COMUNE DI CALDIERO98 COMM     SETEFI5 (P. 5 -R. 5 del 04/01/2021);31-03-2021;374;0;301;1;Spese correnti;3;Acquisto di beni e servizi;2;Acquisto di servizi;17;Servizi finanziari;2;Oneri per servizio di tesoreria;31-03-2021;
797;2;5;"1,15";"3,45";INTESA SAN PAOLO - TESORERIA COMUNALE;ZB823CBCD9;ENTE EROGATORE SERVIZI POS-CANONE SPESE DIVERSE SERVIZIO POS                           COMUNE DI CALDIERO98 COMM     SETEFI5 (P. 7 -R. 7 del 04/01/2021);31-03-2021;374;0;301;1;Spese correnti;3;Acquisto di beni e servizi;2;Acquisto di servizi;17;Servizi finanziari;2;Oneri per servizio di tesoreria;31-03-2021;
797;3;5;"1,15";"3,45";INTESA SAN PAOLO - TESORERIA COMUNALE;ZB823CBCD9;ENTE EROGATORE SERVIZI POS-CANONE SPESE DIVERSE SERVIZIO POS                           COMUNE DI CALDIERO98 COMM     SETEFI5 (P. 32 -R. 196 del 02/02/2021);31-03-2021;374;0;301;1;Spese correnti;3;Acquisto di beni e servizi;2;Acquisto di servizi;17;Servizi finanziari;2;Oneri per servizio di tesoreria;31-03-2021;
798;1;658;"3.398,16";"3.398,16";SINERGAS SPA;827398004C;SOGGETTI DIVERSI-PAGAMENTO ADUE                COD DISP 012103100A72J1 NOME  SINERGAS SPA MANDATO          99Z1610053624A299 PFM 5828966 Fattura 211027905 del 12 02 21 Scad 19 0  ACCONTO (P. 67 -R. 658 del 19/03/2021);31-03-2021;887;0;295;1;Spese correnti;3;Acquisto di beni e servizi;2;Acquisto di servizi;5;Utenze e canoni;6;Gas;31-03-2021;
800;1;718;"229,59";"229,59";SINERGAS SPA;827398004C;SALDO Fatt.n. 211027898  del 12/02/2021 FATTURA FORNITURA GAS;31-03-2021;353;0;293;1;Spese correnti;3;Acquisto di beni e servizi;2;Acquisto di servizi;5;Utenze e canoni;6;Gas;31-03-2021;
801;1;719;"732,32";"732,32";SINERGAS SPA;827398004C;SALDO Fatt.n. 211027905  del 12/02/2021 FATTURA FORNITURA GAS;31-03-2021;887;0;295;1;Spese correnti;3;Acquisto di beni e servizi;2;Acquisto di servizi;5;Utenze e canoni;6;Gas;31-03-2021;
802;1;720;"2.791,06";"2.791,06";PARROCCHIA "SAN LORENZO MARTIRE"; ;LEGGE REGIONALE 20 AGOSTO 1987 N. 44 - RIPARTIZIONE DELLA QUOTA DEI PROVENTI DERIVANTI DAGLI ONERI DI URBANIZZAZIONE SECONDARIA PER GLI INTERVENTI CONCERNENTI LE CHIESE E GLI ALTRI EDIFICI RELIGIOSI PER LESERCIZIO FINANZIARIO 2016;31-03-2021;945;0;846;2;Spese in conto capitale;3;Contributi agli investimenti;4;Contributi agli investimenti a Istituzioni Sociali Private;1;Contributi agli investimenti a Istituzioni Sociali Private;1;Contributi agli investimenti a Istituzioni Sociali Private;31-03-2021;
803;1;721;"2.800,00";"2.800,00";PARROCCHIA "SAN LORENZO MARTIRE"; ;LEGGE REGIONALE 20 AGOSTO 1987 N. 44 - RIPARTIZIONE DELLA QUOTA DEI PROVENTI DERIVANTI DAGLI ONERI DI URBANIZZAZIONE SECONDARIA PER GLI INTERVENTI CONCERNENTI LE CHIESE E GLI ALTRI EDIFICI RELIGIOSI PER LESERCIZIO FINANZIARIO 2017;31-03-2021;945;0;837;2;Spese in conto capitale;3;Contributi agli investimenti;4;Contributi agli investimenti a Istituzioni Sociali Private;1;Contributi agli investimenti a Istituzioni Sociali Private;1;Contributi agli investimenti a Istituzioni Sociali Private;31-03-2021;
804;1;722;"3.000,00";"3.000,00";PARROCCHIA "SAN LORENZO MARTIRE"; ;LEGGE REGIONALE 20 AGOSTO 1987 N. 44 - RIPARTIZIONE DELLA QUOTA DEI PROVENTI DERIVANTI DAGLI ONERI DI URBANIZZAZIONE SECONDARIA PER GLI INTERVENTI CONCERNENTI LE CHIESE E GLI ALTRI EDIFICI RELIGIOSI PER LESERCIZIO FINANZIARIO 2018.;31-03-2021;945;0;769;2;Spese in conto capitale;3;Contributi agli investimenti;4;Contributi agli investimenti a Istituzioni Sociali Private;1;Contributi agli investimenti a Istituzioni Sociali Private;1;Contributi agli investimenti a Istituzioni Sociali Private;31-03-2021;
805;1;723;"1.434,85";"1.434,85";PARROCCHIA "SAN LORENZO MARTIRE"; ;LEGGE REGIONALE 20 AGOSTO 1987 N. 44 - RIPARTIZIONE DELLA QUOTA DEI PROVENTI DERIVANTI DAGLI ONERI DI URBANIZZAZIONE SECONDARIA PER GLI INTERVENTI CONCERNENTI LE CHIESE E GLI ALTRI EDIFICI RELIGIOSI PER LESERCIZIO FINANZIARIO 2018.;31-03-2021;945;0;1;2;Spese in conto capitale;3;Contributi agli investimenti;4;Contributi agli investimenti a Istituzioni Sociali Private;1;Contributi agli investimenti a Istituzioni Sociali Private;1;Contributi agli investimenti a Istituzioni Sociali Private;31-03-2021;
806;1;724;"2.211,79";"2.211,79";PARROCCHIA "SAN LORENZO MARTIRE"; ;LEGGE REGIONALE 20 AGOSTO 1987 N. 44 - RIPARTIZIONE DELLA QUOTA DEI PROVENTI DERIVANTI DAGLI ONERI DI URBANIZZAZIONE SECONDARIA PER GLI INTERVENTI CONCERNENTI LE CHIESE E GLI ALTRI EDIFICI RELIGIOSI PER LESERCIZIO FINANZIARIO 2019 - Parrocchie di Cal;31-03-2021;945;0;763;2;Spese in conto capitale;3;Contributi agli investimenti;4;Contributi agli investimenti a Istituzioni Sociali Private;1;Contributi agli investimenti a Istituzioni Sociali Private;1;Contributi agli investimenti a Istituzioni Sociali Private;31-03-2021;
809;1;786;"234,23";"234,23";MINISTERO DELL'ECONOMIA E DELLE FINANZE; ;VERSAMENTO IVA A DEBITO MESE DI MARZO 2021;01-04-2021;1070;0;169;1;Spese correnti;10;Altre spese correnti;3;Versamenti IVA a debito;1;Versamenti IVA a debito per le gestioni commerciali;1;Versamenti IVA a debito per le gestioni commerciali;14-04-2021;
810;1;737;"102.080,00";"102.080,00";MAINENTE COSTRUZIONI SRL;8363897A24;SALDO Fatt.n. 2/12  del 06/04/2021 FATTURA;09-04-2021;1193;1;546;2;Spese in conto capitale;2;Investimenti fissi lordi e acquisto di terreni;1;Beni materiali;9;Beni immobili;12;Infrastrutture stradali;09-04-2021;
812;1;739;"484,61";"484,61";ABACO SPA;7408612407;SALDO Fatt.n. 2021140000633  del 04/02/2021;09-04-2021;382;0;166;1;Spese correnti;3;Acquisto di beni e servizi;2;Acquisto di servizi;3;Aggi di riscossione;999;Altri aggi di riscossione n.a.c.;09-04-2021;
813;1;740;"232,23";"232,23";ABACO SPA;7408612407;SALDO Fatt.n. 2021140001001  del 05/03/2021;09-04-2021;382;0;166;1;Spese correnti;3;Acquisto di beni e servizi;2;Acquisto di servizi;3;Aggi di riscossione;999;Altri aggi di riscossione n.a.c.;09-04-2021;
814;1;741;"234,52";"234,52";ABACO SPA;7408612407;SALDO Fatt.n. 2021120000967  del 08/03/2021;09-04-2021;382;0;166;1;Spese correnti;3;Acquisto di beni e servizi;2;Acquisto di servizi;3;Aggi di riscossione;999;Altri aggi di riscossione n.a.c.;09-04-2021;
815;1;742;"228,95";"228,95";DE VECCHI CORRADO SRL;ZDB2B481B2;ACCONTO Fatt.n. 03/01  del 25/03/2021;09-04-2021;952;0;767;1;Spese correnti;3;Acquisto di beni e servizi;2;Acquisto di servizi;9;Manutenzione ordinaria e riparazioni;8;Manutenzione ordinaria e riparazioni di beni immobili;09-04-2021;
816;1;743;"11.590,00";"11.590,00";DE VECCHI CORRADO SRL;ZDB2B481B2;SALDO Fatt.n. 03/01  del 25/03/2021;09-04-2021;952;0;719;1;Spese correnti;3;Acquisto di beni e servizi;2;Acquisto di servizi;9;Manutenzione ordinaria e riparazioni;8;Manutenzione ordinaria e riparazioni di beni immobili;09-04-2021;
817;1;744;"824,72";"824,72";GIRARDI CLAUDIO;ZC82C33C5C;SALDO Fatt.n. 13/E  del 16/03/2021;09-04-2021;378;0;176;1;Spese correnti;3;Acquisto di beni e servizi;2;Acquisto di servizi;16;Servizi amministrativi;999;Altre spese per servizi amministrativi;09-04-2021;
818;1;745;"7.698,20";"7.698,20";COMITEL SRL;Z563004F90;SALDO Fatt.n. 49 PA  del 01/03/2021 FATTURA;09-04-2021;1081;0;733;2;Spese in conto capitale;2;Investimenti fissi lordi e acquisto di terreni;1;Beni materiali;7;Hardware;4;Apparati di telecomunicazione;09-04-2021;
819;1;746;"141,20";"141,20";MAZZARINO CLAUDIO;ZF2307053B;SALDO Fatt.n. FATTPA 2_21  del 15/03/2021 FATTURA Visita medica del 09/03/2021;09-04-2021;275;0;74;1;Spese correnti;3;Acquisto di beni e servizi;2;Acquisto di servizi;18;Servizi sanitari;1;Spese per accertamenti sanitari resi necessari dall'attività lavorativa;09-04-2021;
820;1;747;"262,44";"262,44";SISE SISTEMI SEGNALETICI SPA;ZA92A89D97;ACCONTO Fatt.n. 115/F4  del 17/03/2021 FATTURA;09-04-2021;955;0;768;1;Spese correnti;3;Acquisto di beni e servizi;2;Acquisto di servizi;9;Manutenzione ordinaria e riparazioni;8;Manutenzione ordinaria e riparazioni di beni immobili;09-04-2021;
821;1;748;"6.937,45";"6.937,45";SISE SISTEMI SEGNALETICI SPA;ZA92A89D97;SALDO Fatt.n. 115/F4  del 17/03/2021 FATTURA;09-04-2021;955;0;663;1;Spese correnti;3;Acquisto di beni e servizi;2;Acquisto di servizi;9;Manutenzione ordinaria e riparazioni;8;Manutenzione ordinaria e riparazioni di beni immobili;09-04-2021;
822;1;749;"36.851,43";"36.851,43";SERIT SRL SERV. IGIENE TERRITORIO;8616772134;SALDO Fatt.n. 406/FEL  del 30/03/2021 FATTURA VENDITA PA;09-04-2021;840;0;128;1;Spese correnti;3;Acquisto di beni e servizi;2;Acquisto di servizi;15;Contratti di servizio pubblico;4;Contratti di servizio per la raccolta rifiuti;09-04-2021;
823;1;750;"36.851,43";"36.851,43";SERIT SRL SERV. IGIENE TERRITORIO;8616772134;SALDO Fatt.n. 354/FEL  del 29/03/2021 FATTURA VENDITA PA;09-04-2021;840;0;128;1;Spese correnti;3;Acquisto di beni e servizi;2;Acquisto di servizi;15;Contratti di servizio pubblico;4;Contratti di servizio per la raccolta rifiuti;09-04-2021;
824;1;751;"1.402,50";"1.402,50";MATTARANETTA SOCIETA' COOPERATIVA SOCIALE;8357030751;SALDO Fatt.n. 10/FE  del 31/03/2021 FATTURA IMMEDIATA;09-04-2021;840;0;424;1;Spese correnti;3;Acquisto di beni e servizi;2;Acquisto di servizi;15;Contratti di servizio pubblico;999;Altre spese per contratti di servizio pubblico;09-04-2021;
825;1;752;"126,88";"126,88";MENEGOLLI ALBERTO;Z9C2948D55;SALDO Fatt.n. 7  del 27/03/2021 Fattura Consulenza;09-04-2021;270;0;438;1;Spese correnti;3;Acquisto di beni e servizi;2;Acquisto di servizi;11;Prestazioni professionali e specialistiche;999;Altre prestazioni professionali e specialistiche n.a.c.;09-04-2021;
826;1;726;"589,62";"589,62";GP GLOBAL POWER SPA;ZBA2CCC2EF;SOGGETTI DIVERSI-PAGAMENTO ADUE B2B            MANDATO AA5TZ1C77 NOME        GLOBALPOWER SPA2F 3B A5  ACCONTO (P. 71 -R. 726 del 01/04/2021);09-04-2021;886;0;332;1;Spese correnti;3;Acquisto di beni e servizi;2;Acquisto di servizi;5;Utenze e canoni;4;Energia elettrica;09-04-2021;
827;1;753;"129,72";"129,72";GP GLOBAL POWER SPA;ZBA2CCC2EF;SALDO Fatt.n. V0/21379  del 02/03/2021 Fattura Energia Elettrica;09-04-2021;886;0;332;1;Spese correnti;3;Acquisto di beni e servizi;2;Acquisto di servizi;5;Utenze e canoni;4;Energia elettrica;09-04-2021;
860;1;787;"24.750,00";"24.750,00";RD SNC DI VEZZARO D. E FACCHIN R.;Z10308E0A2;SALDO Fatt.n. 28  del 12/04/2021 FATTURA;13-04-2021;1101;1;376;2;Spese in conto capitale;2;Investimenti fissi lordi e acquisto di terreni;1;Beni materiali;9;Beni immobili;3;Fabbricati ad uso scolastico;14-04-2021;
861;1;788;"1.814,17";"1.814,17";SINERGAS SPA;827398004C;SOGGETTI DIVERSI-PAGAMENTO ADUE                COD DISP 0121040604HVX6 NOME  SINERGAS SPA MANDATO          99Z1610053624A299 PFM 5954890 Fattura 211077632 del 12 03 21 Scad 14 0  ACCONTO (P. 81 -R. 788 del 14/04/2021);15-04-2021;888;0;296;1;Spese correnti;3;Acquisto di beni e servizi;2;Acquisto di servizi;5;Utenze e canoni;6;Gas;15-04-2021;
862;1;843;"399,12";"399,12";SINERGAS SPA;827398004C;SALDO Fatt.n. 211077632  del 12/03/2021 FATTURA FORNITURA GAS;15-04-2021;888;0;296;1;Spese correnti;3;Acquisto di beni e servizi;2;Acquisto di servizi;5;Utenze e canoni;6;Gas;15-04-2021;
863;1;790;"1.056,93";"1.056,93";SINERGAS SPA;827398004C;SOGGETTI DIVERSI-PAGAMENTO ADUE                COD DISP 0121040604HVWT NOME  SINERGAS SPA MANDATO          99Z1610053624A299 PFM 5954885 Fattura 211077627 del 12 03 21 Scad 14 0  ACCONTO (P. 83 -R. 790 del 14/04/2021);15-04-2021;353;0;293;1;Spese correnti;3;Acquisto di beni e servizi;2;Acquisto di servizi;5;Utenze e canoni;6;Gas;15-04-2021;
864;1;844;"232,48";"232,48";SINERGAS SPA;827398004C;SALDO Fatt.n. 211077627  del 12/03/2021 FATTURA FORNITURA GAS;15-04-2021;353;0;293;1;Spese correnti;3;Acquisto di beni e servizi;2;Acquisto di servizi;5;Utenze e canoni;6;Gas;15-04-2021;
865;1;789;"753,96";"753,96";SINERGAS SPA;827398004C;SOGGETTI DIVERSI-PAGAMENTO ADUE                COD DISP 0121040604HW9K NOME  SINERGAS SPA MANDATO          99Z1610053624A299 PFM 5954888 Fattura 211077630 del 12 03 21 Scad 14 0  ACCONTO (P. 82 -R. 789 del 14/04/2021);15-04-2021;582;0;292;1;Spese correnti;3;Acquisto di beni e servizi;2;Acquisto di servizi;5;Utenze e canoni;6;Gas;15-04-2021;
866;1;845;"165,87";"165,87";SINERGAS SPA;827398004C;SALDO Fatt.n. 211077630  del 12/03/2021 FATTURA FORNITURA GAS;15-04-2021;582;0;292;1;Spese correnti;3;Acquisto di beni e servizi;2;Acquisto di servizi;5;Utenze e canoni;6;Gas;15-04-2021;
867;1;791;"951,74";"951,74";SINERGAS SPA;827398004C;SOGGETTI DIVERSI-PAGAMENTO ADUE                COD DISP 0121040604HVWO NOME  SINERGAS SPA MANDATO          99Z1610053624A299 PFM 5954887 Fattura 211077629 del 12 03 21 Scad 14 0  ACCONTO (P. 84 -R. 791 del 14/04/2021);15-04-2021;884;0;294;1;Spese correnti;3;Acquisto di beni e servizi;2;Acquisto di servizi;5;Utenze e canoni;6;Gas;15-04-2021;
868;1;846;"209,38";"209,38";SINERGAS SPA;827398004C;SALDO Fatt.n. 211077629  del 12/03/2021 FATTURA FORNITURA GAS;15-04-2021;884;0;294;1;Spese correnti;3;Acquisto di beni e servizi;2;Acquisto di servizi;5;Utenze e canoni;6;Gas;15-04-2021;
869;1;792;"222,11";"222,11";SINERGAS SPA;827398004C;SOGGETTI DIVERSI-PAGAMENTO ADUE                COD DISP 0121040604HVWL NOME  SINERGAS SPA MANDATO          99Z1610053624A299 PFM 5954889 Fattura 211077631 del 12 03 21 Scad 14 0  ACCONTO (P. 85 -R. 792 del 14/04/2021);15-04-2021;112;0;289;1;Spese correnti;3;Acquisto di beni e servizi;2;Acquisto di servizi;5;Utenze e canoni;6;Gas;15-04-2021;
870;1;847;"48,86";"48,86";SINERGAS SPA;827398004C;SALDO Fatt.n. 211077631  del 12/03/2021 FATTURA FORNITURA GAS;15-04-2021;112;0;289;1;Spese correnti;3;Acquisto di beni e servizi;2;Acquisto di servizi;5;Utenze e canoni;6;Gas;15-04-2021;
871;1;793;"510,57";"510,57";SINERGAS SPA;827398004C;SOGGETTI DIVERSI-PAGAMENTO ADUE                COD DISP 0121040604HWL4 NOME  SINERGAS SPA MANDATO          99Z1610053624A299 PFM 5954891 Fattura 211077633 del 12 03 21 Scad 14 0  ACCONTO (P. 86 -R. 793 del 14/04/2021);15-04-2021;212;0;290;1;Spese correnti;3;Acquisto di beni e servizi;2;Acquisto di servizi;5;Utenze e canoni;6;Gas;15-04-2021;
872;1;848;"112,33";"112,33";SINERGAS SPA;827398004C;SALDO Fatt.n. 211077633  del 12/03/2021 FORNITURA GAS;15-04-2021;212;0;290;1;Spese correnti;3;Acquisto di beni e servizi;2;Acquisto di servizi;5;Utenze e canoni;6;Gas;15-04-2021;
873;1;795;"1.580,39";"1.580,39";SINERGAS SPA;827398004C;SOGGETTI DIVERSI-PAGAMENTO ADUE                COD DISP 0121040604HVWX NOME  SINERGAS SPA MANDATO          99Z1610053624A299 PFM 5954892 Fattura 211077634 del 12 03 21 Scad 14 0  ACCONTO (P. 88 -R. 795 del 14/04/2021);15-04-2021;887;0;295;1;Spese correnti;3;Acquisto di beni e servizi;2;Acquisto di servizi;5;Utenze e canoni;6;Gas;15-04-2021;
874;1;849;"347,69";"347,69";SINERGAS SPA;827398004C;SALDO Fatt.n. 211077634  del 12/03/2021 FATTURA FORNITURA GAS;15-04-2021;887;0;295;1;Spese correnti;3;Acquisto di beni e servizi;2;Acquisto di servizi;5;Utenze e canoni;6;Gas;15-04-2021;
875;1;794;"1.651,51";"1.651,51";SINERGAS SPA;827398004C;SOGGETTI DIVERSI-PAGAMENTO ADUE                COD DISP 0121040604HVX3 NOME  SINERGAS SPA MANDATO          99Z1610053624A299 PFM 5954886 Fattura 211077628 del 12 03 21 Scad 14 0  ACCONTO (P. 87 -R. 794 del 14/04/2021);15-04-2021;542;0;291;1;Spese correnti;3;Acquisto di beni e servizi;2;Acquisto di servizi;5;Utenze e canoni;6;Gas;15-04-2021;
876;1;850;"363,33";"363,33";SINERGAS SPA;827398004C;SALDO Fatt.n. 211077628  del 12/03/2021 FORNITURA GAS;15-04-2021;542;0;291;1;Spese correnti;3;Acquisto di beni e servizi;2;Acquisto di servizi;5;Utenze e canoni;6;Gas;15-04-2021;
878;1;488;"1,15";"4,60";INTESA SAN PAOLO - TESORERIA COMUNALE;ZB823CBCD9;ENTE EROGATORE SERVIZI POS-CANONE SPESE DIVERSE SERVIZIO POS                           COMUNE DI CALDIERO98 COMM     SETEFI5 (P. 80 -R. 735 del 02/04/2021);15-04-2021;374;0;301;1;Spese correnti;3;Acquisto di beni e servizi;2;Acquisto di servizi;17;Servizi finanziari;2;Oneri per servizio di tesoreria;15-04-2021;
878;2;488;"1,15";"4,60";INTESA SAN PAOLO - TESORERIA COMUNALE;ZB823CBCD9;ENTE EROGATORE SERVIZI POS-CANONE SPESE DIVERSE SERVIZIO POS                           COMUNE DI CALDIERO98 COMM     SETEFI5 (P. 77 -R. 732 del 02/04/2021);15-04-2021;374;0;301;1;Spese correnti;3;Acquisto di beni e servizi;2;Acquisto di servizi;17;Servizi finanziari;2;Oneri per servizio di tesoreria;15-04-2021;
878;3;488;"1,15";"4,60";INTESA SAN PAOLO - TESORERIA COMUNALE;ZB823CBCD9;ENTE EROGATORE SERVIZI POS-CANONE SPESE DIVERSE SERVIZIO POS                           COMUNE DI CALDIERO98 COMM     SETEFI5 (P. 52 -R. 490 del 02/03/2021);15-04-2021;374;0;301;1;Spese correnti;3;Acquisto di beni e servizi;2;Acquisto di servizi;17;Servizi finanziari;2;Oneri per servizio di tesoreria;15-04-2021;
878;4;488;"1,15";"4,60";INTESA SAN PAOLO - TESORERIA COMUNALE;ZB823CBCD9;ENTE EROGATORE SERVIZI POS-CANONE SPESE DIVERSE SERVIZIO POS                           COMUNE DI CALDIERO98 COMM     SETEFI5 (P. 50 -R. 488 del 02/03/2021);15-04-2021;374;0;301;1;Spese correnti;3;Acquisto di beni e servizi;2;Acquisto di servizi;17;Servizi finanziari;2;Oneri per servizio di tesoreria;15-04-2021;
879;1;852;"1.225,67";"1.225,67";MINISTERO INTERNO - DIREZIONE CENTR SERV DEMOGRAFICI; ;Liquidazione diritti per il rilascio di n. 73 carte didentita elettroniche MARZO 2021.;16-04-2021;325;0;82;1;Spese correnti;4;Trasferimenti correnti;1;Trasferimenti correnti a Amministrazioni Pubbliche;1;Trasferimenti correnti a Amministrazioni Centrali;1;Trasferimenti correnti a Ministeri;19-04-2021;
880;1;853;"188,73";"188,73";OLIVETTI  SPA;ZA31A76D7F;SALDO Fatt.n. A20020211000007984  del 31/03/2021 CANONE NOLEGGIO;19-04-2021;109;0;174;1;Spese correnti;3;Acquisto di beni e servizi;2;Acquisto di servizi;7;Utilizzo di beni di terzi;4;Noleggi di hardware;21-04-2021;
881;1;854;"214,39";"214,39";SHARP ELECTRONICS ITALIA SPA;ZF81FAD390;"SALDO Fatt.n. 7721003313  del 26/03/2021 COMUNE DI CALDIERO, ORDINE 3811295, CIG ZF81FAD390";19-04-2021;109;0;483;1;Spese correnti;3;Acquisto di beni e servizi;2;Acquisto di servizi;7;Utilizzo di beni di terzi;4;Noleggi di hardware;21-04-2021;
882;1;855;"180,00";"180,00";PROGETTO SOFIS DI MICHELE MAJETTA; ;SALDO Fatt.n. 373/A  del 02/04/2021 SEMINARIO MEPA;19-04-2021;90;0;146;1;Spese correnti;3;Acquisto di beni e servizi;2;Acquisto di servizi;4;Acquisto di servizi per formazione e addestramento del personale dell'ente;999;Acquisto di servizi per altre spese per formazione e addestramento n.a.c.;21-04-2021;
883;1;856;"2.034,00";"2.034,00";SOCIETA' COOPERATIVA CULTURE;7559364882;SALDO Fatt.n. 632/FE  del 22/03/2021 GESTIONE SERVIZI BIBLIOTECARI MESE DI FEBBRAIO 2021;19-04-2021;680;0;547;1;Spese correnti;3;Acquisto di beni e servizi;2;Acquisto di servizi;15;Contratti di servizio pubblico;999;Altre spese per contratti di servizio pubblico;21-04-2021;
884;1;857;"683,70";"683,70";RANCAN SNC DI RANCAN LAURA E ALESSANDRO & C;Z0A30BAAC2;SALDO Fatt.n. 16/PA  del 31/03/2021 Contributo Ambientale Conai assolto.;19-04-2021;110;0;120;1;Spese correnti;3;Acquisto di beni e servizi;1;Acquisto di beni;2;Altri beni di consumo;1;"Carta, cancelleria e stampati";21-04-2021;
885;1;858;"435,75";"435,75";LEGGERE SRL;ZA030C869D;SALDO Fatt.n. 5494  del 31/03/2021 ACQUISTO LIBRI PER BIBLIOTECA;19-04-2021;681;0;125;1;Spese correnti;3;Acquisto di beni e servizi;1;Acquisto di beni;1;"Giornali, riviste e pubblicazioni";2;Pubblicazioni;21-04-2021;
886;1;727;"1.774,07";"1.774,07";GP GLOBAL POWER SPA;ZBA2CCC2EF;SOGGETTI DIVERSI-PAGAMENTO ADUE B2B            MANDATO AA5TZ1C77 NOME        GLOBALPOWER SPA2F 3B A5  ACCONTO (P. 72 -R. 727 del 01/04/2021);20-04-2021;581;0;330;1;Spese correnti;3;Acquisto di beni e servizi;2;Acquisto di servizi;5;Utenze e canoni;4;Energia elettrica;21-04-2021;
887;1;727;"1.475,91";"1.475,91";GP GLOBAL POWER SPA;ZBA2CCC2EF;SOGGETTI DIVERSI-PAGAMENTO ADUE B2B            MANDATO AA5TZ1C77 NOME        GLOBALPOWER SPA2F 3B A5  ACCONTO (P. 72 -R. 727 del 01/04/2021);20-04-2021;886;0;332;1;Spese correnti;3;Acquisto di beni e servizi;2;Acquisto di servizi;5;Utenze e canoni;4;Energia elettrica;21-04-2021;
888;1;859;"325,00";"325,00";GP GLOBAL POWER SPA;ZBA2CCC2EF;SALDO Fatt.n. V0/21380  del 02/03/2021 Fattura Energia Elettrica;20-04-2021;886;0;332;1;Spese correnti;3;Acquisto di beni e servizi;2;Acquisto di servizi;5;Utenze e canoni;4;Energia elettrica;21-04-2021;
889;1;860;"2.669,50";"2.669,50";CONSORZIO BONIFICA ALTA PIANURA VENETA; ;CONCESSIONI DEMANIALI VARIE ANNO 2021 - LIQUIDAZIONI CANONI AL CONSORZIO DI BONIFICA ALTA PIANURA VENETA;20-04-2021;1000;0;176;1;Spese correnti;4;Trasferimenti correnti;1;Trasferimenti correnti a Amministrazioni Pubbliche;2;Trasferimenti correnti a Amministrazioni Locali;999;Trasferimenti correnti a altre Amministrazioni Locali n.a.c.;21-04-2021;
890;1;866;"4.240,00";"4.240,00";AMMINISTRATORI COMUNALI; ;INDENNITA DI CARICA EROGATA NEL MESE DI APRILE 2021;21-04-2021;10;0;2;1;Spese correnti;3;Acquisto di beni e servizi;2;Acquisto di servizi;1;Organi e incarichi istituzionali dell'amministrazione;1;Organi istituzionali dell'amministrazione - Indennità;28-04-2021;
966;1;1332;"32,10";"32,10";ACQUE VERONESI SCARL; ;SALDO Fatt.n. 050120210000000573  del 30/03/2021 FATTURA 050120210000000000000573B/BOLLETTAZIONE MASSIVA;21-04-2021;359;0;171;1;Spese correnti;3;Acquisto di beni e servizi;2;Acquisto di servizi;5;Utenze e canoni;5;Acqua;21-06-2021;
967;1;867;"158,84";"158,84";ACQUE VERONESI SCARL; ;SALDO Fatt.n. 050120210000000598  del 30/03/2021 FATTURA 050120210000000000000598B/BOLLETTAZIONE MASSIVA;26-04-2021;359;0;171;1;Spese correnti;3;Acquisto di beni e servizi;2;Acquisto di servizi;5;Utenze e canoni;5;Acqua;27-04-2021;
968;1;868;"143,81";"143,81";ACQUE VERONESI SCARL; ;SALDO Fatt.n. 050120210000000596  del 30/03/2021 FATTURA 050120210000000000000596B/BOLLETTAZIONE MASSIVA;26-04-2021;359;0;171;1;Spese correnti;3;Acquisto di beni e servizi;2;Acquisto di servizi;5;Utenze e canoni;5;Acqua;27-04-2021;
969;1;869;"33,73";"33,73";ACQUE VERONESI SCARL; ;SALDO Fatt.n. 050120210000000599  del 30/03/2021 FATTURA 050120210000000000000599B/BOLLETTAZIONE MASSIVA;26-04-2021;359;0;171;1;Spese correnti;3;Acquisto di beni e servizi;2;Acquisto di servizi;5;Utenze e canoni;5;Acqua;27-04-2021;
970;1;870;"82,21";"82,21";ACQUE VERONESI SCARL; ;SALDO Fatt.n. 050120210000000597  del 30/03/2021 FATTURA 050120210000000000000597B/BOLLETTAZIONE MASSIVA;26-04-2021;359;0;171;1;Spese correnti;3;Acquisto di beni e servizi;2;Acquisto di servizi;5;Utenze e canoni;5;Acqua;27-04-2021;
971;1;871;"27,69";"27,69";ACQUE VERONESI SCARL; ;SALDO Fatt.n. 050120210000000595  del 30/03/2021 FATTURA 050120210000000000000595B/BOLLETTAZIONE MASSIVA;26-04-2021;359;0;171;1;Spese correnti;3;Acquisto di beni e servizi;2;Acquisto di servizi;5;Utenze e canoni;5;Acqua;27-04-2021;
972;1;872;"152,44";"152,44";ACQUE VERONESI SCARL; ;SALDO Fatt.n. 050120210000000594  del 30/03/2021 FATTURA 050120210000000000000594B/BOLLETTAZIONE MASSIVA;26-04-2021;359;0;171;1;Spese correnti;3;Acquisto di beni e servizi;2;Acquisto di servizi;5;Utenze e canoni;5;Acqua;27-04-2021;
973;1;873;"214,95";"214,95";ACQUE VERONESI SCARL; ;SALDO Fatt.n. 050120210000000591  del 30/03/2021 FATTURA 050120210000000000000591B/BOLLETTAZIONE MASSIVA;26-04-2021;359;0;171;1;Spese correnti;3;Acquisto di beni e servizi;2;Acquisto di servizi;5;Utenze e canoni;5;Acqua;27-04-2021;
974;1;874;"162,00";"162,00";ACQUE VERONESI SCARL; ;SALDO Fatt.n. 050120210000000590  del 30/03/2021 FATTURA 050120210000000000000590B/BOLLETTAZIONE MASSIVA;26-04-2021;359;0;171;1;Spese correnti;3;Acquisto di beni e servizi;2;Acquisto di servizi;5;Utenze e canoni;5;Acqua;27-04-2021;
975;1;875;"64,20";"64,20";ACQUE VERONESI SCARL; ;SALDO Fatt.n. 050120210000000553  del 30/03/2021 FATTURA 050120210000000000000553B/BOLLETTAZIONE MASSIVA;26-04-2021;879;0;172;1;Spese correnti;3;Acquisto di beni e servizi;2;Acquisto di servizi;5;Utenze e canoni;5;Acqua;27-04-2021;
976;1;876;"27,69";"27,69";ACQUE VERONESI SCARL; ;SALDO Fatt.n. 050120210000000552  del 30/03/2021 FATTURA 050120210000000000000552B/BOLLETTAZIONE MASSIVA;26-04-2021;879;0;172;1;Spese correnti;3;Acquisto di beni e servizi;2;Acquisto di servizi;5;Utenze e canoni;5;Acqua;27-04-2021;
977;1;877;"27,69";"27,69";ACQUE VERONESI SCARL; ;SALDO Fatt.n. 050120210000000551  del 30/03/2021 FATTURA 050120210000000000000551B/BOLLETTAZIONE MASSIVA;26-04-2021;879;0;172;1;Spese correnti;3;Acquisto di beni e servizi;2;Acquisto di servizi;5;Utenze e canoni;5;Acqua;27-04-2021;
978;1;879;"32,10";"32,10";ACQUE VERONESI SCARL; ;SALDO Fatt.n. 050120210000000550  del 30/03/2021 FATTURA 050120210000000000000550B/BOLLETTAZIONE MASSIVA;26-04-2021;879;0;172;1;Spese correnti;3;Acquisto di beni e servizi;2;Acquisto di servizi;5;Utenze e canoni;5;Acqua;27-04-2021;
979;1;878;"32,10";"32,10";ACQUE VERONESI SCARL; ;SALDO Fatt.n. 050120210000000549  del 30/03/2021 FATTURA 050120210000000000000549B/BOLLETTAZIONE MASSIVA;26-04-2021;879;0;172;1;Spese correnti;3;Acquisto di beni e servizi;2;Acquisto di servizi;5;Utenze e canoni;5;Acqua;27-04-2021;
980;1;880;"32,10";"32,10";ACQUE VERONESI SCARL; ;SALDO Fatt.n. 050120210000000548  del 30/03/2021 FATTURA 050120210000000000000548B/BOLLETTAZIONE MASSIVA;26-04-2021;879;0;172;1;Spese correnti;3;Acquisto di beni e servizi;2;Acquisto di servizi;5;Utenze e canoni;5;Acqua;27-04-2021;
981;1;881;"133,22";"133,22";ACQUE VERONESI SCARL; ;SALDO Fatt.n. 050120210000000546  del 30/03/2021 FATTURA 050120210000000000000546B/BOLLETTAZIONE MASSIVA;26-04-2021;879;0;172;1;Spese correnti;3;Acquisto di beni e servizi;2;Acquisto di servizi;5;Utenze e canoni;5;Acqua;27-04-2021;
982;1;882;"96,29";"96,29";ACQUE VERONESI SCARL; ;SALDO Fatt.n. 050120210000000545  del 30/03/2021 FATTURA 050120210000000000000545B/BOLLETTAZIONE MASSIVA;26-04-2021;879;0;172;1;Spese correnti;3;Acquisto di beni e servizi;2;Acquisto di servizi;5;Utenze e canoni;5;Acqua;27-04-2021;
983;1;1011;"49,79";"49,79";ACQUE VERONESI SCARL; ;SALDO Fatt.n. 050120210000000544  del 30/03/2021 FATTURA 050120210000000000000544B/BOLLETTAZIONE MASSIVA;26-04-2021;879;0;172;1;Spese correnti;3;Acquisto di beni e servizi;2;Acquisto di servizi;5;Utenze e canoni;5;Acqua;30-04-2021;
984;1;886;"32,10";"32,10";ACQUE VERONESI SCARL; ;SALDO Fatt.n. 050120210000000543  del 30/03/2021 FATTURA 050120210000000000000543B/BOLLETTAZIONE MASSIVA;26-04-2021;879;0;172;1;Spese correnti;3;Acquisto di beni e servizi;2;Acquisto di servizi;5;Utenze e canoni;5;Acqua;27-04-2021;
985;1;1012;"179,65";"179,65";ACQUE VERONESI SCARL; ;SALDO Fatt.n. 050120210000000542  del 30/03/2021 FATTURA 050120210000000000000542B/BOLLETTAZIONE MASSIVA;26-04-2021;879;0;172;1;Spese correnti;3;Acquisto di beni e servizi;2;Acquisto di servizi;5;Utenze e canoni;5;Acqua;30-04-2021;
986;1;1013;"228,94";"228,94";ACQUE VERONESI SCARL; ;SALDO Fatt.n. 050120210000000541  del 30/03/2021 FATTURA 050120210000000000000541B/BOLLETTAZIONE MASSIVA;26-04-2021;879;0;172;1;Spese correnti;3;Acquisto di beni e servizi;2;Acquisto di servizi;5;Utenze e canoni;5;Acqua;30-04-2021;
